Body Name,Date Paid,Transaction Number,Amount,Supplier Name,Supplier Type,Expense Area,Cost Centre Description,Expense Type
Cambridgeshire County Council,14-Dec-20,51301457700,"-52,990.46",WHIPPET COACHES LIMITED,TRADE SUPPLIER,Passenger Transport other,Tendered Bus Costs,Support - subsidised bus routes
Cambridgeshire County Council,02-Dec-20,51301481294,"-22,075.80",Keys PCE Ltd,CARE ESTABLISHMENT,LAC Placements,Placements - residential homes,Agency Placements - Out of  County
Cambridgeshire County Council,24-Dec-20,51301487836,"-10,243.00",Bredon School,EDUCATION,SEN Placements,Placements - Education,Independent School Placements
Cambridgeshire County Council,15-Dec-20,51301487225,"-9,743.37",Redacted Personal Data ,INDIVIDUAL,Children's Disability Direct Payments,CSC Direct Payments,Direct Payments
Cambridgeshire County Council,02-Dec-20,51301481291,"-8,830.32",Keys PCE Ltd,CARE ESTABLISHMENT,LAC Placements,Placements - residential homes,Agency Placements - Out of  County
Cambridgeshire County Council,22-Dec-20,51301481775,"-7,871.36",CAMBIAN CHILDCARE LTD T/A CAMBIAN HEREFORD SCHOOL,CARE ESTABLISHMENT,SEN Placements,Placements - Education,Independent School Placements
Cambridgeshire County Council,07-Dec-20,51301450491,"-6,819.23",LONDON HIRE LTD,TRADE SUPPLIER,Adults - Central Transport,Adults Disabilities and OP Transport,Leased Vehicle Costs
Cambridgeshire County Council,14-Dec-20,51301486967,"-6,607.61",ATKINS LTD,COMPANY,TIPF - Strategy & Scheme Dev,TIPF - Strategy & Scheme Dev,Construction - External Professional Fees
Cambridgeshire County Council,18-Dec-20,51301494246,"-6,000.00",HILLS ROAD SIXTH FORM COLLEGE,EDUCATION,SEND High Needs Top Up,SEND Specialist Services-High needs top-up-Post 16,Independent School Placements
Cambridgeshire County Council,07-Dec-20,51301450490,"-5,734.62",LONDON HIRE LTD,TRADE SUPPLIER,Adults - Central Transport,Adults Disabilities and OP Transport,Leased Vehicle Costs
Cambridgeshire County Council,24-Dec-20,51301496916,"-4,587.98",RED BALLOON OF THE AIR,CARE ESTABLISHMENT,Children's Disability Direct Payments,CSC Direct Payments,Direct Payments
Cambridgeshire County Council,07-Dec-20,51301482415,"-3,579.42",KEY2 FUTURES LTD,TRADE SUPPLIER,LAC Placements,Placements - supported accommodation,Agency Placements - In County
Cambridgeshire County Council,17-Dec-20,51301487976,"-3,380.78",Redacted Personal Data ,INDIVIDUAL,Children's Disability Direct Payments,CSC Direct Payments,Direct Payments
Cambridgeshire County Council,07-Dec-20,51301481998,"-3,333.33",Medeshamstede Academy,EDUCATION,SEND High Needs Top Up,"SEND Specialist Services,High Needs Top Up,Other institutions",Independent School Placements
Cambridgeshire County Council,17-Dec-20,51301487974,"-2,865.94",Redacted Personal Data ,INDIVIDUAL,Children's Disability Direct Payments,CSC Direct Payments,Direct Payments
Cambridgeshire County Council,18-Dec-20,51301488464,"-2,480.00",GLENNFIELD CARE CENTRE (OP),CARE ESTABLISHMENT,OP - Fenland Blocks,Fenland - Long term blocks,Residential Care
Cambridgeshire County Council,18-Dec-20,51301488464,"-2,480.00",GLENNFIELD CARE CENTRE (OP),CARE ESTABLISHMENT,OP - Fenland Blocks,Fenland - Long term blocks,Residential Care
Cambridgeshire County Council,18-Dec-20,51301492908,"-2,141.84",EDEN VIEW,CARE ESTABLISHMENT,Physical Disablity - Cost of Care,Countywide PD Service - Care,Nursing Care
Cambridgeshire County Council,18-Dec-20,51301492908,"-2,141.84",EDEN VIEW,CARE ESTABLISHMENT,Physical Disablity - Cost of Care,Countywide PD Service - Care,Nursing Care
Cambridgeshire County Council,18-Dec-20,51301492908,"-2,141.84",EDEN VIEW,CARE ESTABLISHMENT,Physical Disablity - Cost of Care,Countywide PD Service - Care,Nursing Care
Cambridgeshire County Council,18-Dec-20,51301492908,"-2,141.84",EDEN VIEW,CARE ESTABLISHMENT,Physical Disablity - Cost of Care,Countywide PD Service - Care,Nursing Care
Cambridgeshire County Council,02-Dec-20,51301481296,"-2,058.36",Keys PCE Ltd,CARE ESTABLISHMENT,LAC Placements,Placements - residential homes,Agency Placements - Out of  County
Cambridgeshire County Council,16-Dec-20,51301487748,"-2,000.00",Horizon Care and Education,EDUCATION,SEN Placements,Placements - Education,Independent School Placements
Cambridgeshire County Council,07-Dec-20,51301482313,"-1,896.46",TURNING POINT SERVICES LTD,CARE ESTABLISHMENT,LD - Fenland Locality - Cost of Care,LD - Fenland  - Care,Homecare
Cambridgeshire County Council,07-Dec-20,51301482313,"-1,896.46",TURNING POINT SERVICES LTD,CARE ESTABLISHMENT,LD - Fenland Locality - Cost of Care,LD - Fenland  - Care,Homecare
Cambridgeshire County Council,07-Dec-20,51301482313,"-1,896.46",TURNING POINT SERVICES LTD,CARE ESTABLISHMENT,LD - Fenland Locality - Cost of Care,LD - Fenland  - Care,Homecare
Cambridgeshire County Council,07-Dec-20,51301482313,"-1,896.46",TURNING POINT SERVICES LTD,CARE ESTABLISHMENT,LD - Fenland Locality - Cost of Care,LD - Fenland  - Care,Homecare
Cambridgeshire County Council,07-Dec-20,51301482313,"-1,896.46",TURNING POINT SERVICES LTD,CARE ESTABLISHMENT,LD - Fenland Locality - Cost of Care,LD - Fenland  - Care,Homecare
Cambridgeshire County Council,07-Dec-20,51301482313,"-1,896.46",TURNING POINT SERVICES LTD,CARE ESTABLISHMENT,LD - Fenland Locality - Cost of Care,LD - Fenland  - Care,Homecare
Cambridgeshire County Council,07-Dec-20,51301482313,"-1,896.46",TURNING POINT SERVICES LTD,CARE ESTABLISHMENT,LD - Fenland Locality - Cost of Care,LD - Fenland  - Care,Homecare
Cambridgeshire County Council,07-Dec-20,51301482313,"-1,896.46",TURNING POINT SERVICES LTD,CARE ESTABLISHMENT,LD - Fenland Locality - Cost of Care,LD - Fenland  - Care,Homecare
Cambridgeshire County Council,07-Dec-20,51301482313,"-1,896.46",TURNING POINT SERVICES LTD,CARE ESTABLISHMENT,LD - Fenland Locality - Cost of Care,LD - Fenland  - Care,Homecare
Cambridgeshire County Council,07-Dec-20,51301482313,"-1,896.46",TURNING POINT SERVICES LTD,CARE ESTABLISHMENT,LD - Fenland Locality - Cost of Care,LD - Fenland  - Care,Homecare
Cambridgeshire County Council,07-Dec-20,51301482313,"-1,896.46",TURNING POINT SERVICES LTD,CARE ESTABLISHMENT,LD - Fenland Locality - Cost of Care,LD - Fenland  - Care,Homecare
Cambridgeshire County Council,07-Dec-20,51301482313,"-1,896.46",TURNING POINT SERVICES LTD,CARE ESTABLISHMENT,LD - Fenland Locality - Cost of Care,LD - Fenland  - Care,Homecare
Cambridgeshire County Council,07-Dec-20,51301482313,"-1,896.46",TURNING POINT SERVICES LTD,CARE ESTABLISHMENT,LD - Fenland Locality - Cost of Care,LD - Fenland  - Care,Homecare
Cambridgeshire County Council,07-Dec-20,51301482313,"-1,896.46",TURNING POINT SERVICES LTD,CARE ESTABLISHMENT,LD - Fenland Locality - Cost of Care,LD - Fenland  - Care,Homecare
Cambridgeshire County Council,07-Dec-20,51301482313,"-1,896.46",TURNING POINT SERVICES LTD,CARE ESTABLISHMENT,LD - Fenland Locality - Cost of Care,LD - Fenland  - Care,Homecare
Cambridgeshire County Council,07-Dec-20,51301482313,"-1,896.46",TURNING POINT SERVICES LTD,CARE ESTABLISHMENT,LD - Fenland Locality - Cost of Care,LD - Fenland  - Care,Homecare
Cambridgeshire County Council,07-Dec-20,51301482313,"-1,896.46",TURNING POINT SERVICES LTD,CARE ESTABLISHMENT,LD - Fenland Locality - Cost of Care,LD - Fenland  - Care,Homecare
Cambridgeshire County Council,07-Dec-20,51301482313,"-1,896.46",TURNING POINT SERVICES LTD,CARE ESTABLISHMENT,LD - Fenland Locality - Cost of Care,LD - Fenland  - Care,Homecare
Cambridgeshire County Council,07-Dec-20,51301482313,"-1,896.46",TURNING POINT SERVICES LTD,CARE ESTABLISHMENT,LD - Fenland Locality - Cost of Care,LD - Fenland  - Care,Homecare
Cambridgeshire County Council,07-Dec-20,51301482313,"-1,896.46",TURNING POINT SERVICES LTD,CARE ESTABLISHMENT,LD - Fenland Locality - Cost of Care,LD - Fenland  - Care,Homecare
Cambridgeshire County Council,07-Dec-20,51301482313,"-1,896.46",TURNING POINT SERVICES LTD,CARE ESTABLISHMENT,LD - Fenland Locality - Cost of Care,LD - Fenland  - Care,Homecare
Cambridgeshire County Council,07-Dec-20,51301482313,"-1,896.46",TURNING POINT SERVICES LTD,CARE ESTABLISHMENT,LD - Fenland Locality - Cost of Care,LD - Fenland  - Care,Homecare
Cambridgeshire County Council,07-Dec-20,51301482313,"-1,896.46",TURNING POINT SERVICES LTD,CARE ESTABLISHMENT,LD - Fenland Locality - Cost of Care,LD - Fenland  - Care,Homecare
Cambridgeshire County Council,07-Dec-20,51301482313,"-1,896.46",TURNING POINT SERVICES LTD,CARE ESTABLISHMENT,LD - Fenland Locality - Cost of Care,LD - Fenland  - Care,Homecare
Cambridgeshire County Council,07-Dec-20,51301482313,"-1,896.46",TURNING POINT SERVICES LTD,CARE ESTABLISHMENT,LD - Fenland Locality - Cost of Care,LD - Fenland  - Care,Homecare
Cambridgeshire County Council,07-Dec-20,51301482313,"-1,896.46",TURNING POINT SERVICES LTD,CARE ESTABLISHMENT,LD - Fenland Locality - Cost of Care,LD - Fenland  - Care,Homecare
Cambridgeshire County Council,07-Dec-20,51301482313,"-1,896.46",TURNING POINT SERVICES LTD,CARE ESTABLISHMENT,LD - Fenland Locality - Cost of Care,LD - Fenland  - Care,Homecare
Cambridgeshire County Council,07-Dec-20,51301482313,"-1,896.46",TURNING POINT SERVICES LTD,CARE ESTABLISHMENT,LD - Fenland Locality - Cost of Care,LD - Fenland  - Care,Homecare
Cambridgeshire County Council,07-Dec-20,51301482313,"-1,896.46",TURNING POINT SERVICES LTD,CARE ESTABLISHMENT,LD - Fenland Locality - Cost of Care,LD - Fenland  - Care,Homecare
Cambridgeshire County Council,07-Dec-20,51301482313,"-1,896.46",TURNING POINT SERVICES LTD,CARE ESTABLISHMENT,LD - Fenland Locality - Cost of Care,LD - Fenland  - Care,Homecare
Cambridgeshire County Council,07-Dec-20,51301482313,"-1,896.46",TURNING POINT SERVICES LTD,CARE ESTABLISHMENT,LD - Fenland Locality - Cost of Care,LD - Fenland  - Care,Homecare
Cambridgeshire County Council,07-Dec-20,51301482313,"-1,896.46",TURNING POINT SERVICES LTD,CARE ESTABLISHMENT,LD - Fenland Locality - Cost of Care,LD - Fenland  - Care,Homecare
Cambridgeshire County Council,07-Dec-20,51301482313,"-1,896.46",TURNING POINT SERVICES LTD,CARE ESTABLISHMENT,LD - Fenland Locality - Cost of Care,LD - Fenland  - Care,Homecare
Cambridgeshire County Council,07-Dec-20,51301482313,"-1,896.46",TURNING POINT SERVICES LTD,CARE ESTABLISHMENT,LD - Fenland Locality - Cost of Care,LD - Fenland  - Care,Homecare
Cambridgeshire County Council,07-Dec-20,51301482313,"-1,896.46",TURNING POINT SERVICES LTD,CARE ESTABLISHMENT,LD - Fenland Locality - Cost of Care,LD - Fenland  - Care,Homecare
Cambridgeshire County Council,07-Dec-20,51301482313,"-1,896.46",TURNING POINT SERVICES LTD,CARE ESTABLISHMENT,LD - Fenland Locality - Cost of Care,LD - Fenland  - Care,Homecare
Cambridgeshire County Council,07-Dec-20,51301482313,"-1,896.46",TURNING POINT SERVICES LTD,CARE ESTABLISHMENT,LD - Fenland Locality - Cost of Care,LD - Fenland  - Care,Homecare
Cambridgeshire County Council,07-Dec-20,51301482313,"-1,896.46",TURNING POINT SERVICES LTD,CARE ESTABLISHMENT,LD - Fenland Locality - Cost of Care,LD - Fenland  - Care,Homecare
Cambridgeshire County Council,07-Dec-20,51301482313,"-1,896.46",TURNING POINT SERVICES LTD,CARE ESTABLISHMENT,LD - Fenland Locality - Cost of Care,LD - Fenland  - Care,Homecare
Cambridgeshire County Council,07-Dec-20,51301482313,"-1,896.46",TURNING POINT SERVICES LTD,CARE ESTABLISHMENT,LD - Fenland Locality - Cost of Care,LD - Fenland  - Care,Homecare
Cambridgeshire County Council,07-Dec-20,51301482313,"-1,896.46",TURNING POINT SERVICES LTD,CARE ESTABLISHMENT,LD - Fenland Locality - Cost of Care,LD - Fenland  - Care,Homecare
Cambridgeshire County Council,07-Dec-20,51301482313,"-1,896.46",TURNING POINT SERVICES LTD,CARE ESTABLISHMENT,LD - Fenland Locality - Cost of Care,LD - Fenland  - Care,Homecare
Cambridgeshire County Council,07-Dec-20,51301482560,"-1,876.11",SEMI INDEPENDENT HOUSE,CARE ESTABLISHMENT,Unaccompanied Asylum Seeking Children,Unaccompanied Asylum Seeking Children >18 Leaving Care,Living Spport Grants - Financial Assistance 18+
Cambridgeshire County Council,18-Dec-20,51301482227,"-1,863.69",ALDERTON HOUSE,CARE ESTABLISHMENT,LD - Young Adults Team,LD - Young Adults - Care,Residential Care
Cambridgeshire County Council,18-Dec-20,51301482227,"-1,863.69",ALDERTON HOUSE,CARE ESTABLISHMENT,LD - Young Adults Team,LD - Young Adults - Care,Residential Care
Cambridgeshire County Council,18-Dec-20,51301482227,"-1,863.69",ALDERTON HOUSE,CARE ESTABLISHMENT,LD - Young Adults Team,LD - Young Adults - Care,Residential Care
Cambridgeshire County Council,18-Dec-20,51301482227,"-1,863.69",ALDERTON HOUSE,CARE ESTABLISHMENT,LD - Young Adults Team,LD - Young Adults - Care,Residential Care
Cambridgeshire County Council,18-Dec-20,51301482227,"-1,863.69",ALDERTON HOUSE,CARE ESTABLISHMENT,LD - Young Adults Team,LD - Young Adults - Care,Residential Care
Cambridgeshire County Council,18-Dec-20,51301482227,"-1,863.69",ALDERTON HOUSE,CARE ESTABLISHMENT,LD - Young Adults Team,LD - Young Adults - Care,Residential Care
Cambridgeshire County Council,18-Dec-20,51301492908,"-1,835.86",EDEN VIEW,CARE ESTABLISHMENT,Physical Disablity - Cost of Care,Countywide PD Service - Care,Nursing Care
Cambridgeshire County Council,18-Dec-20,51301482228,"-1,784.40",GLENHOLME HEALTHCARE LTD,CARE ESTABLISHMENT,LD - Fenland Locality - Cost of Care,LD - Fenland  - Care,Residential Care
Cambridgeshire County Council,18-Dec-20,51301482228,"-1,784.40",GLENHOLME HEALTHCARE LTD,CARE ESTABLISHMENT,LD - Fenland Locality - Cost of Care,LD - Fenland  - Care,Residential Care
Cambridgeshire County Council,18-Dec-20,51301482228,"-1,784.40",GLENHOLME HEALTHCARE LTD,CARE ESTABLISHMENT,LD - Fenland Locality - Cost of Care,LD - Fenland  - Care,Residential Care
Cambridgeshire County Council,18-Dec-20,51301482228,"-1,784.40",GLENHOLME HEALTHCARE LTD,CARE ESTABLISHMENT,LD - Fenland Locality - Cost of Care,LD - Fenland  - Care,Residential Care
Cambridgeshire County Council,18-Dec-20,51301482228,"-1,784.40",GLENHOLME HEALTHCARE LTD,CARE ESTABLISHMENT,LD - Fenland Locality - Cost of Care,LD - Fenland  - Care,Residential Care
Cambridgeshire County Council,07-Dec-20,51301482005,"-1,778.36",Redacted Personal Data ,INDIVIDUAL,Children's Disability Direct Payments,CSC Direct Payments,Direct Payments
Cambridgeshire County Council,24-Dec-20,51301496613,"-1,751.91",THE NATIONAL FOSTERING AGENCY,CARE ESTABLISHMENT,LAC Placements,Placements - independent fostering,Agency Placements - Out of  County
Cambridgeshire County Council,07-Dec-20,51301482313,"-1,593.90",TURNING POINT SERVICES LTD,CARE ESTABLISHMENT,LD - Fenland Locality - Cost of Care,LD - Fenland  - Care,Homecare
Cambridgeshire County Council,24-Dec-20,51301496611,"-1,593.64",THE NATIONAL FOSTERING AGENCY,CARE ESTABLISHMENT,LAC Placements,Placements - independent fostering,Agency Placements - Out of  County
Cambridgeshire County Council,23-Dec-20,51301496237,"-1,581.20",Redacted Personal Data ,INDIVIDUAL,Physical Disablity - Cost of Care,Countywide PD Service - Care,Direct Payments
Cambridgeshire County Council,23-Dec-20,51301496237,"-1,581.20",Redacted Personal Data ,INDIVIDUAL,Physical Disablity - Cost of Care,Countywide PD Service - Care,Direct Payments
Cambridgeshire County Council,23-Dec-20,51301496237,"-1,581.20",Redacted Personal Data ,INDIVIDUAL,Physical Disablity - Cost of Care,Countywide PD Service - Care,Direct Payments
Cambridgeshire County Council,23-Dec-20,51301496237,"-1,581.20",Redacted Personal Data ,INDIVIDUAL,Physical Disablity - Cost of Care,Countywide PD Service - Care,Direct Payments
Cambridgeshire County Council,23-Dec-20,51301496237,"-1,581.20",Redacted Personal Data ,INDIVIDUAL,Physical Disablity - Cost of Care,Countywide PD Service - Care,Direct Payments
Cambridgeshire County Council,23-Dec-20,51301496237,"-1,581.20",Redacted Personal Data ,INDIVIDUAL,Physical Disablity - Cost of Care,Countywide PD Service - Care,Direct Payments
Cambridgeshire County Council,23-Dec-20,51301496237,"-1,581.20",Redacted Personal Data ,INDIVIDUAL,Physical Disablity - Cost of Care,Countywide PD Service - Care,Direct Payments
Cambridgeshire County Council,23-Dec-20,51301496237,"-1,581.20",Redacted Personal Data ,INDIVIDUAL,Physical Disablity - Cost of Care,Countywide PD Service - Care,Direct Payments
Cambridgeshire County Council,23-Dec-20,51301496237,"-1,581.20",Redacted Personal Data ,INDIVIDUAL,Physical Disablity - Cost of Care,Countywide PD Service - Care,Direct Payments
Cambridgeshire County Council,23-Dec-20,51301496237,"-1,581.20",Redacted Personal Data ,INDIVIDUAL,Physical Disablity - Cost of Care,Countywide PD Service - Care,Direct Payments
Cambridgeshire County Council,23-Dec-20,51301496237,"-1,581.20",Redacted Personal Data ,INDIVIDUAL,Physical Disablity - Cost of Care,Countywide PD Service - Care,Direct Payments
Cambridgeshire County Council,18-Dec-20,51301493388,"-1,576.05",AUGUSTA CARE LTD,CARE ESTABLISHMENT,LD - Fenland Locality - Cost of Care,LD - Fenland  - Care,Supported Living
Cambridgeshire County Council,18-Dec-20,51301493388,"-1,576.05",AUGUSTA CARE LTD,CARE ESTABLISHMENT,LD - Fenland Locality - Cost of Care,LD - Fenland  - Care,Supported Living
Cambridgeshire County Council,18-Dec-20,51301493388,"-1,576.05",AUGUSTA CARE LTD,CARE ESTABLISHMENT,LD - Fenland Locality - Cost of Care,LD - Fenland  - Care,Supported Living
Cambridgeshire County Council,18-Dec-20,51301493388,"-1,576.05",AUGUSTA CARE LTD,CARE ESTABLISHMENT,LD - Fenland Locality - Cost of Care,LD - Fenland  - Care,Supported Living
Cambridgeshire County Council,18-Dec-20,51301493388,"-1,576.05",AUGUSTA CARE LTD,CARE ESTABLISHMENT,LD - Fenland Locality - Cost of Care,LD - Fenland  - Care,Supported Living
Cambridgeshire County Council,18-Dec-20,51301493388,"-1,576.05",AUGUSTA CARE LTD,CARE ESTABLISHMENT,LD - Fenland Locality - Cost of Care,LD - Fenland  - Care,Supported Living
Cambridgeshire County Council,18-Dec-20,51301493388,"-1,576.05",AUGUSTA CARE LTD,CARE ESTABLISHMENT,LD - Fenland Locality - Cost of Care,LD - Fenland  - Care,Supported Living
Cambridgeshire County Council,18-Dec-20,51301493388,"-1,576.05",AUGUSTA CARE LTD,CARE ESTABLISHMENT,LD - Fenland Locality - Cost of Care,LD - Fenland  - Care,Supported Living
Cambridgeshire County Council,18-Dec-20,51301482228,"-1,529.49",GLENHOLME HEALTHCARE LTD,CARE ESTABLISHMENT,LD - Fenland Locality - Cost of Care,LD - Fenland  - Care,Residential Care
Cambridgeshire County Council,11-Dec-20,51301486324,"-1,501.00",CONQUEST CARE HOMES PETERBOROUGH,CARE ESTABLISHMENT,Physical Disablity - Cost of Care,Countywide PD Service - Care,Residential Care
Cambridgeshire County Council,11-Dec-20,51301486324,"-1,501.00",CONQUEST CARE HOMES PETERBOROUGH,CARE ESTABLISHMENT,Physical Disablity - Cost of Care,Countywide PD Service - Care,Residential Care
Cambridgeshire County Council,11-Dec-20,51301486324,"-1,501.00",CONQUEST CARE HOMES PETERBOROUGH,CARE ESTABLISHMENT,Physical Disablity - Cost of Care,Countywide PD Service - Care,Residential Care
Cambridgeshire County Council,11-Dec-20,51301486324,"-1,501.00",CONQUEST CARE HOMES PETERBOROUGH,CARE ESTABLISHMENT,Physical Disablity - Cost of Care,Countywide PD Service - Care,Residential Care
Cambridgeshire County Council,11-Dec-20,51301486324,"-1,501.00",CONQUEST CARE HOMES PETERBOROUGH,CARE ESTABLISHMENT,Physical Disablity - Cost of Care,Countywide PD Service - Care,Residential Care
Cambridgeshire County Council,11-Dec-20,51301486324,"-1,501.00",CONQUEST CARE HOMES PETERBOROUGH,CARE ESTABLISHMENT,Physical Disablity - Cost of Care,Countywide PD Service - Care,Residential Care
Cambridgeshire County Council,11-Dec-20,51301486324,"-1,501.00",CONQUEST CARE HOMES PETERBOROUGH,CARE ESTABLISHMENT,Physical Disablity - Cost of Care,Countywide PD Service - Care,Residential Care
Cambridgeshire County Council,11-Dec-20,51301486324,"-1,501.00",CONQUEST CARE HOMES PETERBOROUGH,CARE ESTABLISHMENT,Physical Disablity - Cost of Care,Countywide PD Service - Care,Residential Care
Cambridgeshire County Council,11-Dec-20,51301486324,"-1,501.00",CONQUEST CARE HOMES PETERBOROUGH,CARE ESTABLISHMENT,Physical Disablity - Cost of Care,Countywide PD Service - Care,Residential Care
Cambridgeshire County Council,11-Dec-20,51301486324,"-1,501.00",CONQUEST CARE HOMES PETERBOROUGH,CARE ESTABLISHMENT,Physical Disablity - Cost of Care,Countywide PD Service - Care,Residential Care
Cambridgeshire County Council,11-Dec-20,51301486324,"-1,501.00",CONQUEST CARE HOMES PETERBOROUGH,CARE ESTABLISHMENT,Physical Disablity - Cost of Care,Countywide PD Service - Care,Residential Care
Cambridgeshire County Council,11-Dec-20,51301486324,"-1,501.00",CONQUEST CARE HOMES PETERBOROUGH,CARE ESTABLISHMENT,Physical Disablity - Cost of Care,Countywide PD Service - Care,Residential Care
Cambridgeshire County Council,11-Dec-20,51301486324,"-1,501.00",CONQUEST CARE HOMES PETERBOROUGH,CARE ESTABLISHMENT,Physical Disablity - Cost of Care,Countywide PD Service - Care,Residential Care
Cambridgeshire County Council,11-Dec-20,51301486324,"-1,501.00",CONQUEST CARE HOMES PETERBOROUGH,CARE ESTABLISHMENT,Physical Disablity - Cost of Care,Countywide PD Service - Care,Residential Care
Cambridgeshire County Council,11-Dec-20,51301486324,"-1,501.00",CONQUEST CARE HOMES PETERBOROUGH,CARE ESTABLISHMENT,Physical Disablity - Cost of Care,Countywide PD Service - Care,Residential Care
Cambridgeshire County Council,11-Dec-20,51301486324,"-1,501.00",CONQUEST CARE HOMES PETERBOROUGH,CARE ESTABLISHMENT,Physical Disablity - Cost of Care,Countywide PD Service - Care,Residential Care
Cambridgeshire County Council,11-Dec-20,51301486324,"-1,501.00",CONQUEST CARE HOMES PETERBOROUGH,CARE ESTABLISHMENT,Physical Disablity - Cost of Care,Countywide PD Service - Care,Residential Care
Cambridgeshire County Council,11-Dec-20,51301486324,"-1,501.00",CONQUEST CARE HOMES PETERBOROUGH,CARE ESTABLISHMENT,Physical Disablity - Cost of Care,Countywide PD Service - Care,Residential Care
Cambridgeshire County Council,11-Dec-20,51301486324,"-1,501.00",CONQUEST CARE HOMES PETERBOROUGH,CARE ESTABLISHMENT,Physical Disablity - Cost of Care,Countywide PD Service - Care,Residential Care
Cambridgeshire County Council,11-Dec-20,51301486323,"-1,501.00",CONQUEST CARE HOMES PETERBOROUGH,CARE ESTABLISHMENT,Physical Disablity - Cost of Care,Countywide PD Service - Care,Residential Care
Cambridgeshire County Council,11-Dec-20,51301486323,"-1,501.00",CONQUEST CARE HOMES PETERBOROUGH,CARE ESTABLISHMENT,Physical Disablity - Cost of Care,Countywide PD Service - Care,Residential Care
Cambridgeshire County Council,11-Dec-20,51301486323,"-1,501.00",CONQUEST CARE HOMES PETERBOROUGH,CARE ESTABLISHMENT,Physical Disablity - Cost of Care,Countywide PD Service - Care,Residential Care
Cambridgeshire County Council,11-Dec-20,51301486323,"-1,501.00",CONQUEST CARE HOMES PETERBOROUGH,CARE ESTABLISHMENT,Physical Disablity - Cost of Care,Countywide PD Service - Care,Residential Care
Cambridgeshire County Council,11-Dec-20,51301486323,"-1,501.00",CONQUEST CARE HOMES PETERBOROUGH,CARE ESTABLISHMENT,Physical Disablity - Cost of Care,Countywide PD Service - Care,Residential Care
Cambridgeshire County Council,11-Dec-20,51301486323,"-1,501.00",CONQUEST CARE HOMES PETERBOROUGH,CARE ESTABLISHMENT,Physical Disablity - Cost of Care,Countywide PD Service - Care,Residential Care
Cambridgeshire County Council,11-Dec-20,51301486323,"-1,501.00",CONQUEST CARE HOMES PETERBOROUGH,CARE ESTABLISHMENT,Physical Disablity - Cost of Care,Countywide PD Service - Care,Residential Care
Cambridgeshire County Council,11-Dec-20,51301486323,"-1,501.00",CONQUEST CARE HOMES PETERBOROUGH,CARE ESTABLISHMENT,Physical Disablity - Cost of Care,Countywide PD Service - Care,Residential Care
Cambridgeshire County Council,11-Dec-20,51301486323,"-1,501.00",CONQUEST CARE HOMES PETERBOROUGH,CARE ESTABLISHMENT,Physical Disablity - Cost of Care,Countywide PD Service - Care,Residential Care
Cambridgeshire County Council,11-Dec-20,51301486323,"-1,501.00",CONQUEST CARE HOMES PETERBOROUGH,CARE ESTABLISHMENT,Physical Disablity - Cost of Care,Countywide PD Service - Care,Residential Care
Cambridgeshire County Council,11-Dec-20,51301486323,"-1,501.00",CONQUEST CARE HOMES PETERBOROUGH,CARE ESTABLISHMENT,Physical Disablity - Cost of Care,Countywide PD Service - Care,Residential Care
Cambridgeshire County Council,11-Dec-20,51301486323,"-1,501.00",CONQUEST CARE HOMES PETERBOROUGH,CARE ESTABLISHMENT,Physical Disablity - Cost of Care,Countywide PD Service - Care,Residential Care
Cambridgeshire County Council,11-Dec-20,51301486323,"-1,501.00",CONQUEST CARE HOMES PETERBOROUGH,CARE ESTABLISHMENT,Physical Disablity - Cost of Care,Countywide PD Service - Care,Residential Care
Cambridgeshire County Council,11-Dec-20,51301486323,"-1,501.00",CONQUEST CARE HOMES PETERBOROUGH,CARE ESTABLISHMENT,Physical Disablity - Cost of Care,Countywide PD Service - Care,Residential Care
Cambridgeshire County Council,11-Dec-20,51301486323,"-1,501.00",CONQUEST CARE HOMES PETERBOROUGH,CARE ESTABLISHMENT,Physical Disablity - Cost of Care,Countywide PD Service - Care,Residential Care
Cambridgeshire County Council,11-Dec-20,51301486323,"-1,501.00",CONQUEST CARE HOMES PETERBOROUGH,CARE ESTABLISHMENT,Physical Disablity - Cost of Care,Countywide PD Service - Care,Residential Care
Cambridgeshire County Council,11-Dec-20,51301486323,"-1,501.00",CONQUEST CARE HOMES PETERBOROUGH,CARE ESTABLISHMENT,Physical Disablity - Cost of Care,Countywide PD Service - Care,Residential Care
Cambridgeshire County Council,11-Dec-20,51301486323,"-1,501.00",CONQUEST CARE HOMES PETERBOROUGH,CARE ESTABLISHMENT,Physical Disablity - Cost of Care,Countywide PD Service - Care,Residential Care
Cambridgeshire County Council,11-Dec-20,51301486323,"-1,501.00",CONQUEST CARE HOMES PETERBOROUGH,CARE ESTABLISHMENT,Physical Disablity - Cost of Care,Countywide PD Service - Care,Residential Care
Cambridgeshire County Council,11-Dec-20,51301486323,"-1,501.00",CONQUEST CARE HOMES PETERBOROUGH,CARE ESTABLISHMENT,Physical Disablity - Cost of Care,Countywide PD Service - Care,Residential Care
Cambridgeshire County Council,11-Dec-20,51301486323,"-1,501.00",CONQUEST CARE HOMES PETERBOROUGH,CARE ESTABLISHMENT,Physical Disablity - Cost of Care,Countywide PD Service - Care,Residential Care
Cambridgeshire County Council,11-Dec-20,51301486323,"-1,501.00",CONQUEST CARE HOMES PETERBOROUGH,CARE ESTABLISHMENT,Physical Disablity - Cost of Care,Countywide PD Service - Care,Residential Care
Cambridgeshire County Council,11-Dec-20,51301486323,"-1,501.00",CONQUEST CARE HOMES PETERBOROUGH,CARE ESTABLISHMENT,Physical Disablity - Cost of Care,Countywide PD Service - Care,Residential Care
Cambridgeshire County Council,11-Dec-20,51301486323,"-1,501.00",CONQUEST CARE HOMES PETERBOROUGH,CARE ESTABLISHMENT,Physical Disablity - Cost of Care,Countywide PD Service - Care,Residential Care
Cambridgeshire County Council,11-Dec-20,51301486323,"-1,501.00",CONQUEST CARE HOMES PETERBOROUGH,CARE ESTABLISHMENT,Physical Disablity - Cost of Care,Countywide PD Service - Care,Residential Care
Cambridgeshire County Council,11-Dec-20,51301486323,"-1,501.00",CONQUEST CARE HOMES PETERBOROUGH,CARE ESTABLISHMENT,Physical Disablity - Cost of Care,Countywide PD Service - Care,Residential Care
Cambridgeshire County Council,11-Dec-20,51301486323,"-1,501.00",CONQUEST CARE HOMES PETERBOROUGH,CARE ESTABLISHMENT,Physical Disablity - Cost of Care,Countywide PD Service - Care,Residential Care
Cambridgeshire County Council,11-Dec-20,51301486323,"-1,501.00",CONQUEST CARE HOMES PETERBOROUGH,CARE ESTABLISHMENT,Physical Disablity - Cost of Care,Countywide PD Service - Care,Residential Care
Cambridgeshire County Council,11-Dec-20,51301486323,"-1,501.00",CONQUEST CARE HOMES PETERBOROUGH,CARE ESTABLISHMENT,Physical Disablity - Cost of Care,Countywide PD Service - Care,Residential Care
Cambridgeshire County Council,11-Dec-20,51301486323,"-1,501.00",CONQUEST CARE HOMES PETERBOROUGH,CARE ESTABLISHMENT,Physical Disablity - Cost of Care,Countywide PD Service - Care,Residential Care
Cambridgeshire County Council,11-Dec-20,51301486323,"-1,501.00",CONQUEST CARE HOMES PETERBOROUGH,CARE ESTABLISHMENT,Physical Disablity - Cost of Care,Countywide PD Service - Care,Residential Care
Cambridgeshire County Council,11-Dec-20,51301486323,"-1,501.00",CONQUEST CARE HOMES PETERBOROUGH,CARE ESTABLISHMENT,Physical Disablity - Cost of Care,Countywide PD Service - Care,Residential Care
Cambridgeshire County Council,11-Dec-20,51301486323,"-1,501.00",CONQUEST CARE HOMES PETERBOROUGH,CARE ESTABLISHMENT,Physical Disablity - Cost of Care,Countywide PD Service - Care,Residential Care
Cambridgeshire County Council,11-Dec-20,51301486323,"-1,501.00",CONQUEST CARE HOMES PETERBOROUGH,CARE ESTABLISHMENT,Physical Disablity - Cost of Care,Countywide PD Service - Care,Residential Care
Cambridgeshire County Council,11-Dec-20,51301486323,"-1,501.00",CONQUEST CARE HOMES PETERBOROUGH,CARE ESTABLISHMENT,Physical Disablity - Cost of Care,Countywide PD Service - Care,Residential Care
Cambridgeshire County Council,11-Dec-20,51301486323,"-1,501.00",CONQUEST CARE HOMES PETERBOROUGH,CARE ESTABLISHMENT,Physical Disablity - Cost of Care,Countywide PD Service - Care,Residential Care
Cambridgeshire County Council,11-Dec-20,51301486323,"-1,501.00",CONQUEST CARE HOMES PETERBOROUGH,CARE ESTABLISHMENT,Physical Disablity - Cost of Care,Countywide PD Service - Care,Residential Care
Cambridgeshire County Council,11-Dec-20,51301486323,"-1,501.00",CONQUEST CARE HOMES PETERBOROUGH,CARE ESTABLISHMENT,Physical Disablity - Cost of Care,Countywide PD Service - Care,Residential Care
Cambridgeshire County Council,11-Dec-20,51301486323,"-1,501.00",CONQUEST CARE HOMES PETERBOROUGH,CARE ESTABLISHMENT,Physical Disablity - Cost of Care,Countywide PD Service - Care,Residential Care
Cambridgeshire County Council,11-Dec-20,51301486323,"-1,501.00",CONQUEST CARE HOMES PETERBOROUGH,CARE ESTABLISHMENT,Physical Disablity - Cost of Care,Countywide PD Service - Care,Residential Care
Cambridgeshire County Council,11-Dec-20,51301486323,"-1,501.00",CONQUEST CARE HOMES PETERBOROUGH,CARE ESTABLISHMENT,Physical Disablity - Cost of Care,Countywide PD Service - Care,Residential Care
Cambridgeshire County Council,11-Dec-20,51301486323,"-1,501.00",CONQUEST CARE HOMES PETERBOROUGH,CARE ESTABLISHMENT,Physical Disablity - Cost of Care,Countywide PD Service - Care,Residential Care
Cambridgeshire County Council,11-Dec-20,51301486323,"-1,501.00",CONQUEST CARE HOMES PETERBOROUGH,CARE ESTABLISHMENT,Physical Disablity - Cost of Care,Countywide PD Service - Care,Residential Care
Cambridgeshire County Council,11-Dec-20,51301486323,"-1,501.00",CONQUEST CARE HOMES PETERBOROUGH,CARE ESTABLISHMENT,Physical Disablity - Cost of Care,Countywide PD Service - Care,Residential Care
Cambridgeshire County Council,11-Dec-20,51301486323,"-1,501.00",CONQUEST CARE HOMES PETERBOROUGH,CARE ESTABLISHMENT,Physical Disablity - Cost of Care,Countywide PD Service - Care,Residential Care
Cambridgeshire County Council,11-Dec-20,51301486323,"-1,501.00",CONQUEST CARE HOMES PETERBOROUGH,CARE ESTABLISHMENT,Physical Disablity - Cost of Care,Countywide PD Service - Care,Residential Care
Cambridgeshire County Council,11-Dec-20,51301486323,"-1,501.00",CONQUEST CARE HOMES PETERBOROUGH,CARE ESTABLISHMENT,Physical Disablity - Cost of Care,Countywide PD Service - Care,Residential Care
Cambridgeshire County Council,11-Dec-20,51301486323,"-1,501.00",CONQUEST CARE HOMES PETERBOROUGH,CARE ESTABLISHMENT,Physical Disablity - Cost of Care,Countywide PD Service - Care,Residential Care
Cambridgeshire County Council,11-Dec-20,51301486323,"-1,501.00",CONQUEST CARE HOMES PETERBOROUGH,CARE ESTABLISHMENT,Physical Disablity - Cost of Care,Countywide PD Service - Care,Residential Care
Cambridgeshire County Council,11-Dec-20,51301486323,"-1,501.00",CONQUEST CARE HOMES PETERBOROUGH,CARE ESTABLISHMENT,Physical Disablity - Cost of Care,Countywide PD Service - Care,Residential Care
Cambridgeshire County Council,11-Dec-20,51301486323,"-1,501.00",CONQUEST CARE HOMES PETERBOROUGH,CARE ESTABLISHMENT,Physical Disablity - Cost of Care,Countywide PD Service - Care,Residential Care
Cambridgeshire County Council,11-Dec-20,51301486323,"-1,501.00",CONQUEST CARE HOMES PETERBOROUGH,CARE ESTABLISHMENT,Physical Disablity - Cost of Care,Countywide PD Service - Care,Residential Care
Cambridgeshire County Council,11-Dec-20,51301486323,"-1,501.00",CONQUEST CARE HOMES PETERBOROUGH,CARE ESTABLISHMENT,Physical Disablity - Cost of Care,Countywide PD Service - Care,Residential Care
Cambridgeshire County Council,11-Dec-20,51301486323,"-1,501.00",CONQUEST CARE HOMES PETERBOROUGH,CARE ESTABLISHMENT,Physical Disablity - Cost of Care,Countywide PD Service - Care,Residential Care
Cambridgeshire County Council,11-Dec-20,51301486323,"-1,501.00",CONQUEST CARE HOMES PETERBOROUGH,CARE ESTABLISHMENT,Physical Disablity - Cost of Care,Countywide PD Service - Care,Residential Care
Cambridgeshire County Council,11-Dec-20,51301486323,"-1,501.00",CONQUEST CARE HOMES PETERBOROUGH,CARE ESTABLISHMENT,Physical Disablity - Cost of Care,Countywide PD Service - Care,Residential Care
Cambridgeshire County Council,11-Dec-20,51301486323,"-1,501.00",CONQUEST CARE HOMES PETERBOROUGH,CARE ESTABLISHMENT,Physical Disablity - Cost of Care,Countywide PD Service - Care,Residential Care
Cambridgeshire County Council,11-Dec-20,51301486323,"-1,501.00",CONQUEST CARE HOMES PETERBOROUGH,CARE ESTABLISHMENT,Physical Disablity - Cost of Care,Countywide PD Service - Care,Residential Care
Cambridgeshire County Council,11-Dec-20,51301486323,"-1,501.00",CONQUEST CARE HOMES PETERBOROUGH,CARE ESTABLISHMENT,Physical Disablity - Cost of Care,Countywide PD Service - Care,Residential Care
Cambridgeshire County Council,11-Dec-20,51301486323,"-1,501.00",CONQUEST CARE HOMES PETERBOROUGH,CARE ESTABLISHMENT,Physical Disablity - Cost of Care,Countywide PD Service - Care,Residential Care
Cambridgeshire County Council,11-Dec-20,51301486323,"-1,501.00",CONQUEST CARE HOMES PETERBOROUGH,CARE ESTABLISHMENT,Physical Disablity - Cost of Care,Countywide PD Service - Care,Residential Care
Cambridgeshire County Council,11-Dec-20,51301486323,"-1,501.00",CONQUEST CARE HOMES PETERBOROUGH,CARE ESTABLISHMENT,Physical Disablity - Cost of Care,Countywide PD Service - Care,Residential Care
Cambridgeshire County Council,11-Dec-20,51301486323,"-1,501.00",CONQUEST CARE HOMES PETERBOROUGH,CARE ESTABLISHMENT,Physical Disablity - Cost of Care,Countywide PD Service - Care,Residential Care
Cambridgeshire County Council,11-Dec-20,51301486323,"-1,501.00",CONQUEST CARE HOMES PETERBOROUGH,CARE ESTABLISHMENT,Physical Disablity - Cost of Care,Countywide PD Service - Care,Residential Care
Cambridgeshire County Council,11-Dec-20,51301486323,"-1,501.00",CONQUEST CARE HOMES PETERBOROUGH,CARE ESTABLISHMENT,Physical Disablity - Cost of Care,Countywide PD Service - Care,Residential Care
Cambridgeshire County Council,11-Dec-20,51301486323,"-1,501.00",CONQUEST CARE HOMES PETERBOROUGH,CARE ESTABLISHMENT,Physical Disablity - Cost of Care,Countywide PD Service - Care,Residential Care
Cambridgeshire County Council,11-Dec-20,51301486323,"-1,501.00",CONQUEST CARE HOMES PETERBOROUGH,CARE ESTABLISHMENT,Physical Disablity - Cost of Care,Countywide PD Service - Care,Residential Care
Cambridgeshire County Council,11-Dec-20,51301486323,"-1,501.00",CONQUEST CARE HOMES PETERBOROUGH,CARE ESTABLISHMENT,Physical Disablity - Cost of Care,Countywide PD Service - Care,Residential Care
Cambridgeshire County Council,11-Dec-20,51301486323,"-1,501.00",CONQUEST CARE HOMES PETERBOROUGH,CARE ESTABLISHMENT,Physical Disablity - Cost of Care,Countywide PD Service - Care,Residential Care
Cambridgeshire County Council,11-Dec-20,51301486323,"-1,501.00",CONQUEST CARE HOMES PETERBOROUGH,CARE ESTABLISHMENT,Physical Disablity - Cost of Care,Countywide PD Service - Care,Residential Care
Cambridgeshire County Council,11-Dec-20,51301486323,"-1,501.00",CONQUEST CARE HOMES PETERBOROUGH,CARE ESTABLISHMENT,Physical Disablity - Cost of Care,Countywide PD Service - Care,Residential Care
Cambridgeshire County Council,11-Dec-20,51301486323,"-1,501.00",CONQUEST CARE HOMES PETERBOROUGH,CARE ESTABLISHMENT,Physical Disablity - Cost of Care,Countywide PD Service - Care,Residential Care
Cambridgeshire County Council,11-Dec-20,51301486323,"-1,501.00",CONQUEST CARE HOMES PETERBOROUGH,CARE ESTABLISHMENT,Physical Disablity - Cost of Care,Countywide PD Service - Care,Residential Care
Cambridgeshire County Council,11-Dec-20,51301486323,"-1,501.00",CONQUEST CARE HOMES PETERBOROUGH,CARE ESTABLISHMENT,Physical Disablity - Cost of Care,Countywide PD Service - Care,Residential Care
Cambridgeshire County Council,11-Dec-20,51301486323,"-1,501.00",CONQUEST CARE HOMES PETERBOROUGH,CARE ESTABLISHMENT,Physical Disablity - Cost of Care,Countywide PD Service - Care,Residential Care
Cambridgeshire County Council,11-Dec-20,51301486323,"-1,501.00",CONQUEST CARE HOMES PETERBOROUGH,CARE ESTABLISHMENT,Physical Disablity - Cost of Care,Countywide PD Service - Care,Residential Care
Cambridgeshire County Council,11-Dec-20,51301486324,"-1,501.00",CONQUEST CARE HOMES PETERBOROUGH,CARE ESTABLISHMENT,Physical Disablity - Cost of Care,Countywide PD Service - Care,Residential Care
Cambridgeshire County Council,11-Dec-20,51301486324,"-1,501.00",CONQUEST CARE HOMES PETERBOROUGH,CARE ESTABLISHMENT,Physical Disablity - Cost of Care,Countywide PD Service - Care,Residential Care
Cambridgeshire County Council,11-Dec-20,51301486324,"-1,501.00",CONQUEST CARE HOMES PETERBOROUGH,CARE ESTABLISHMENT,Physical Disablity - Cost of Care,Countywide PD Service - Care,Residential Care
Cambridgeshire County Council,11-Dec-20,51301486324,"-1,501.00",CONQUEST CARE HOMES PETERBOROUGH,CARE ESTABLISHMENT,Physical Disablity - Cost of Care,Countywide PD Service - Care,Residential Care
Cambridgeshire County Council,11-Dec-20,51301486324,"-1,501.00",CONQUEST CARE HOMES PETERBOROUGH,CARE ESTABLISHMENT,Physical Disablity - Cost of Care,Countywide PD Service - Care,Residential Care
Cambridgeshire County Council,11-Dec-20,51301486324,"-1,501.00",CONQUEST CARE HOMES PETERBOROUGH,CARE ESTABLISHMENT,Physical Disablity - Cost of Care,Countywide PD Service - Care,Residential Care
Cambridgeshire County Council,11-Dec-20,51301486324,"-1,501.00",CONQUEST CARE HOMES PETERBOROUGH,CARE ESTABLISHMENT,Physical Disablity - Cost of Care,Countywide PD Service - Care,Residential Care
Cambridgeshire County Council,11-Dec-20,51301486323,"-1,501.00",CONQUEST CARE HOMES PETERBOROUGH,CARE ESTABLISHMENT,Physical Disablity - Cost of Care,Countywide PD Service - Care,Residential Care
Cambridgeshire County Council,11-Dec-20,51301486323,"-1,501.00",CONQUEST CARE HOMES PETERBOROUGH,CARE ESTABLISHMENT,Physical Disablity - Cost of Care,Countywide PD Service - Care,Residential Care
Cambridgeshire County Council,11-Dec-20,51301486323,"-1,501.00",CONQUEST CARE HOMES PETERBOROUGH,CARE ESTABLISHMENT,Physical Disablity - Cost of Care,Countywide PD Service - Care,Residential Care
Cambridgeshire County Council,11-Dec-20,51301486323,"-1,501.00",CONQUEST CARE HOMES PETERBOROUGH,CARE ESTABLISHMENT,Physical Disablity - Cost of Care,Countywide PD Service - Care,Residential Care
Cambridgeshire County Council,11-Dec-20,51301486323,"-1,501.00",CONQUEST CARE HOMES PETERBOROUGH,CARE ESTABLISHMENT,Physical Disablity - Cost of Care,Countywide PD Service - Care,Residential Care
Cambridgeshire County Council,11-Dec-20,51301486323,"-1,501.00",CONQUEST CARE HOMES PETERBOROUGH,CARE ESTABLISHMENT,Physical Disablity - Cost of Care,Countywide PD Service - Care,Residential Care
Cambridgeshire County Council,11-Dec-20,51301486323,"-1,501.00",CONQUEST CARE HOMES PETERBOROUGH,CARE ESTABLISHMENT,Physical Disablity - Cost of Care,Countywide PD Service - Care,Residential Care
Cambridgeshire County Council,11-Dec-20,51301486323,"-1,501.00",CONQUEST CARE HOMES PETERBOROUGH,CARE ESTABLISHMENT,Physical Disablity - Cost of Care,Countywide PD Service - Care,Residential Care
Cambridgeshire County Council,11-Dec-20,51301486323,"-1,501.00",CONQUEST CARE HOMES PETERBOROUGH,CARE ESTABLISHMENT,Physical Disablity - Cost of Care,Countywide PD Service - Care,Residential Care
Cambridgeshire County Council,11-Dec-20,51301486323,"-1,501.00",CONQUEST CARE HOMES PETERBOROUGH,CARE ESTABLISHMENT,Physical Disablity - Cost of Care,Countywide PD Service - Care,Residential Care
Cambridgeshire County Council,11-Dec-20,51301486323,"-1,501.00",CONQUEST CARE HOMES PETERBOROUGH,CARE ESTABLISHMENT,Physical Disablity - Cost of Care,Countywide PD Service - Care,Residential Care
Cambridgeshire County Council,11-Dec-20,51301486323,"-1,501.00",CONQUEST CARE HOMES PETERBOROUGH,CARE ESTABLISHMENT,Physical Disablity - Cost of Care,Countywide PD Service - Care,Residential Care
Cambridgeshire County Council,11-Dec-20,51301486323,"-1,501.00",CONQUEST CARE HOMES PETERBOROUGH,CARE ESTABLISHMENT,Physical Disablity - Cost of Care,Countywide PD Service - Care,Residential Care
Cambridgeshire County Council,11-Dec-20,51301486323,"-1,501.00",CONQUEST CARE HOMES PETERBOROUGH,CARE ESTABLISHMENT,Physical Disablity - Cost of Care,Countywide PD Service - Care,Residential Care
Cambridgeshire County Council,11-Dec-20,51301486323,"-1,501.00",CONQUEST CARE HOMES PETERBOROUGH,CARE ESTABLISHMENT,Physical Disablity - Cost of Care,Countywide PD Service - Care,Residential Care
Cambridgeshire County Council,23-Dec-20,51301496237,"-1,478.85",Redacted Personal Data ,INDIVIDUAL,Physical Disablity - Cost of Care,Countywide PD Service - Care,Direct Payments
Cambridgeshire County Council,11-Dec-20,51301486323,"-1,471.71",CONQUEST CARE HOMES PETERBOROUGH,CARE ESTABLISHMENT,Physical Disablity - Cost of Care,Countywide PD Service - Care,Residential Care
Cambridgeshire County Council,11-Dec-20,51301486323,"-1,471.71",CONQUEST CARE HOMES PETERBOROUGH,CARE ESTABLISHMENT,Physical Disablity - Cost of Care,Countywide PD Service - Care,Residential Care
Cambridgeshire County Council,11-Dec-20,51301486323,"-1,471.71",CONQUEST CARE HOMES PETERBOROUGH,CARE ESTABLISHMENT,Physical Disablity - Cost of Care,Countywide PD Service - Care,Residential Care
Cambridgeshire County Council,11-Dec-20,51301486323,"-1,471.71",CONQUEST CARE HOMES PETERBOROUGH,CARE ESTABLISHMENT,Physical Disablity - Cost of Care,Countywide PD Service - Care,Residential Care
Cambridgeshire County Council,11-Dec-20,51301486323,"-1,471.71",CONQUEST CARE HOMES PETERBOROUGH,CARE ESTABLISHMENT,Physical Disablity - Cost of Care,Countywide PD Service - Care,Residential Care
Cambridgeshire County Council,11-Dec-20,51301486323,"-1,471.71",CONQUEST CARE HOMES PETERBOROUGH,CARE ESTABLISHMENT,Physical Disablity - Cost of Care,Countywide PD Service - Care,Residential Care
Cambridgeshire County Council,11-Dec-20,51301486323,"-1,471.71",CONQUEST CARE HOMES PETERBOROUGH,CARE ESTABLISHMENT,Physical Disablity - Cost of Care,Countywide PD Service - Care,Residential Care
Cambridgeshire County Council,11-Dec-20,51301486323,"-1,471.71",CONQUEST CARE HOMES PETERBOROUGH,CARE ESTABLISHMENT,Physical Disablity - Cost of Care,Countywide PD Service - Care,Residential Care
Cambridgeshire County Council,11-Dec-20,51301486323,"-1,471.71",CONQUEST CARE HOMES PETERBOROUGH,CARE ESTABLISHMENT,Physical Disablity - Cost of Care,Countywide PD Service - Care,Residential Care
Cambridgeshire County Council,11-Dec-20,51301486323,"-1,471.71",CONQUEST CARE HOMES PETERBOROUGH,CARE ESTABLISHMENT,Physical Disablity - Cost of Care,Countywide PD Service - Care,Residential Care
Cambridgeshire County Council,11-Dec-20,51301486323,"-1,471.71",CONQUEST CARE HOMES PETERBOROUGH,CARE ESTABLISHMENT,Physical Disablity - Cost of Care,Countywide PD Service - Care,Residential Care
Cambridgeshire County Council,11-Dec-20,51301486323,"-1,471.71",CONQUEST CARE HOMES PETERBOROUGH,CARE ESTABLISHMENT,Physical Disablity - Cost of Care,Countywide PD Service - Care,Residential Care
Cambridgeshire County Council,11-Dec-20,51301486323,"-1,471.71",CONQUEST CARE HOMES PETERBOROUGH,CARE ESTABLISHMENT,Physical Disablity - Cost of Care,Countywide PD Service - Care,Residential Care
Cambridgeshire County Council,11-Dec-20,51301486323,"-1,471.71",CONQUEST CARE HOMES PETERBOROUGH,CARE ESTABLISHMENT,Physical Disablity - Cost of Care,Countywide PD Service - Care,Residential Care
Cambridgeshire County Council,11-Dec-20,51301486323,"-1,471.71",CONQUEST CARE HOMES PETERBOROUGH,CARE ESTABLISHMENT,Physical Disablity - Cost of Care,Countywide PD Service - Care,Residential Care
Cambridgeshire County Council,11-Dec-20,51301486323,"-1,471.71",CONQUEST CARE HOMES PETERBOROUGH,CARE ESTABLISHMENT,Physical Disablity - Cost of Care,Countywide PD Service - Care,Residential Care
Cambridgeshire County Council,11-Dec-20,51301486323,"-1,471.71",CONQUEST CARE HOMES PETERBOROUGH,CARE ESTABLISHMENT,Physical Disablity - Cost of Care,Countywide PD Service - Care,Residential Care
Cambridgeshire County Council,11-Dec-20,51301486323,"-1,471.71",CONQUEST CARE HOMES PETERBOROUGH,CARE ESTABLISHMENT,Physical Disablity - Cost of Care,Countywide PD Service - Care,Residential Care
Cambridgeshire County Council,11-Dec-20,51301486323,"-1,471.71",CONQUEST CARE HOMES PETERBOROUGH,CARE ESTABLISHMENT,Physical Disablity - Cost of Care,Countywide PD Service - Care,Residential Care
Cambridgeshire County Council,11-Dec-20,51301486323,"-1,471.71",CONQUEST CARE HOMES PETERBOROUGH,CARE ESTABLISHMENT,Physical Disablity - Cost of Care,Countywide PD Service - Care,Residential Care
Cambridgeshire County Council,11-Dec-20,51301486323,"-1,471.71",CONQUEST CARE HOMES PETERBOROUGH,CARE ESTABLISHMENT,Physical Disablity - Cost of Care,Countywide PD Service - Care,Residential Care
Cambridgeshire County Council,11-Dec-20,51301486323,"-1,471.71",CONQUEST CARE HOMES PETERBOROUGH,CARE ESTABLISHMENT,Physical Disablity - Cost of Care,Countywide PD Service - Care,Residential Care
Cambridgeshire County Council,11-Dec-20,51301486323,"-1,471.71",CONQUEST CARE HOMES PETERBOROUGH,CARE ESTABLISHMENT,Physical Disablity - Cost of Care,Countywide PD Service - Care,Residential Care
Cambridgeshire County Council,11-Dec-20,51301486323,"-1,471.71",CONQUEST CARE HOMES PETERBOROUGH,CARE ESTABLISHMENT,Physical Disablity - Cost of Care,Countywide PD Service - Care,Residential Care
Cambridgeshire County Council,18-Dec-20,51301489265,"-1,400.00",WOODLANDS CARE CENTRE,CARE ESTABLISHMENT,OP - City & South Locality - Cost of Care,Older People - City & South - Care,Nursing Care
Cambridgeshire County Council,18-Dec-20,51301489265,"-1,400.00",WOODLANDS CARE CENTRE,CARE ESTABLISHMENT,OP - City & South Locality - Cost of Care,Older People - City & South - Care,Nursing Care
Cambridgeshire County Council,18-Dec-20,51301489265,"-1,400.00",WOODLANDS CARE CENTRE,CARE ESTABLISHMENT,OP - City & South Locality - Cost of Care,Older People - City & South - Care,Nursing Care
Cambridgeshire County Council,18-Dec-20,51301489265,"-1,400.00",WOODLANDS CARE CENTRE,CARE ESTABLISHMENT,OP - City & South Locality - Cost of Care,Older People - City & South - Care,Nursing Care
Cambridgeshire County Council,18-Dec-20,51301489265,"-1,400.00",WOODLANDS CARE CENTRE,CARE ESTABLISHMENT,OP - City & South Locality - Cost of Care,Older People - City & South - Care,Nursing Care
Cambridgeshire County Council,18-Dec-20,51301489265,"-1,400.00",WOODLANDS CARE CENTRE,CARE ESTABLISHMENT,OP - City & South Locality - Cost of Care,Older People - City & South - Care,Nursing Care
Cambridgeshire County Council,18-Dec-20,51301489265,"-1,400.00",WOODLANDS CARE CENTRE,CARE ESTABLISHMENT,OP - City & South Locality - Cost of Care,Older People - City & South - Care,Nursing Care
Cambridgeshire County Council,18-Dec-20,51301489269,"-1,400.00",WOODLANDS CARE CENTRE,CARE ESTABLISHMENT,OP - City & South Locality - Cost of Care,Older People - City & South - Care,Nursing Care
Cambridgeshire County Council,18-Dec-20,51301489269,"-1,400.00",WOODLANDS CARE CENTRE,CARE ESTABLISHMENT,OP - City & South Locality - Cost of Care,Older People - City & South - Care,Nursing Care
Cambridgeshire County Council,18-Dec-20,51301489269,"-1,400.00",WOODLANDS CARE CENTRE,CARE ESTABLISHMENT,OP - City & South Locality - Cost of Care,Older People - City & South - Care,Nursing Care
Cambridgeshire County Council,18-Dec-20,51301489269,"-1,400.00",WOODLANDS CARE CENTRE,CARE ESTABLISHMENT,OP - City & South Locality - Cost of Care,Older People - City & South - Care,Nursing Care
Cambridgeshire County Council,18-Dec-20,51301489269,"-1,400.00",WOODLANDS CARE CENTRE,CARE ESTABLISHMENT,OP - City & South Locality - Cost of Care,Older People - City & South - Care,Nursing Care
Cambridgeshire County Council,18-Dec-20,51301491209,"-1,400.00",FARRINGTON CARE HOMES LTD T/A WOODLANDS RESIDENTIAL CARE HOME,CARE ESTABLISHMENT,OP - City & South Locality - Cost of Care,Older People - City & South - Care,Rehabilitation And Respite Care
Cambridgeshire County Council,24-Dec-20,51301496806,"-1,389.86",The Granary,COMPANY,Autism and Adult Support - Cost of Care,Autism and Adult Support - Care,Residential Care
Cambridgeshire County Council,24-Dec-20,51301496806,"-1,389.86",The Granary,COMPANY,Autism and Adult Support - Cost of Care,Autism and Adult Support - Care,Residential Care
Cambridgeshire County Council,24-Dec-20,51301496806,"-1,389.86",The Granary,COMPANY,Autism and Adult Support - Cost of Care,Autism and Adult Support - Care,Residential Care
Cambridgeshire County Council,24-Dec-20,51301496806,"-1,389.86",The Granary,COMPANY,Autism and Adult Support - Cost of Care,Autism and Adult Support - Care,Residential Care
Cambridgeshire County Council,24-Dec-20,51301496806,"-1,389.86",The Granary,COMPANY,Autism and Adult Support - Cost of Care,Autism and Adult Support - Care,Residential Care
Cambridgeshire County Council,24-Dec-20,51301496806,"-1,389.86",The Granary,COMPANY,Autism and Adult Support - Cost of Care,Autism and Adult Support - Care,Residential Care
Cambridgeshire County Council,24-Dec-20,51301496806,"-1,389.86",The Granary,COMPANY,Autism and Adult Support - Cost of Care,Autism and Adult Support - Care,Residential Care
Cambridgeshire County Council,24-Dec-20,51301496806,"-1,389.86",The Granary,COMPANY,Autism and Adult Support - Cost of Care,Autism and Adult Support - Care,Residential Care
Cambridgeshire County Council,24-Dec-20,51301496806,"-1,389.86",The Granary,COMPANY,Autism and Adult Support - Cost of Care,Autism and Adult Support - Care,Residential Care
Cambridgeshire County Council,24-Dec-20,51301496806,"-1,389.86",The Granary,COMPANY,Autism and Adult Support - Cost of Care,Autism and Adult Support - Care,Residential Care
Cambridgeshire County Council,24-Dec-20,51301496806,"-1,389.86",The Granary,COMPANY,Autism and Adult Support - Cost of Care,Autism and Adult Support - Care,Residential Care
Cambridgeshire County Council,24-Dec-20,51301496806,"-1,389.86",The Granary,COMPANY,Autism and Adult Support - Cost of Care,Autism and Adult Support - Care,Residential Care
Cambridgeshire County Council,24-Dec-20,51301496806,"-1,389.86",The Granary,COMPANY,Autism and Adult Support - Cost of Care,Autism and Adult Support - Care,Residential Care
Cambridgeshire County Council,24-Dec-20,51301496806,"-1,389.86",The Granary,COMPANY,Autism and Adult Support - Cost of Care,Autism and Adult Support - Care,Residential Care
Cambridgeshire County Council,24-Dec-20,51301496806,"-1,389.86",The Granary,COMPANY,Autism and Adult Support - Cost of Care,Autism and Adult Support - Care,Residential Care
Cambridgeshire County Council,24-Dec-20,51301496806,"-1,389.86",The Granary,COMPANY,Autism and Adult Support - Cost of Care,Autism and Adult Support - Care,Residential Care
Cambridgeshire County Council,24-Dec-20,51301496806,"-1,389.86",The Granary,COMPANY,Autism and Adult Support - Cost of Care,Autism and Adult Support - Care,Residential Care
Cambridgeshire County Council,24-Dec-20,51301496806,"-1,389.86",The Granary,COMPANY,Autism and Adult Support - Cost of Care,Autism and Adult Support - Care,Residential Care
Cambridgeshire County Council,24-Dec-20,51301496806,"-1,389.86",The Granary,COMPANY,Autism and Adult Support - Cost of Care,Autism and Adult Support - Care,Residential Care
Cambridgeshire County Council,24-Dec-20,51301496806,"-1,389.86",The Granary,COMPANY,Autism and Adult Support - Cost of Care,Autism and Adult Support - Care,Residential Care
Cambridgeshire County Council,24-Dec-20,51301496806,"-1,389.86",The Granary,COMPANY,Autism and Adult Support - Cost of Care,Autism and Adult Support - Care,Residential Care
Cambridgeshire County Council,07-Dec-20,51301482313,"-1,354.61",TURNING POINT SERVICES LTD,CARE ESTABLISHMENT,LD - Fenland Locality - Cost of Care,LD - Fenland  - Care,Homecare
Cambridgeshire County Council,23-Dec-20,51301496439,"-1,354.26",Keys PCE Ltd,CARE ESTABLISHMENT,LAC Placements,Placements - residential homes,Agency Placements - Out of  County
Cambridgeshire County Council,23-Dec-20,51301496442,"-1,354.26",Keys PCE Ltd,CARE ESTABLISHMENT,LAC Placements,Placements - residential homes,Agency Placements - Out of  County
Cambridgeshire County Council,23-Dec-20,51301496446,"-1,354.26",Keys PCE Ltd,CARE ESTABLISHMENT,LAC Placements,Placements - residential homes,Agency Placements - In County
Cambridgeshire County Council,18-Dec-20,51301482227,"-1,331.21",ALDERTON HOUSE,CARE ESTABLISHMENT,LD - Young Adults Team,LD - Young Adults - Care,Residential Care
Cambridgeshire County Council,18-Dec-20,51301491746,"-1,323.02",BROAD OAKS VCT LTD,CARE ESTABLISHMENT,OP - Hunts Locality - Cost of Care,Hunts OP Team - Care,Residential Care
Cambridgeshire County Council,18-Dec-20,51301491746,"-1,323.02",BROAD OAKS VCT LTD,CARE ESTABLISHMENT,OP - Hunts Locality - Cost of Care,Hunts OP Team - Care,Residential Care
Cambridgeshire County Council,18-Dec-20,51301491746,"-1,323.02",BROAD OAKS VCT LTD,CARE ESTABLISHMENT,OP - Hunts Locality - Cost of Care,Hunts OP Team - Care,Residential Care
Cambridgeshire County Council,18-Dec-20,51301491746,"-1,323.02",BROAD OAKS VCT LTD,CARE ESTABLISHMENT,OP - Hunts Locality - Cost of Care,Hunts OP Team - Care,Residential Care
Cambridgeshire County Council,18-Dec-20,51301491746,"-1,323.02",BROAD OAKS VCT LTD,CARE ESTABLISHMENT,OP - Hunts Locality - Cost of Care,Hunts OP Team - Care,Residential Care
Cambridgeshire County Council,18-Dec-20,51301491746,"-1,323.02",BROAD OAKS VCT LTD,CARE ESTABLISHMENT,OP - Hunts Locality - Cost of Care,Hunts OP Team - Care,Residential Care
Cambridgeshire County Council,18-Dec-20,51301491746,"-1,323.02",BROAD OAKS VCT LTD,CARE ESTABLISHMENT,OP - Hunts Locality - Cost of Care,Hunts OP Team - Care,Residential Care
Cambridgeshire County Council,18-Dec-20,51301491746,"-1,323.02",BROAD OAKS VCT LTD,CARE ESTABLISHMENT,OP - Hunts Locality - Cost of Care,Hunts OP Team - Care,Residential Care
Cambridgeshire County Council,18-Dec-20,51301491746,"-1,323.02",BROAD OAKS VCT LTD,CARE ESTABLISHMENT,OP - Hunts Locality - Cost of Care,Hunts OP Team - Care,Residential Care
Cambridgeshire County Council,18-Dec-20,51301491746,"-1,323.02",BROAD OAKS VCT LTD,CARE ESTABLISHMENT,OP - Hunts Locality - Cost of Care,Hunts OP Team - Care,Residential Care
Cambridgeshire County Council,18-Dec-20,51301491746,"-1,323.02",BROAD OAKS VCT LTD,CARE ESTABLISHMENT,OP - Hunts Locality - Cost of Care,Hunts OP Team - Care,Residential Care
Cambridgeshire County Council,18-Dec-20,51301491746,"-1,323.02",BROAD OAKS VCT LTD,CARE ESTABLISHMENT,OP - Hunts Locality - Cost of Care,Hunts OP Team - Care,Residential Care
Cambridgeshire County Council,18-Dec-20,51301491746,"-1,323.02",BROAD OAKS VCT LTD,CARE ESTABLISHMENT,OP - Hunts Locality - Cost of Care,Hunts OP Team - Care,Residential Care
Cambridgeshire County Council,18-Dec-20,51301491746,"-1,323.02",BROAD OAKS VCT LTD,CARE ESTABLISHMENT,OP - Hunts Locality - Cost of Care,Hunts OP Team - Care,Residential Care
Cambridgeshire County Council,18-Dec-20,51301491746,"-1,323.02",BROAD OAKS VCT LTD,CARE ESTABLISHMENT,OP - Hunts Locality - Cost of Care,Hunts OP Team - Care,Residential Care
Cambridgeshire County Council,18-Dec-20,51301491746,"-1,323.02",BROAD OAKS VCT LTD,CARE ESTABLISHMENT,OP - Hunts Locality - Cost of Care,Hunts OP Team - Care,Residential Care
Cambridgeshire County Council,18-Dec-20,51301491746,"-1,323.02",BROAD OAKS VCT LTD,CARE ESTABLISHMENT,OP - Hunts Locality - Cost of Care,Hunts OP Team - Care,Residential Care
Cambridgeshire County Council,18-Dec-20,51301491746,"-1,323.02",BROAD OAKS VCT LTD,CARE ESTABLISHMENT,OP - Hunts Locality - Cost of Care,Hunts OP Team - Care,Residential Care
Cambridgeshire County Council,18-Dec-20,51301491746,"-1,323.02",BROAD OAKS VCT LTD,CARE ESTABLISHMENT,OP - Hunts Locality - Cost of Care,Hunts OP Team - Care,Residential Care
Cambridgeshire County Council,18-Dec-20,51301491746,"-1,323.02",BROAD OAKS VCT LTD,CARE ESTABLISHMENT,OP - Hunts Locality - Cost of Care,Hunts OP Team - Care,Residential Care
Cambridgeshire County Council,18-Dec-20,51301492780,"-1,316.08",ETHELDRED HOUSE,CARE ESTABLISHMENT,OP - City & South Locality - Cost of Care,Older People - City & South - Care,Nursing Care
Cambridgeshire County Council,18-Dec-20,51301492780,"-1,316.08",ETHELDRED HOUSE,CARE ESTABLISHMENT,OP - City & South Locality - Cost of Care,Older People - City & South - Care,Nursing Care
Cambridgeshire County Council,18-Dec-20,51301492780,"-1,316.08",ETHELDRED HOUSE,CARE ESTABLISHMENT,OP - City & South Locality - Cost of Care,Older People - City & South - Care,Nursing Care
Cambridgeshire County Council,18-Dec-20,51301492780,"-1,316.08",ETHELDRED HOUSE,CARE ESTABLISHMENT,OP - City & South Locality - Cost of Care,Older People - City & South - Care,Nursing Care
Cambridgeshire County Council,18-Dec-20,51301492780,"-1,316.08",ETHELDRED HOUSE,CARE ESTABLISHMENT,OP - City & South Locality - Cost of Care,Older People - City & South - Care,Nursing Care
Cambridgeshire County Council,18-Dec-20,51301492780,"-1,316.08",ETHELDRED HOUSE,CARE ESTABLISHMENT,OP - City & South Locality - Cost of Care,Older People - City & South - Care,Nursing Care
Cambridgeshire County Council,18-Dec-20,51301492780,"-1,316.08",ETHELDRED HOUSE,CARE ESTABLISHMENT,OP - City & South Locality - Cost of Care,Older People - City & South - Care,Nursing Care
Cambridgeshire County Council,18-Dec-20,51301492780,"-1,316.08",ETHELDRED HOUSE,CARE ESTABLISHMENT,OP - City & South Locality - Cost of Care,Older People - City & South - Care,Nursing Care
Cambridgeshire County Council,18-Dec-20,51301492780,"-1,316.08",ETHELDRED HOUSE,CARE ESTABLISHMENT,OP - City & South Locality - Cost of Care,Older People - City & South - Care,Nursing Care
Cambridgeshire County Council,18-Dec-20,51301492780,"-1,316.08",ETHELDRED HOUSE,CARE ESTABLISHMENT,OP - City & South Locality - Cost of Care,Older People - City & South - Care,Nursing Care
Cambridgeshire County Council,18-Dec-20,51301491207,"-1,300.00",LONGUEVILLE COURT,CARE ESTABLISHMENT,Physical Disablity - Cost of Care,Countywide PD Service - Care,Short Term Other
Cambridgeshire County Council,11-Dec-20,51301486324,"-1,286.57",CONQUEST CARE HOMES PETERBOROUGH,CARE ESTABLISHMENT,Physical Disablity - Cost of Care,Countywide PD Service - Care,Residential Care
Cambridgeshire County Council,11-Dec-20,51301486323,"-1,286.57",CONQUEST CARE HOMES PETERBOROUGH,CARE ESTABLISHMENT,Physical Disablity - Cost of Care,Countywide PD Service - Care,Residential Care
Cambridgeshire County Council,18-Dec-20,51301489285,"-1,266.08",WOODLANDS CARE CENTRE,CARE ESTABLISHMENT,OP - Hunts Locality - Cost of Care,Hunts OP Team - Care,Nursing Care
Cambridgeshire County Council,18-Dec-20,51301489285,"-1,266.08",WOODLANDS CARE CENTRE,CARE ESTABLISHMENT,OP - Hunts Locality - Cost of Care,Hunts OP Team - Care,Nursing Care
Cambridgeshire County Council,18-Dec-20,51301489285,"-1,266.08",WOODLANDS CARE CENTRE,CARE ESTABLISHMENT,OP - Hunts Locality - Cost of Care,Hunts OP Team - Care,Nursing Care
Cambridgeshire County Council,18-Dec-20,51301489285,"-1,266.08",WOODLANDS CARE CENTRE,CARE ESTABLISHMENT,OP - Hunts Locality - Cost of Care,Hunts OP Team - Care,Nursing Care
Cambridgeshire County Council,18-Dec-20,51301489285,"-1,266.08",WOODLANDS CARE CENTRE,CARE ESTABLISHMENT,OP - Hunts Locality - Cost of Care,Hunts OP Team - Care,Nursing Care
Cambridgeshire County Council,18-Dec-20,51301489285,"-1,266.08",WOODLANDS CARE CENTRE,CARE ESTABLISHMENT,OP - Hunts Locality - Cost of Care,Hunts OP Team - Care,Nursing Care
Cambridgeshire County Council,18-Dec-20,51301492892,"-1,258.62",Accomplish Group Support Limited,CARE ESTABLISHMENT,LD - Hunts Locality - Cost of Care,LD - Huntingdonshire - Care,Residential Care
Cambridgeshire County Council,18-Dec-20,51301492892,"-1,258.62",Accomplish Group Support Limited,CARE ESTABLISHMENT,LD - Hunts Locality - Cost of Care,LD - Huntingdonshire - Care,Residential Care
Cambridgeshire County Council,18-Dec-20,51301492892,"-1,258.62",Accomplish Group Support Limited,CARE ESTABLISHMENT,LD - Hunts Locality - Cost of Care,LD - Huntingdonshire - Care,Residential Care
Cambridgeshire County Council,18-Dec-20,51301492892,"-1,258.62",Accomplish Group Support Limited,CARE ESTABLISHMENT,LD - Hunts Locality - Cost of Care,LD - Huntingdonshire - Care,Residential Care
Cambridgeshire County Council,18-Dec-20,51301492892,"-1,258.62",Accomplish Group Support Limited,CARE ESTABLISHMENT,LD - Hunts Locality - Cost of Care,LD - Huntingdonshire - Care,Residential Care
Cambridgeshire County Council,18-Dec-20,51301492892,"-1,258.62",Accomplish Group Support Limited,CARE ESTABLISHMENT,LD - Hunts Locality - Cost of Care,LD - Huntingdonshire - Care,Residential Care
Cambridgeshire County Council,18-Dec-20,51301492892,"-1,258.62",Accomplish Group Support Limited,CARE ESTABLISHMENT,LD - Hunts Locality - Cost of Care,LD - Huntingdonshire - Care,Residential Care
Cambridgeshire County Council,18-Dec-20,51301492892,"-1,258.62",Accomplish Group Support Limited,CARE ESTABLISHMENT,LD - Hunts Locality - Cost of Care,LD - Huntingdonshire - Care,Residential Care
Cambridgeshire County Council,18-Dec-20,51301492892,"-1,258.62",Accomplish Group Support Limited,CARE ESTABLISHMENT,LD - Hunts Locality - Cost of Care,LD - Huntingdonshire - Care,Residential Care
Cambridgeshire County Council,18-Dec-20,51301492892,"-1,258.62",Accomplish Group Support Limited,CARE ESTABLISHMENT,LD - Hunts Locality - Cost of Care,LD - Huntingdonshire - Care,Residential Care
Cambridgeshire County Council,18-Dec-20,51301492892,"-1,258.62",Accomplish Group Support Limited,CARE ESTABLISHMENT,LD - Hunts Locality - Cost of Care,LD - Huntingdonshire - Care,Residential Care
Cambridgeshire County Council,18-Dec-20,51301492892,"-1,258.62",Accomplish Group Support Limited,CARE ESTABLISHMENT,LD - Hunts Locality - Cost of Care,LD - Huntingdonshire - Care,Residential Care
Cambridgeshire County Council,18-Dec-20,51301492892,"-1,258.62",Accomplish Group Support Limited,CARE ESTABLISHMENT,LD - Hunts Locality - Cost of Care,LD - Huntingdonshire - Care,Residential Care
Cambridgeshire County Council,18-Dec-20,51301492892,"-1,258.62",Accomplish Group Support Limited,CARE ESTABLISHMENT,LD - Hunts Locality - Cost of Care,LD - Huntingdonshire - Care,Residential Care
Cambridgeshire County Council,18-Dec-20,51301492892,"-1,258.62",Accomplish Group Support Limited,CARE ESTABLISHMENT,LD - Hunts Locality - Cost of Care,LD - Huntingdonshire - Care,Residential Care
Cambridgeshire County Council,18-Dec-20,51301492892,"-1,258.62",Accomplish Group Support Limited,CARE ESTABLISHMENT,LD - Hunts Locality - Cost of Care,LD - Huntingdonshire - Care,Residential Care
Cambridgeshire County Council,18-Dec-20,51301492892,"-1,258.62",Accomplish Group Support Limited,CARE ESTABLISHMENT,LD - Hunts Locality - Cost of Care,LD - Huntingdonshire - Care,Residential Care
Cambridgeshire County Council,18-Dec-20,51301492892,"-1,258.62",Accomplish Group Support Limited,CARE ESTABLISHMENT,LD - Hunts Locality - Cost of Care,LD - Huntingdonshire - Care,Residential Care
Cambridgeshire County Council,18-Dec-20,51301492892,"-1,258.62",Accomplish Group Support Limited,CARE ESTABLISHMENT,LD - Hunts Locality - Cost of Care,LD - Huntingdonshire - Care,Residential Care
Cambridgeshire County Council,18-Dec-20,51301492892,"-1,258.62",Accomplish Group Support Limited,CARE ESTABLISHMENT,LD - Hunts Locality - Cost of Care,LD - Huntingdonshire - Care,Residential Care
Cambridgeshire County Council,18-Dec-20,51301492892,"-1,258.62",Accomplish Group Support Limited,CARE ESTABLISHMENT,LD - Hunts Locality - Cost of Care,LD - Huntingdonshire - Care,Residential Care
Cambridgeshire County Council,18-Dec-20,51301492892,"-1,258.62",Accomplish Group Support Limited,CARE ESTABLISHMENT,LD - Hunts Locality - Cost of Care,LD - Huntingdonshire - Care,Residential Care
Cambridgeshire County Council,18-Dec-20,51301492892,"-1,258.62",Accomplish Group Support Limited,CARE ESTABLISHMENT,LD - Hunts Locality - Cost of Care,LD - Huntingdonshire - Care,Residential Care
Cambridgeshire County Council,18-Dec-20,51301491210,"-1,246.50",Next Steps Ltd,COMPANY,LD - Young Adults Team,LD - Young Adults - Care,Supported Living
Cambridgeshire County Council,18-Dec-20,51301491210,"-1,246.50",Next Steps Ltd,COMPANY,LD - Young Adults Team,LD - Young Adults - Care,Supported Living
Cambridgeshire County Council,18-Dec-20,51301489226,"-1,234.44",BARCHESTER HEALTHCARE HOMES LTD,CARE ESTABLISHMENT,OPMH - City & South,Older People Mental Health E Cambs,Nursing Care
Cambridgeshire County Council,18-Dec-20,51301489226,"-1,234.44",BARCHESTER HEALTHCARE HOMES LTD,CARE ESTABLISHMENT,OPMH - City & South,Older People Mental Health E Cambs,Nursing Care
Cambridgeshire County Council,18-Dec-20,51301489226,"-1,234.44",BARCHESTER HEALTHCARE HOMES LTD,CARE ESTABLISHMENT,OPMH - City & South,Older People Mental Health E Cambs,Nursing Care
Cambridgeshire County Council,18-Dec-20,51301489226,"-1,234.44",BARCHESTER HEALTHCARE HOMES LTD,CARE ESTABLISHMENT,OPMH - City & South,Older People Mental Health E Cambs,Nursing Care
Cambridgeshire County Council,18-Dec-20,51301489226,"-1,234.44",BARCHESTER HEALTHCARE HOMES LTD,CARE ESTABLISHMENT,OPMH - City & South,Older People Mental Health E Cambs,Nursing Care
Cambridgeshire County Council,18-Dec-20,51301489226,"-1,234.44",BARCHESTER HEALTHCARE HOMES LTD,CARE ESTABLISHMENT,OPMH - City & South,Older People Mental Health E Cambs,Nursing Care
Cambridgeshire County Council,18-Dec-20,51301489226,"-1,234.44",BARCHESTER HEALTHCARE HOMES LTD,CARE ESTABLISHMENT,OPMH - City & South,Older People Mental Health E Cambs,Nursing Care
Cambridgeshire County Council,18-Dec-20,51301489226,"-1,234.44",BARCHESTER HEALTHCARE HOMES LTD,CARE ESTABLISHMENT,OPMH - City & South,Older People Mental Health E Cambs,Nursing Care
Cambridgeshire County Council,18-Dec-20,51301489226,"-1,234.44",BARCHESTER HEALTHCARE HOMES LTD,CARE ESTABLISHMENT,OPMH - City & South,Older People Mental Health E Cambs,Nursing Care
Cambridgeshire County Council,18-Dec-20,51301489226,"-1,234.44",BARCHESTER HEALTHCARE HOMES LTD,CARE ESTABLISHMENT,OPMH - City & South,Older People Mental Health E Cambs,Nursing Care
Cambridgeshire County Council,18-Dec-20,51301489226,"-1,234.44",BARCHESTER HEALTHCARE HOMES LTD,CARE ESTABLISHMENT,OPMH - City & South,Older People Mental Health E Cambs,Nursing Care
Cambridgeshire County Council,18-Dec-20,51301489226,"-1,234.44",BARCHESTER HEALTHCARE HOMES LTD,CARE ESTABLISHMENT,OPMH - City & South,Older People Mental Health E Cambs,Nursing Care
Cambridgeshire County Council,18-Dec-20,51301489226,"-1,234.44",BARCHESTER HEALTHCARE HOMES LTD,CARE ESTABLISHMENT,OPMH - City & South,Older People Mental Health E Cambs,Nursing Care
Cambridgeshire County Council,18-Dec-20,51301489226,"-1,234.44",BARCHESTER HEALTHCARE HOMES LTD,CARE ESTABLISHMENT,OPMH - City & South,Older People Mental Health E Cambs,Nursing Care
Cambridgeshire County Council,18-Dec-20,51301489226,"-1,234.44",BARCHESTER HEALTHCARE HOMES LTD,CARE ESTABLISHMENT,OPMH - City & South,Older People Mental Health E Cambs,Nursing Care
Cambridgeshire County Council,11-Dec-20,51301486324,"-1,230.00",CONQUEST CARE HOMES PETERBOROUGH,CARE ESTABLISHMENT,Physical Disablity - Cost of Care,Countywide PD Service - Care,Residential Care
Cambridgeshire County Council,11-Dec-20,51301486324,"-1,230.00",CONQUEST CARE HOMES PETERBOROUGH,CARE ESTABLISHMENT,Physical Disablity - Cost of Care,Countywide PD Service - Care,Residential Care
Cambridgeshire County Council,11-Dec-20,51301486324,"-1,230.00",CONQUEST CARE HOMES PETERBOROUGH,CARE ESTABLISHMENT,Physical Disablity - Cost of Care,Countywide PD Service - Care,Residential Care
Cambridgeshire County Council,11-Dec-20,51301486324,"-1,230.00",CONQUEST CARE HOMES PETERBOROUGH,CARE ESTABLISHMENT,Physical Disablity - Cost of Care,Countywide PD Service - Care,Residential Care
Cambridgeshire County Council,11-Dec-20,51301486324,"-1,230.00",CONQUEST CARE HOMES PETERBOROUGH,CARE ESTABLISHMENT,Physical Disablity - Cost of Care,Countywide PD Service - Care,Residential Care
Cambridgeshire County Council,11-Dec-20,51301486324,"-1,230.00",CONQUEST CARE HOMES PETERBOROUGH,CARE ESTABLISHMENT,Physical Disablity - Cost of Care,Countywide PD Service - Care,Residential Care
Cambridgeshire County Council,11-Dec-20,51301486324,"-1,230.00",CONQUEST CARE HOMES PETERBOROUGH,CARE ESTABLISHMENT,Physical Disablity - Cost of Care,Countywide PD Service - Care,Residential Care
Cambridgeshire County Council,11-Dec-20,51301486324,"-1,230.00",CONQUEST CARE HOMES PETERBOROUGH,CARE ESTABLISHMENT,Physical Disablity - Cost of Care,Countywide PD Service - Care,Residential Care
Cambridgeshire County Council,11-Dec-20,51301486324,"-1,230.00",CONQUEST CARE HOMES PETERBOROUGH,CARE ESTABLISHMENT,Physical Disablity - Cost of Care,Countywide PD Service - Care,Residential Care
Cambridgeshire County Council,11-Dec-20,51301486324,"-1,230.00",CONQUEST CARE HOMES PETERBOROUGH,CARE ESTABLISHMENT,Physical Disablity - Cost of Care,Countywide PD Service - Care,Residential Care
Cambridgeshire County Council,11-Dec-20,51301486324,"-1,230.00",CONQUEST CARE HOMES PETERBOROUGH,CARE ESTABLISHMENT,Physical Disablity - Cost of Care,Countywide PD Service - Care,Residential Care
Cambridgeshire County Council,11-Dec-20,51301486324,"-1,230.00",CONQUEST CARE HOMES PETERBOROUGH,CARE ESTABLISHMENT,Physical Disablity - Cost of Care,Countywide PD Service - Care,Residential Care
Cambridgeshire County Council,11-Dec-20,51301486324,"-1,230.00",CONQUEST CARE HOMES PETERBOROUGH,CARE ESTABLISHMENT,Physical Disablity - Cost of Care,Countywide PD Service - Care,Residential Care
Cambridgeshire County Council,11-Dec-20,51301486324,"-1,230.00",CONQUEST CARE HOMES PETERBOROUGH,CARE ESTABLISHMENT,Physical Disablity - Cost of Care,Countywide PD Service - Care,Residential Care
Cambridgeshire County Council,11-Dec-20,51301486324,"-1,230.00",CONQUEST CARE HOMES PETERBOROUGH,CARE ESTABLISHMENT,Physical Disablity - Cost of Care,Countywide PD Service - Care,Residential Care
Cambridgeshire County Council,11-Dec-20,51301486324,"-1,230.00",CONQUEST CARE HOMES PETERBOROUGH,CARE ESTABLISHMENT,Physical Disablity - Cost of Care,Countywide PD Service - Care,Residential Care
Cambridgeshire County Council,11-Dec-20,51301486324,"-1,230.00",CONQUEST CARE HOMES PETERBOROUGH,CARE ESTABLISHMENT,Physical Disablity - Cost of Care,Countywide PD Service - Care,Residential Care
Cambridgeshire County Council,11-Dec-20,51301486324,"-1,230.00",CONQUEST CARE HOMES PETERBOROUGH,CARE ESTABLISHMENT,Physical Disablity - Cost of Care,Countywide PD Service - Care,Residential Care
Cambridgeshire County Council,11-Dec-20,51301486324,"-1,230.00",CONQUEST CARE HOMES PETERBOROUGH,CARE ESTABLISHMENT,Physical Disablity - Cost of Care,Countywide PD Service - Care,Residential Care
Cambridgeshire County Council,11-Dec-20,51301486324,"-1,230.00",CONQUEST CARE HOMES PETERBOROUGH,CARE ESTABLISHMENT,Physical Disablity - Cost of Care,Countywide PD Service - Care,Residential Care
Cambridgeshire County Council,11-Dec-20,51301486324,"-1,230.00",CONQUEST CARE HOMES PETERBOROUGH,CARE ESTABLISHMENT,Physical Disablity - Cost of Care,Countywide PD Service - Care,Residential Care
Cambridgeshire County Council,11-Dec-20,51301486324,"-1,230.00",CONQUEST CARE HOMES PETERBOROUGH,CARE ESTABLISHMENT,Physical Disablity - Cost of Care,Countywide PD Service - Care,Residential Care
Cambridgeshire County Council,11-Dec-20,51301486324,"-1,230.00",CONQUEST CARE HOMES PETERBOROUGH,CARE ESTABLISHMENT,Physical Disablity - Cost of Care,Countywide PD Service - Care,Residential Care
Cambridgeshire County Council,11-Dec-20,51301486324,"-1,230.00",CONQUEST CARE HOMES PETERBOROUGH,CARE ESTABLISHMENT,Physical Disablity - Cost of Care,Countywide PD Service - Care,Residential Care
Cambridgeshire County Council,11-Dec-20,51301486324,"-1,230.00",CONQUEST CARE HOMES PETERBOROUGH,CARE ESTABLISHMENT,Physical Disablity - Cost of Care,Countywide PD Service - Care,Residential Care
Cambridgeshire County Council,11-Dec-20,51301486324,"-1,230.00",CONQUEST CARE HOMES PETERBOROUGH,CARE ESTABLISHMENT,Physical Disablity - Cost of Care,Countywide PD Service - Care,Residential Care
Cambridgeshire County Council,11-Dec-20,51301486324,"-1,230.00",CONQUEST CARE HOMES PETERBOROUGH,CARE ESTABLISHMENT,Physical Disablity - Cost of Care,Countywide PD Service - Care,Residential Care
Cambridgeshire County Council,17-Dec-20,51301487970,"-1,224.58",Redacted Personal Data ,PARENT/GUARDIAN,Children's Disability Direct Payments,CSC Direct Payments,Direct Payments
Cambridgeshire County Council,18-Dec-20,51301488525,"-1,214.00",K RAVIVARUMAN T/A FAIR HAVEN CARE HOME,CARE ESTABLISHMENT,OP - East Cambs Blocks,East Cambs � Long term Blocks,Residential Care
Cambridgeshire County Council,18-Dec-20,51301488525,"-1,214.00",K RAVIVARUMAN T/A FAIR HAVEN CARE HOME,CARE ESTABLISHMENT,OP - East Cambs Blocks,East Cambs � Long term Blocks,Residential Care
Cambridgeshire County Council,18-Dec-20,51301488525,"-1,214.00",K RAVIVARUMAN T/A FAIR HAVEN CARE HOME,CARE ESTABLISHMENT,OP - East Cambs Blocks,East Cambs � Long term Blocks,Residential Care
Cambridgeshire County Council,18-Dec-20,51301488499,"-1,200.00",HC-ONE,CARE ESTABLISHMENT,OP - Hunts Blocks,Hunts - Long term blocks,Nursing Care
Cambridgeshire County Council,18-Dec-20,51301488499,"-1,200.00",HC-ONE,CARE ESTABLISHMENT,OP - Hunts Blocks,Hunts - Long term blocks,Nursing Care
Cambridgeshire County Council,18-Dec-20,51301488499,"-1,200.00",HC-ONE,CARE ESTABLISHMENT,OP - Hunts Blocks,Hunts - Long term blocks,Nursing Care
Cambridgeshire County Council,18-Dec-20,51301488499,"-1,200.00",HC-ONE,CARE ESTABLISHMENT,OP - Hunts Blocks,Hunts - Long term blocks,Nursing Care
Cambridgeshire County Council,18-Dec-20,51301488499,"-1,200.00",HC-ONE,CARE ESTABLISHMENT,OP - Hunts Blocks,Hunts - Long term blocks,Nursing Care
Cambridgeshire County Council,18-Dec-20,51301488499,"-1,200.00",HC-ONE,CARE ESTABLISHMENT,OP - Hunts Blocks,Hunts - Long term blocks,Nursing Care
Cambridgeshire County Council,18-Dec-20,51301493959,"-1,200.00",CARE UK LIMITED,CARE ESTABLISHMENT,OP - East Cambs Locality - Cost of Care,East Cambs - O P Team - Care,Residential Care
Cambridgeshire County Council,18-Dec-20,51301493959,"-1,200.00",CARE UK LIMITED,CARE ESTABLISHMENT,OP - East Cambs Locality - Cost of Care,East Cambs - O P Team - Care,Residential Care
Cambridgeshire County Council,18-Dec-20,51301493959,"-1,200.00",CARE UK LIMITED,CARE ESTABLISHMENT,OP - East Cambs Locality - Cost of Care,East Cambs - O P Team - Care,Residential Care
Cambridgeshire County Council,18-Dec-20,51301493959,"-1,200.00",CARE UK LIMITED,CARE ESTABLISHMENT,OP - East Cambs Locality - Cost of Care,East Cambs - O P Team - Care,Residential Care
Cambridgeshire County Council,18-Dec-20,51301493959,"-1,200.00",CARE UK LIMITED,CARE ESTABLISHMENT,OP - East Cambs Locality - Cost of Care,East Cambs - O P Team - Care,Residential Care
Cambridgeshire County Council,18-Dec-20,51301493959,"-1,200.00",CARE UK LIMITED,CARE ESTABLISHMENT,OP - East Cambs Locality - Cost of Care,East Cambs - O P Team - Care,Residential Care
Cambridgeshire County Council,18-Dec-20,51301493959,"-1,200.00",CARE UK LIMITED,CARE ESTABLISHMENT,OP - East Cambs Locality - Cost of Care,East Cambs - O P Team - Care,Residential Care
Cambridgeshire County Council,18-Dec-20,51301493959,"-1,200.00",CARE UK LIMITED,CARE ESTABLISHMENT,OP - East Cambs Locality - Cost of Care,East Cambs - O P Team - Care,Residential Care
Cambridgeshire County Council,18-Dec-20,51301493959,"-1,200.00",CARE UK LIMITED,CARE ESTABLISHMENT,OP - East Cambs Locality - Cost of Care,East Cambs - O P Team - Care,Residential Care
Cambridgeshire County Council,18-Dec-20,51301493959,"-1,200.00",CARE UK LIMITED,CARE ESTABLISHMENT,OP - East Cambs Locality - Cost of Care,East Cambs - O P Team - Care,Residential Care
Cambridgeshire County Council,18-Dec-20,51301493959,"-1,200.00",CARE UK LIMITED,CARE ESTABLISHMENT,OP - East Cambs Locality - Cost of Care,East Cambs - O P Team - Care,Residential Care
Cambridgeshire County Council,18-Dec-20,51301493959,"-1,200.00",CARE UK LIMITED,CARE ESTABLISHMENT,OP - East Cambs Locality - Cost of Care,East Cambs - O P Team - Care,Residential Care
Cambridgeshire County Council,18-Dec-20,51301493959,"-1,200.00",CARE UK LIMITED,CARE ESTABLISHMENT,OP - East Cambs Locality - Cost of Care,East Cambs - O P Team - Care,Residential Care
Cambridgeshire County Council,18-Dec-20,51301493959,"-1,200.00",CARE UK LIMITED,CARE ESTABLISHMENT,OP - East Cambs Locality - Cost of Care,East Cambs - O P Team - Care,Residential Care
Cambridgeshire County Council,18-Dec-20,51301493959,"-1,200.00",CARE UK LIMITED,CARE ESTABLISHMENT,OP - East Cambs Locality - Cost of Care,East Cambs - O P Team - Care,Residential Care
Cambridgeshire County Council,18-Dec-20,51301493959,"-1,200.00",CARE UK LIMITED,CARE ESTABLISHMENT,OP - East Cambs Locality - Cost of Care,East Cambs - O P Team - Care,Residential Care
Cambridgeshire County Council,18-Dec-20,51301493959,"-1,200.00",CARE UK LIMITED,CARE ESTABLISHMENT,OP - East Cambs Locality - Cost of Care,East Cambs - O P Team - Care,Residential Care
Cambridgeshire County Council,18-Dec-20,51301493959,"-1,200.00",CARE UK LIMITED,CARE ESTABLISHMENT,OP - East Cambs Locality - Cost of Care,East Cambs - O P Team - Care,Residential Care
Cambridgeshire County Council,18-Dec-20,51301493959,"-1,200.00",CARE UK LIMITED,CARE ESTABLISHMENT,OP - East Cambs Locality - Cost of Care,East Cambs - O P Team - Care,Residential Care
Cambridgeshire County Council,18-Dec-20,51301493959,"-1,200.00",CARE UK LIMITED,CARE ESTABLISHMENT,OP - East Cambs Locality - Cost of Care,East Cambs - O P Team - Care,Residential Care
Cambridgeshire County Council,18-Dec-20,51301493959,"-1,200.00",CARE UK LIMITED,CARE ESTABLISHMENT,OP - East Cambs Locality - Cost of Care,East Cambs - O P Team - Care,Residential Care
Cambridgeshire County Council,18-Dec-20,51301493959,"-1,200.00",CARE UK LIMITED,CARE ESTABLISHMENT,OP - East Cambs Locality - Cost of Care,East Cambs - O P Team - Care,Residential Care
Cambridgeshire County Council,18-Dec-20,51301493959,"-1,200.00",CARE UK LIMITED,CARE ESTABLISHMENT,OP - East Cambs Locality - Cost of Care,East Cambs - O P Team - Care,Residential Care
Cambridgeshire County Council,18-Dec-20,51301493959,"-1,200.00",CARE UK LIMITED,CARE ESTABLISHMENT,OP - East Cambs Locality - Cost of Care,East Cambs - O P Team - Care,Residential Care
Cambridgeshire County Council,18-Dec-20,51301493959,"-1,200.00",CARE UK LIMITED,CARE ESTABLISHMENT,OP - East Cambs Locality - Cost of Care,East Cambs - O P Team - Care,Residential Care
Cambridgeshire County Council,18-Dec-20,51301493959,"-1,200.00",CARE UK LIMITED,CARE ESTABLISHMENT,OP - East Cambs Locality - Cost of Care,East Cambs - O P Team - Care,Residential Care
Cambridgeshire County Council,18-Dec-20,51301493959,"-1,200.00",CARE UK LIMITED,CARE ESTABLISHMENT,OP - East Cambs Locality - Cost of Care,East Cambs - O P Team - Care,Residential Care
Cambridgeshire County Council,18-Dec-20,51301493959,"-1,200.00",CARE UK LIMITED,CARE ESTABLISHMENT,OP - East Cambs Locality - Cost of Care,East Cambs - O P Team - Care,Residential Care
Cambridgeshire County Council,18-Dec-20,51301493959,"-1,200.00",CARE UK LIMITED,CARE ESTABLISHMENT,OP - East Cambs Locality - Cost of Care,East Cambs - O P Team - Care,Residential Care
Cambridgeshire County Council,18-Dec-20,51301493959,"-1,200.00",CARE UK LIMITED,CARE ESTABLISHMENT,OP - East Cambs Locality - Cost of Care,East Cambs - O P Team - Care,Residential Care
Cambridgeshire County Council,18-Dec-20,51301493959,"-1,200.00",CARE UK LIMITED,CARE ESTABLISHMENT,OP - East Cambs Locality - Cost of Care,East Cambs - O P Team - Care,Residential Care
Cambridgeshire County Council,18-Dec-20,51301493959,"-1,200.00",CARE UK LIMITED,CARE ESTABLISHMENT,OP - East Cambs Locality - Cost of Care,East Cambs - O P Team - Care,Residential Care
Cambridgeshire County Council,18-Dec-20,51301493959,"-1,200.00",CARE UK LIMITED,CARE ESTABLISHMENT,OP - East Cambs Locality - Cost of Care,East Cambs - O P Team - Care,Residential Care
Cambridgeshire County Council,18-Dec-20,51301493959,"-1,200.00",CARE UK LIMITED,CARE ESTABLISHMENT,OP - East Cambs Locality - Cost of Care,East Cambs - O P Team - Care,Residential Care
Cambridgeshire County Council,18-Dec-20,51301493959,"-1,200.00",CARE UK LIMITED,CARE ESTABLISHMENT,OP - East Cambs Locality - Cost of Care,East Cambs - O P Team - Care,Residential Care
Cambridgeshire County Council,18-Dec-20,51301493959,"-1,200.00",CARE UK LIMITED,CARE ESTABLISHMENT,OP - East Cambs Locality - Cost of Care,East Cambs - O P Team - Care,Residential Care
Cambridgeshire County Council,18-Dec-20,51301493959,"-1,200.00",CARE UK LIMITED,CARE ESTABLISHMENT,OP - East Cambs Locality - Cost of Care,East Cambs - O P Team - Care,Residential Care
Cambridgeshire County Council,18-Dec-20,51301493959,"-1,200.00",CARE UK LIMITED,CARE ESTABLISHMENT,OP - East Cambs Locality - Cost of Care,East Cambs - O P Team - Care,Residential Care
Cambridgeshire County Council,18-Dec-20,51301493959,"-1,200.00",CARE UK LIMITED,CARE ESTABLISHMENT,OP - East Cambs Locality - Cost of Care,East Cambs - O P Team - Care,Residential Care
Cambridgeshire County Council,18-Dec-20,51301493959,"-1,200.00",CARE UK LIMITED,CARE ESTABLISHMENT,OP - East Cambs Locality - Cost of Care,East Cambs - O P Team - Care,Residential Care
Cambridgeshire County Council,18-Dec-20,51301493959,"-1,200.00",CARE UK LIMITED,CARE ESTABLISHMENT,OP - East Cambs Locality - Cost of Care,East Cambs - O P Team - Care,Residential Care
Cambridgeshire County Council,18-Dec-20,51301493959,"-1,200.00",CARE UK LIMITED,CARE ESTABLISHMENT,OP - East Cambs Locality - Cost of Care,East Cambs - O P Team - Care,Residential Care
Cambridgeshire County Council,18-Dec-20,51301493959,"-1,200.00",CARE UK LIMITED,CARE ESTABLISHMENT,OP - East Cambs Locality - Cost of Care,East Cambs - O P Team - Care,Residential Care
Cambridgeshire County Council,18-Dec-20,51301493959,"-1,200.00",CARE UK LIMITED,CARE ESTABLISHMENT,OP - East Cambs Locality - Cost of Care,East Cambs - O P Team - Care,Residential Care
Cambridgeshire County Council,18-Dec-20,51301493959,"-1,200.00",CARE UK LIMITED,CARE ESTABLISHMENT,OP - East Cambs Locality - Cost of Care,East Cambs - O P Team - Care,Residential Care
Cambridgeshire County Council,18-Dec-20,51301493959,"-1,200.00",CARE UK LIMITED,CARE ESTABLISHMENT,OP - East Cambs Locality - Cost of Care,East Cambs - O P Team - Care,Residential Care
Cambridgeshire County Council,18-Dec-20,51301493959,"-1,200.00",CARE UK LIMITED,CARE ESTABLISHMENT,OP - East Cambs Locality - Cost of Care,East Cambs - O P Team - Care,Residential Care
Cambridgeshire County Council,18-Dec-20,51301493959,"-1,200.00",CARE UK LIMITED,CARE ESTABLISHMENT,OP - East Cambs Locality - Cost of Care,East Cambs - O P Team - Care,Residential Care
Cambridgeshire County Council,18-Dec-20,51301493959,"-1,200.00",CARE UK LIMITED,CARE ESTABLISHMENT,OP - East Cambs Locality - Cost of Care,East Cambs - O P Team - Care,Residential Care
Cambridgeshire County Council,18-Dec-20,51301493959,"-1,200.00",CARE UK LIMITED,CARE ESTABLISHMENT,OP - East Cambs Locality - Cost of Care,East Cambs - O P Team - Care,Residential Care
Cambridgeshire County Council,18-Dec-20,51301493959,"-1,200.00",CARE UK LIMITED,CARE ESTABLISHMENT,OP - East Cambs Locality - Cost of Care,East Cambs - O P Team - Care,Residential Care
Cambridgeshire County Council,18-Dec-20,51301493959,"-1,200.00",CARE UK LIMITED,CARE ESTABLISHMENT,OP - East Cambs Locality - Cost of Care,East Cambs - O P Team - Care,Residential Care
Cambridgeshire County Council,18-Dec-20,51301493959,"-1,200.00",CARE UK LIMITED,CARE ESTABLISHMENT,OP - East Cambs Locality - Cost of Care,East Cambs - O P Team - Care,Residential Care
Cambridgeshire County Council,18-Dec-20,51301493959,"-1,200.00",CARE UK LIMITED,CARE ESTABLISHMENT,OP - East Cambs Locality - Cost of Care,East Cambs - O P Team - Care,Residential Care
Cambridgeshire County Council,18-Dec-20,51301493959,"-1,200.00",CARE UK LIMITED,CARE ESTABLISHMENT,OP - East Cambs Locality - Cost of Care,East Cambs - O P Team - Care,Residential Care
Cambridgeshire County Council,18-Dec-20,51301493959,"-1,200.00",CARE UK LIMITED,CARE ESTABLISHMENT,OP - East Cambs Locality - Cost of Care,East Cambs - O P Team - Care,Residential Care
Cambridgeshire County Council,18-Dec-20,51301493959,"-1,200.00",CARE UK LIMITED,CARE ESTABLISHMENT,OP - East Cambs Locality - Cost of Care,East Cambs - O P Team - Care,Residential Care
Cambridgeshire County Council,18-Dec-20,51301493959,"-1,200.00",CARE UK LIMITED,CARE ESTABLISHMENT,OP - East Cambs Locality - Cost of Care,East Cambs - O P Team - Care,Residential Care
Cambridgeshire County Council,18-Dec-20,51301493959,"-1,200.00",CARE UK LIMITED,CARE ESTABLISHMENT,OP - East Cambs Locality - Cost of Care,East Cambs - O P Team - Care,Residential Care
Cambridgeshire County Council,18-Dec-20,51301493959,"-1,200.00",CARE UK LIMITED,CARE ESTABLISHMENT,OP - East Cambs Locality - Cost of Care,East Cambs - O P Team - Care,Residential Care
Cambridgeshire County Council,18-Dec-20,51301493959,"-1,200.00",CARE UK LIMITED,CARE ESTABLISHMENT,OP - East Cambs Locality - Cost of Care,East Cambs - O P Team - Care,Residential Care
Cambridgeshire County Council,18-Dec-20,51301493959,"-1,200.00",CARE UK LIMITED,CARE ESTABLISHMENT,OP - East Cambs Locality - Cost of Care,East Cambs - O P Team - Care,Residential Care
Cambridgeshire County Council,18-Dec-20,51301493959,"-1,200.00",CARE UK LIMITED,CARE ESTABLISHMENT,OP - East Cambs Locality - Cost of Care,East Cambs - O P Team - Care,Residential Care
Cambridgeshire County Council,18-Dec-20,51301493959,"-1,200.00",CARE UK LIMITED,CARE ESTABLISHMENT,OP - East Cambs Locality - Cost of Care,East Cambs - O P Team - Care,Residential Care
Cambridgeshire County Council,18-Dec-20,51301493959,"-1,200.00",CARE UK LIMITED,CARE ESTABLISHMENT,OP - East Cambs Locality - Cost of Care,East Cambs - O P Team - Care,Residential Care
Cambridgeshire County Council,18-Dec-20,51301493959,"-1,200.00",CARE UK LIMITED,CARE ESTABLISHMENT,OP - East Cambs Locality - Cost of Care,East Cambs - O P Team - Care,Residential Care
Cambridgeshire County Council,18-Dec-20,51301493959,"-1,200.00",CARE UK LIMITED,CARE ESTABLISHMENT,OP - East Cambs Locality - Cost of Care,East Cambs - O P Team - Care,Residential Care
Cambridgeshire County Council,18-Dec-20,51301493959,"-1,200.00",CARE UK LIMITED,CARE ESTABLISHMENT,OP - East Cambs Locality - Cost of Care,East Cambs - O P Team - Care,Residential Care
Cambridgeshire County Council,18-Dec-20,51301493959,"-1,200.00",CARE UK LIMITED,CARE ESTABLISHMENT,OP - East Cambs Locality - Cost of Care,East Cambs - O P Team - Care,Residential Care
Cambridgeshire County Council,18-Dec-20,51301493959,"-1,200.00",CARE UK LIMITED,CARE ESTABLISHMENT,OP - East Cambs Locality - Cost of Care,East Cambs - O P Team - Care,Residential Care
Cambridgeshire County Council,18-Dec-20,51301493959,"-1,200.00",CARE UK LIMITED,CARE ESTABLISHMENT,OP - East Cambs Locality - Cost of Care,East Cambs - O P Team - Care,Residential Care
Cambridgeshire County Council,18-Dec-20,51301493959,"-1,200.00",CARE UK LIMITED,CARE ESTABLISHMENT,OP - East Cambs Locality - Cost of Care,East Cambs - O P Team - Care,Residential Care
Cambridgeshire County Council,18-Dec-20,51301493959,"-1,200.00",CARE UK LIMITED,CARE ESTABLISHMENT,OP - East Cambs Locality - Cost of Care,East Cambs - O P Team - Care,Residential Care
Cambridgeshire County Council,18-Dec-20,51301493959,"-1,200.00",CARE UK LIMITED,CARE ESTABLISHMENT,OP - East Cambs Locality - Cost of Care,East Cambs - O P Team - Care,Residential Care
Cambridgeshire County Council,18-Dec-20,51301493959,"-1,200.00",CARE UK LIMITED,CARE ESTABLISHMENT,OP - East Cambs Locality - Cost of Care,East Cambs - O P Team - Care,Residential Care
Cambridgeshire County Council,18-Dec-20,51301493959,"-1,200.00",CARE UK LIMITED,CARE ESTABLISHMENT,OP - East Cambs Locality - Cost of Care,East Cambs - O P Team - Care,Residential Care
Cambridgeshire County Council,18-Dec-20,51301493959,"-1,200.00",CARE UK LIMITED,CARE ESTABLISHMENT,OP - East Cambs Locality - Cost of Care,East Cambs - O P Team - Care,Residential Care
Cambridgeshire County Council,18-Dec-20,51301493959,"-1,200.00",CARE UK LIMITED,CARE ESTABLISHMENT,OP - East Cambs Locality - Cost of Care,East Cambs - O P Team - Care,Residential Care
Cambridgeshire County Council,18-Dec-20,51301493959,"-1,200.00",CARE UK LIMITED,CARE ESTABLISHMENT,OP - East Cambs Locality - Cost of Care,East Cambs - O P Team - Care,Residential Care
Cambridgeshire County Council,18-Dec-20,51301493959,"-1,200.00",CARE UK LIMITED,CARE ESTABLISHMENT,OP - East Cambs Locality - Cost of Care,East Cambs - O P Team - Care,Residential Care
Cambridgeshire County Council,18-Dec-20,51301493959,"-1,200.00",CARE UK LIMITED,CARE ESTABLISHMENT,OP - East Cambs Locality - Cost of Care,East Cambs - O P Team - Care,Residential Care
Cambridgeshire County Council,18-Dec-20,51301493959,"-1,200.00",CARE UK LIMITED,CARE ESTABLISHMENT,OP - East Cambs Locality - Cost of Care,East Cambs - O P Team - Care,Residential Care
Cambridgeshire County Council,18-Dec-20,51301493959,"-1,200.00",CARE UK LIMITED,CARE ESTABLISHMENT,OP - East Cambs Locality - Cost of Care,East Cambs - O P Team - Care,Residential Care
Cambridgeshire County Council,18-Dec-20,51301493959,"-1,200.00",CARE UK LIMITED,CARE ESTABLISHMENT,OP - East Cambs Locality - Cost of Care,East Cambs - O P Team - Care,Residential Care
Cambridgeshire County Council,18-Dec-20,51301493959,"-1,200.00",CARE UK LIMITED,CARE ESTABLISHMENT,OP - East Cambs Locality - Cost of Care,East Cambs - O P Team - Care,Residential Care
Cambridgeshire County Council,18-Dec-20,51301493959,"-1,200.00",CARE UK LIMITED,CARE ESTABLISHMENT,OP - East Cambs Locality - Cost of Care,East Cambs - O P Team - Care,Residential Care
Cambridgeshire County Council,18-Dec-20,51301493959,"-1,200.00",CARE UK LIMITED,CARE ESTABLISHMENT,OP - East Cambs Locality - Cost of Care,East Cambs - O P Team - Care,Residential Care
Cambridgeshire County Council,18-Dec-20,51301493959,"-1,200.00",CARE UK LIMITED,CARE ESTABLISHMENT,OP - East Cambs Locality - Cost of Care,East Cambs - O P Team - Care,Residential Care
Cambridgeshire County Council,18-Dec-20,51301493959,"-1,200.00",CARE UK LIMITED,CARE ESTABLISHMENT,OP - East Cambs Locality - Cost of Care,East Cambs - O P Team - Care,Residential Care
Cambridgeshire County Council,18-Dec-20,51301493959,"-1,200.00",CARE UK LIMITED,CARE ESTABLISHMENT,OP - East Cambs Locality - Cost of Care,East Cambs - O P Team - Care,Residential Care
Cambridgeshire County Council,18-Dec-20,51301493959,"-1,200.00",CARE UK LIMITED,CARE ESTABLISHMENT,OP - East Cambs Locality - Cost of Care,East Cambs - O P Team - Care,Residential Care
Cambridgeshire County Council,18-Dec-20,51301493959,"-1,200.00",CARE UK LIMITED,CARE ESTABLISHMENT,OP - East Cambs Locality - Cost of Care,East Cambs - O P Team - Care,Residential Care
Cambridgeshire County Council,18-Dec-20,51301493959,"-1,200.00",CARE UK LIMITED,CARE ESTABLISHMENT,OP - East Cambs Locality - Cost of Care,East Cambs - O P Team - Care,Residential Care
Cambridgeshire County Council,18-Dec-20,51301493959,"-1,200.00",CARE UK LIMITED,CARE ESTABLISHMENT,OP - East Cambs Locality - Cost of Care,East Cambs - O P Team - Care,Residential Care
Cambridgeshire County Council,18-Dec-20,51301493959,"-1,200.00",CARE UK LIMITED,CARE ESTABLISHMENT,OP - East Cambs Locality - Cost of Care,East Cambs - O P Team - Care,Residential Care
Cambridgeshire County Council,18-Dec-20,51301491209,"-1,200.00",FARRINGTON CARE HOMES LTD T/A WOODLANDS RESIDENTIAL CARE HOME,CARE ESTABLISHMENT,OP - City & South Locality - Cost of Care,Older People - City & South - Care,Rehabilitation And Respite Care
Cambridgeshire County Council,18-Dec-20,51301491570,"-1,159.40",AURORA ORCHARD MANOR,CARE ESTABLISHMENT,LD - Hunts Locality - Cost of Care,LD - Huntingdonshire - Care,Residential Care
Cambridgeshire County Council,18-Dec-20,51301491570,"-1,159.40",AURORA ORCHARD MANOR,CARE ESTABLISHMENT,LD - Hunts Locality - Cost of Care,LD - Huntingdonshire - Care,Residential Care
Cambridgeshire County Council,18-Dec-20,51301491570,"-1,159.40",AURORA ORCHARD MANOR,CARE ESTABLISHMENT,LD - Hunts Locality - Cost of Care,LD - Huntingdonshire - Care,Residential Care
Cambridgeshire County Council,18-Dec-20,51301491570,"-1,159.40",AURORA ORCHARD MANOR,CARE ESTABLISHMENT,LD - Hunts Locality - Cost of Care,LD - Huntingdonshire - Care,Residential Care
Cambridgeshire County Council,18-Dec-20,51301491570,"-1,159.40",AURORA ORCHARD MANOR,CARE ESTABLISHMENT,LD - Hunts Locality - Cost of Care,LD - Huntingdonshire - Care,Residential Care
Cambridgeshire County Council,18-Dec-20,51301491570,"-1,159.40",AURORA ORCHARD MANOR,CARE ESTABLISHMENT,LD - Hunts Locality - Cost of Care,LD - Huntingdonshire - Care,Residential Care
Cambridgeshire County Council,18-Dec-20,51301491570,"-1,159.40",AURORA ORCHARD MANOR,CARE ESTABLISHMENT,LD - Hunts Locality - Cost of Care,LD - Huntingdonshire - Care,Residential Care
Cambridgeshire County Council,18-Dec-20,51301491570,"-1,159.40",AURORA ORCHARD MANOR,CARE ESTABLISHMENT,LD - Hunts Locality - Cost of Care,LD - Huntingdonshire - Care,Residential Care
Cambridgeshire County Council,18-Dec-20,51301491570,"-1,159.40",AURORA ORCHARD MANOR,CARE ESTABLISHMENT,LD - Hunts Locality - Cost of Care,LD - Huntingdonshire - Care,Residential Care
Cambridgeshire County Council,18-Dec-20,51301491570,"-1,159.40",AURORA ORCHARD MANOR,CARE ESTABLISHMENT,LD - Hunts Locality - Cost of Care,LD - Huntingdonshire - Care,Residential Care
Cambridgeshire County Council,18-Dec-20,51301491570,"-1,159.40",AURORA ORCHARD MANOR,CARE ESTABLISHMENT,LD - Hunts Locality - Cost of Care,LD - Huntingdonshire - Care,Residential Care
Cambridgeshire County Council,18-Dec-20,51301491570,"-1,159.40",AURORA ORCHARD MANOR,CARE ESTABLISHMENT,LD - Hunts Locality - Cost of Care,LD - Huntingdonshire - Care,Residential Care
Cambridgeshire County Council,18-Dec-20,51301491570,"-1,159.40",AURORA ORCHARD MANOR,CARE ESTABLISHMENT,LD - Hunts Locality - Cost of Care,LD - Huntingdonshire - Care,Residential Care
Cambridgeshire County Council,18-Dec-20,51301491570,"-1,159.40",AURORA ORCHARD MANOR,CARE ESTABLISHMENT,LD - Hunts Locality - Cost of Care,LD - Huntingdonshire - Care,Residential Care
Cambridgeshire County Council,18-Dec-20,51301491570,"-1,159.40",AURORA ORCHARD MANOR,CARE ESTABLISHMENT,LD - Hunts Locality - Cost of Care,LD - Huntingdonshire - Care,Residential Care
Cambridgeshire County Council,18-Dec-20,51301491570,"-1,159.40",AURORA ORCHARD MANOR,CARE ESTABLISHMENT,LD - Hunts Locality - Cost of Care,LD - Huntingdonshire - Care,Residential Care
Cambridgeshire County Council,18-Dec-20,51301491570,"-1,159.40",AURORA ORCHARD MANOR,CARE ESTABLISHMENT,LD - Hunts Locality - Cost of Care,LD - Huntingdonshire - Care,Residential Care
Cambridgeshire County Council,18-Dec-20,51301491570,"-1,159.40",AURORA ORCHARD MANOR,CARE ESTABLISHMENT,LD - Hunts Locality - Cost of Care,LD - Huntingdonshire - Care,Residential Care
Cambridgeshire County Council,18-Dec-20,51301491570,"-1,159.40",AURORA ORCHARD MANOR,CARE ESTABLISHMENT,LD - Hunts Locality - Cost of Care,LD - Huntingdonshire - Care,Residential Care
Cambridgeshire County Council,18-Dec-20,51301491570,"-1,159.40",AURORA ORCHARD MANOR,CARE ESTABLISHMENT,LD - Hunts Locality - Cost of Care,LD - Huntingdonshire - Care,Residential Care
Cambridgeshire County Council,18-Dec-20,51301491570,"-1,159.40",AURORA ORCHARD MANOR,CARE ESTABLISHMENT,LD - Hunts Locality - Cost of Care,LD - Huntingdonshire - Care,Residential Care
Cambridgeshire County Council,18-Dec-20,51301491570,"-1,159.40",AURORA ORCHARD MANOR,CARE ESTABLISHMENT,LD - Hunts Locality - Cost of Care,LD - Huntingdonshire - Care,Residential Care
Cambridgeshire County Council,18-Dec-20,51301491570,"-1,159.40",AURORA ORCHARD MANOR,CARE ESTABLISHMENT,LD - Hunts Locality - Cost of Care,LD - Huntingdonshire - Care,Residential Care
Cambridgeshire County Council,18-Dec-20,51301491570,"-1,159.40",AURORA ORCHARD MANOR,CARE ESTABLISHMENT,LD - Hunts Locality - Cost of Care,LD - Huntingdonshire - Care,Residential Care
Cambridgeshire County Council,18-Dec-20,51301491570,"-1,159.40",AURORA ORCHARD MANOR,CARE ESTABLISHMENT,LD - Hunts Locality - Cost of Care,LD - Huntingdonshire - Care,Residential Care
Cambridgeshire County Council,18-Dec-20,51301491570,"-1,159.40",AURORA ORCHARD MANOR,CARE ESTABLISHMENT,LD - Hunts Locality - Cost of Care,LD - Huntingdonshire - Care,Residential Care
Cambridgeshire County Council,18-Dec-20,51301491570,"-1,159.40",AURORA ORCHARD MANOR,CARE ESTABLISHMENT,LD - Hunts Locality - Cost of Care,LD - Huntingdonshire - Care,Residential Care
Cambridgeshire County Council,18-Dec-20,51301491570,"-1,159.40",AURORA ORCHARD MANOR,CARE ESTABLISHMENT,LD - Hunts Locality - Cost of Care,LD - Huntingdonshire - Care,Residential Care
Cambridgeshire County Council,09-Dec-20,51301484698,"-1,132.65",REED SPECIALIST RECRUITMENT LTD,TRADE SUPPLIER,Community Support Service,Community Support Service ECF,Grants to Voluntary Bodies
Cambridgeshire County Council,18-Dec-20,51301492780,"-1,128.07",ETHELDRED HOUSE,CARE ESTABLISHMENT,OP - City & South Locality - Cost of Care,Older People - City & South - Care,Nursing Care
Cambridgeshire County Council,02-Dec-20,51301481293,"-1,125.00",Keys PCE Ltd,CARE ESTABLISHMENT,LAC Placements,Placements - residential homes,Agency Placements - Out of  County
Cambridgeshire County Council,03-Dec-20,51301481565,"-1,123.12",RADIS COMMUNITY CARE,CARE ESTABLISHMENT,OP - Hunts Locality - Cost of Care,Hunts OP Team - Care,Supported Living
Cambridgeshire County Council,03-Dec-20,51301481565,"-1,123.12",RADIS COMMUNITY CARE,CARE ESTABLISHMENT,OP - Hunts Locality - Cost of Care,Hunts OP Team - Care,Supported Living
Cambridgeshire County Council,03-Dec-20,51301481565,"-1,123.12",RADIS COMMUNITY CARE,CARE ESTABLISHMENT,OP - Hunts Locality - Cost of Care,Hunts OP Team - Care,Supported Living
Cambridgeshire County Council,03-Dec-20,51301481565,"-1,123.12",RADIS COMMUNITY CARE,CARE ESTABLISHMENT,OP - Hunts Locality - Cost of Care,Hunts OP Team - Care,Supported Living
Cambridgeshire County Council,18-Dec-20,51301494067,"-1,100.00",The Orchards (Greensleeves),CARE ESTABLISHMENT,OP - East Cambs Locality - Cost of Care,East Cambs - O P Team - Care,Residential Care
Cambridgeshire County Council,18-Dec-20,51301494067,"-1,100.00",The Orchards (Greensleeves),CARE ESTABLISHMENT,OP - East Cambs Locality - Cost of Care,East Cambs - O P Team - Care,Residential Care
Cambridgeshire County Council,23-Dec-20,51301496449,"-1,080.00",24/7 Support UK Limited,CARE ESTABLISHMENT,LAC Placements,Placements - supported accommodation,Agency Placements - In County
Cambridgeshire County Council,18-Dec-20,51301492892,"-1,078.82",Accomplish Group Support Limited,CARE ESTABLISHMENT,LD - Hunts Locality - Cost of Care,LD - Huntingdonshire - Care,Residential Care
Cambridgeshire County Council,18-Dec-20,51301493978,"-1,077.00",GREENSLEEVES HOMES  TRUST - ROSE COTTACE,CARE ESTABLISHMENT,OP - Hunts Locality - Cost of Care,Hunts OP Team - Care,Residential Care
Cambridgeshire County Council,18-Dec-20,51301493978,"-1,077.00",GREENSLEEVES HOMES  TRUST - ROSE COTTACE,CARE ESTABLISHMENT,OP - Hunts Locality - Cost of Care,Hunts OP Team - Care,Residential Care
Cambridgeshire County Council,18-Dec-20,51301491817,"-1,050.00",LONGUEVILLE COURT,CARE ESTABLISHMENT,LD - Fenland Locality - Cost of Care,LD - Fenland  - Care,Nursing Care
Cambridgeshire County Council,18-Dec-20,51301493959,"-1,028.57",CARE UK LIMITED,CARE ESTABLISHMENT,OP - East Cambs Locality - Cost of Care,East Cambs - O P Team - Care,Residential Care
Cambridgeshire County Council,23-Dec-20,51301496452,"-1,008.00",24/7 Support UK Limited,CARE ESTABLISHMENT,LAC Placements,Placements - supported accommodation,Agency Placements - In County
Cambridgeshire County Council,18-Dec-20,51301493820,"-1,000.00",LYNCROFT RESIDENTIAL HOME,CARE ESTABLISHMENT,OP - Fenland Locality - Cost of Care,Older People - Fenland - Care,Residential Care
Cambridgeshire County Council,18-Dec-20,51301489269,"-1,000.00",WOODLANDS CARE CENTRE,CARE ESTABLISHMENT,OP - City & South Locality - Cost of Care,Older People - City & South - Care,Nursing Care
Cambridgeshire County Council,18-Dec-20,51301491570,-993.77,AURORA ORCHARD MANOR,CARE ESTABLISHMENT,LD - Hunts Locality - Cost of Care,LD - Huntingdonshire - Care,Residential Care
Cambridgeshire County Council,07-Dec-20,51301482176,-979.99,Redacted Personal Data ,INDIVIDUAL,Autism and Adult Support - Cost of Care,Autism and Adult Support - Care,Direct Payments
Cambridgeshire County Council,07-Dec-20,51301482176,-979.99,Redacted Personal Data ,INDIVIDUAL,Autism and Adult Support - Cost of Care,Autism and Adult Support - Care,Direct Payments
Cambridgeshire County Council,07-Dec-20,51301482176,-979.99,Redacted Personal Data ,INDIVIDUAL,Autism and Adult Support - Cost of Care,Autism and Adult Support - Care,Direct Payments
Cambridgeshire County Council,07-Dec-20,51301482176,-979.99,Redacted Personal Data ,INDIVIDUAL,Autism and Adult Support - Cost of Care,Autism and Adult Support - Care,Direct Payments
Cambridgeshire County Council,07-Dec-20,51301482176,-979.99,Redacted Personal Data ,INDIVIDUAL,Autism and Adult Support - Cost of Care,Autism and Adult Support - Care,Direct Payments
Cambridgeshire County Council,07-Dec-20,51301482176,-979.99,Redacted Personal Data ,INDIVIDUAL,Autism and Adult Support - Cost of Care,Autism and Adult Support - Care,Direct Payments
Cambridgeshire County Council,07-Dec-20,51301482176,-979.99,Redacted Personal Data ,INDIVIDUAL,Autism and Adult Support - Cost of Care,Autism and Adult Support - Care,Direct Payments
Cambridgeshire County Council,07-Dec-20,51301482176,-979.99,Redacted Personal Data ,INDIVIDUAL,Autism and Adult Support - Cost of Care,Autism and Adult Support - Care,Direct Payments
Cambridgeshire County Council,07-Dec-20,51301482176,-979.99,Redacted Personal Data ,INDIVIDUAL,Autism and Adult Support - Cost of Care,Autism and Adult Support - Care,Direct Payments
Cambridgeshire County Council,07-Dec-20,51301482176,-979.99,Redacted Personal Data ,INDIVIDUAL,Autism and Adult Support - Cost of Care,Autism and Adult Support - Care,Direct Payments
Cambridgeshire County Council,07-Dec-20,51301482176,-979.99,Redacted Personal Data ,INDIVIDUAL,Autism and Adult Support - Cost of Care,Autism and Adult Support - Care,Direct Payments
Cambridgeshire County Council,18-Dec-20,51301492798,-950.00,THE GABLES SPECIALIST NURSING HOME,CARE ESTABLISHMENT,OP - East Cambs Locality - Cost of Care,East Cambs - O P Team - Care,Nursing Care
Cambridgeshire County Council,18-Dec-20,51301494067,-942.86,The Orchards (Greensleeves),CARE ESTABLISHMENT,OP - East Cambs Locality - Cost of Care,East Cambs - O P Team - Care,Residential Care
Cambridgeshire County Council,18-Dec-20,51301491789,-925.00,MIDFIELD LODGE CARE CENTRE,CARE ESTABLISHMENT,Strategic Management - Adults,Adults Assistant Director,Nursing Care
Cambridgeshire County Council,18-Dec-20,51301491789,-925.00,MIDFIELD LODGE CARE CENTRE,CARE ESTABLISHMENT,Strategic Management - Adults,Adults Assistant Director,Nursing Care
Cambridgeshire County Council,18-Dec-20,51301491789,-925.00,MIDFIELD LODGE CARE CENTRE,CARE ESTABLISHMENT,Strategic Management - Adults,Adults Assistant Director,Nursing Care
Cambridgeshire County Council,18-Dec-20,51301491789,-925.00,MIDFIELD LODGE CARE CENTRE,CARE ESTABLISHMENT,Strategic Management - Adults,Adults Assistant Director,Nursing Care
Cambridgeshire County Council,18-Dec-20,51301491789,-925.00,MIDFIELD LODGE CARE CENTRE,CARE ESTABLISHMENT,Strategic Management - Adults,Adults Assistant Director,Nursing Care
Cambridgeshire County Council,18-Dec-20,51301491656,-915.06,PAULINE BURNETT HOUSE,CARE ESTABLISHMENT,LD - South Locality - Cost of Care,LD - South Cambs - Care,Residential Care
Cambridgeshire County Council,18-Dec-20,51301491656,-915.06,PAULINE BURNETT HOUSE,CARE ESTABLISHMENT,LD - South Locality - Cost of Care,LD - South Cambs - Care,Residential Care
Cambridgeshire County Council,18-Dec-20,51301491656,-915.06,PAULINE BURNETT HOUSE,CARE ESTABLISHMENT,LD - South Locality - Cost of Care,LD - South Cambs - Care,Residential Care
Cambridgeshire County Council,18-Dec-20,51301491656,-915.06,PAULINE BURNETT HOUSE,CARE ESTABLISHMENT,LD - South Locality - Cost of Care,LD - South Cambs - Care,Residential Care
Cambridgeshire County Council,18-Dec-20,51301493769,-905.00,GLENNFIELD CARE CENTRE (OP),CARE ESTABLISHMENT,OP - Fenland Locality - Cost of Care,Older People - Fenland - Care,Nursing Care
Cambridgeshire County Council,18-Dec-20,51301493769,-905.00,GLENNFIELD CARE CENTRE (OP),CARE ESTABLISHMENT,OP - Fenland Locality - Cost of Care,Older People - Fenland - Care,Nursing Care
Cambridgeshire County Council,18-Dec-20,51301493769,-905.00,GLENNFIELD CARE CENTRE (OP),CARE ESTABLISHMENT,OP - Fenland Locality - Cost of Care,Older People - Fenland - Care,Nursing Care
Cambridgeshire County Council,18-Dec-20,51301493769,-905.00,GLENNFIELD CARE CENTRE (OP),CARE ESTABLISHMENT,OP - Fenland Locality - Cost of Care,Older People - Fenland - Care,Nursing Care
Cambridgeshire County Council,18-Dec-20,51301493769,-905.00,GLENNFIELD CARE CENTRE (OP),CARE ESTABLISHMENT,OP - Fenland Locality - Cost of Care,Older People - Fenland - Care,Nursing Care
Cambridgeshire County Council,18-Dec-20,51301493769,-905.00,GLENNFIELD CARE CENTRE (OP),CARE ESTABLISHMENT,OP - Fenland Locality - Cost of Care,Older People - Fenland - Care,Nursing Care
Cambridgeshire County Council,18-Dec-20,51301493769,-905.00,GLENNFIELD CARE CENTRE (OP),CARE ESTABLISHMENT,OP - Fenland Locality - Cost of Care,Older People - Fenland - Care,Nursing Care
Cambridgeshire County Council,18-Dec-20,51301493769,-905.00,GLENNFIELD CARE CENTRE (OP),CARE ESTABLISHMENT,OP - Fenland Locality - Cost of Care,Older People - Fenland - Care,Nursing Care
Cambridgeshire County Council,18-Dec-20,51301493769,-905.00,GLENNFIELD CARE CENTRE (OP),CARE ESTABLISHMENT,OP - Fenland Locality - Cost of Care,Older People - Fenland - Care,Nursing Care
Cambridgeshire County Council,18-Dec-20,51301493769,-905.00,GLENNFIELD CARE CENTRE (OP),CARE ESTABLISHMENT,OP - Fenland Locality - Cost of Care,Older People - Fenland - Care,Nursing Care
Cambridgeshire County Council,18-Dec-20,51301493769,-905.00,GLENNFIELD CARE CENTRE (OP),CARE ESTABLISHMENT,OP - Fenland Locality - Cost of Care,Older People - Fenland - Care,Nursing Care
Cambridgeshire County Council,18-Dec-20,51301493769,-905.00,GLENNFIELD CARE CENTRE (OP),CARE ESTABLISHMENT,OP - Fenland Locality - Cost of Care,Older People - Fenland - Care,Nursing Care
Cambridgeshire County Council,18-Dec-20,51301493769,-905.00,GLENNFIELD CARE CENTRE (OP),CARE ESTABLISHMENT,OP - Fenland Locality - Cost of Care,Older People - Fenland - Care,Nursing Care
Cambridgeshire County Council,18-Dec-20,51301493769,-905.00,GLENNFIELD CARE CENTRE (OP),CARE ESTABLISHMENT,OP - Fenland Locality - Cost of Care,Older People - Fenland - Care,Nursing Care
Cambridgeshire County Council,18-Dec-20,51301493769,-905.00,GLENNFIELD CARE CENTRE (OP),CARE ESTABLISHMENT,OP - Fenland Locality - Cost of Care,Older People - Fenland - Care,Nursing Care
Cambridgeshire County Council,18-Dec-20,51301493769,-905.00,GLENNFIELD CARE CENTRE (OP),CARE ESTABLISHMENT,OP - Fenland Locality - Cost of Care,Older People - Fenland - Care,Nursing Care
Cambridgeshire County Council,18-Dec-20,51301493769,-905.00,GLENNFIELD CARE CENTRE (OP),CARE ESTABLISHMENT,OP - Fenland Locality - Cost of Care,Older People - Fenland - Care,Nursing Care
Cambridgeshire County Council,18-Dec-20,51301493769,-905.00,GLENNFIELD CARE CENTRE (OP),CARE ESTABLISHMENT,OP - Fenland Locality - Cost of Care,Older People - Fenland - Care,Nursing Care
Cambridgeshire County Council,18-Dec-20,51301493769,-905.00,GLENNFIELD CARE CENTRE (OP),CARE ESTABLISHMENT,OP - Fenland Locality - Cost of Care,Older People - Fenland - Care,Nursing Care
Cambridgeshire County Council,18-Dec-20,51301493769,-905.00,GLENNFIELD CARE CENTRE (OP),CARE ESTABLISHMENT,OP - Fenland Locality - Cost of Care,Older People - Fenland - Care,Nursing Care
Cambridgeshire County Council,18-Dec-20,51301493769,-905.00,GLENNFIELD CARE CENTRE (OP),CARE ESTABLISHMENT,OP - Fenland Locality - Cost of Care,Older People - Fenland - Care,Nursing Care
Cambridgeshire County Council,18-Dec-20,51301493769,-905.00,GLENNFIELD CARE CENTRE (OP),CARE ESTABLISHMENT,OP - Fenland Locality - Cost of Care,Older People - Fenland - Care,Nursing Care
Cambridgeshire County Council,18-Dec-20,51301493769,-905.00,GLENNFIELD CARE CENTRE (OP),CARE ESTABLISHMENT,OP - Fenland Locality - Cost of Care,Older People - Fenland - Care,Nursing Care
Cambridgeshire County Council,18-Dec-20,51301493769,-905.00,GLENNFIELD CARE CENTRE (OP),CARE ESTABLISHMENT,OP - Fenland Locality - Cost of Care,Older People - Fenland - Care,Nursing Care
Cambridgeshire County Council,18-Dec-20,51301493769,-905.00,GLENNFIELD CARE CENTRE (OP),CARE ESTABLISHMENT,OP - Fenland Locality - Cost of Care,Older People - Fenland - Care,Nursing Care
Cambridgeshire County Council,18-Dec-20,51301493769,-905.00,GLENNFIELD CARE CENTRE (OP),CARE ESTABLISHMENT,OP - Fenland Locality - Cost of Care,Older People - Fenland - Care,Nursing Care
Cambridgeshire County Council,18-Dec-20,51301493769,-905.00,GLENNFIELD CARE CENTRE (OP),CARE ESTABLISHMENT,OP - Fenland Locality - Cost of Care,Older People - Fenland - Care,Nursing Care
Cambridgeshire County Council,18-Dec-20,51301493769,-905.00,GLENNFIELD CARE CENTRE (OP),CARE ESTABLISHMENT,OP - Fenland Locality - Cost of Care,Older People - Fenland - Care,Nursing Care
Cambridgeshire County Council,18-Dec-20,51301493769,-905.00,GLENNFIELD CARE CENTRE (OP),CARE ESTABLISHMENT,OP - Fenland Locality - Cost of Care,Older People - Fenland - Care,Nursing Care
Cambridgeshire County Council,18-Dec-20,51301493769,-905.00,GLENNFIELD CARE CENTRE (OP),CARE ESTABLISHMENT,OP - Fenland Locality - Cost of Care,Older People - Fenland - Care,Nursing Care
Cambridgeshire County Council,18-Dec-20,51301493769,-905.00,GLENNFIELD CARE CENTRE (OP),CARE ESTABLISHMENT,OP - Fenland Locality - Cost of Care,Older People - Fenland - Care,Nursing Care
Cambridgeshire County Council,18-Dec-20,51301493769,-905.00,GLENNFIELD CARE CENTRE (OP),CARE ESTABLISHMENT,OP - Fenland Locality - Cost of Care,Older People - Fenland - Care,Nursing Care
Cambridgeshire County Council,18-Dec-20,51301493769,-905.00,GLENNFIELD CARE CENTRE (OP),CARE ESTABLISHMENT,OP - Fenland Locality - Cost of Care,Older People - Fenland - Care,Nursing Care
Cambridgeshire County Council,18-Dec-20,51301493769,-905.00,GLENNFIELD CARE CENTRE (OP),CARE ESTABLISHMENT,OP - Fenland Locality - Cost of Care,Older People - Fenland - Care,Nursing Care
Cambridgeshire County Council,18-Dec-20,51301493769,-905.00,GLENNFIELD CARE CENTRE (OP),CARE ESTABLISHMENT,OP - Fenland Locality - Cost of Care,Older People - Fenland - Care,Nursing Care
Cambridgeshire County Council,18-Dec-20,51301493769,-905.00,GLENNFIELD CARE CENTRE (OP),CARE ESTABLISHMENT,OP - Fenland Locality - Cost of Care,Older People - Fenland - Care,Nursing Care
Cambridgeshire County Council,18-Dec-20,51301493769,-905.00,GLENNFIELD CARE CENTRE (OP),CARE ESTABLISHMENT,OP - Fenland Locality - Cost of Care,Older People - Fenland - Care,Nursing Care
Cambridgeshire County Council,18-Dec-20,51301493769,-905.00,GLENNFIELD CARE CENTRE (OP),CARE ESTABLISHMENT,OP - Fenland Locality - Cost of Care,Older People - Fenland - Care,Nursing Care
Cambridgeshire County Council,18-Dec-20,51301493769,-905.00,GLENNFIELD CARE CENTRE (OP),CARE ESTABLISHMENT,OP - Fenland Locality - Cost of Care,Older People - Fenland - Care,Nursing Care
Cambridgeshire County Council,18-Dec-20,51301493769,-905.00,GLENNFIELD CARE CENTRE (OP),CARE ESTABLISHMENT,OP - Fenland Locality - Cost of Care,Older People - Fenland - Care,Nursing Care
Cambridgeshire County Council,18-Dec-20,51301493769,-905.00,GLENNFIELD CARE CENTRE (OP),CARE ESTABLISHMENT,OP - Fenland Locality - Cost of Care,Older People - Fenland - Care,Nursing Care
Cambridgeshire County Council,18-Dec-20,51301493769,-905.00,GLENNFIELD CARE CENTRE (OP),CARE ESTABLISHMENT,OP - Fenland Locality - Cost of Care,Older People - Fenland - Care,Nursing Care
Cambridgeshire County Council,18-Dec-20,51301493769,-905.00,GLENNFIELD CARE CENTRE (OP),CARE ESTABLISHMENT,OP - Fenland Locality - Cost of Care,Older People - Fenland - Care,Nursing Care
Cambridgeshire County Council,18-Dec-20,51301493769,-905.00,GLENNFIELD CARE CENTRE (OP),CARE ESTABLISHMENT,OP - Fenland Locality - Cost of Care,Older People - Fenland - Care,Nursing Care
Cambridgeshire County Council,18-Dec-20,51301493769,-905.00,GLENNFIELD CARE CENTRE (OP),CARE ESTABLISHMENT,OP - Fenland Locality - Cost of Care,Older People - Fenland - Care,Nursing Care
Cambridgeshire County Council,18-Dec-20,51301493769,-905.00,GLENNFIELD CARE CENTRE (OP),CARE ESTABLISHMENT,OP - Fenland Locality - Cost of Care,Older People - Fenland - Care,Nursing Care
Cambridgeshire County Council,18-Dec-20,51301493769,-905.00,GLENNFIELD CARE CENTRE (OP),CARE ESTABLISHMENT,OP - Fenland Locality - Cost of Care,Older People - Fenland - Care,Nursing Care
Cambridgeshire County Council,18-Dec-20,51301489285,-904.34,WOODLANDS CARE CENTRE,CARE ESTABLISHMENT,OP - Hunts Locality - Cost of Care,Hunts OP Team - Care,Nursing Care
Cambridgeshire County Council,18-Dec-20,51301493388,-900.60,AUGUSTA CARE LTD,CARE ESTABLISHMENT,LD - Fenland Locality - Cost of Care,LD - Fenland  - Care,Supported Living
Cambridgeshire County Council,18-Dec-20,51301490299,-900.00,DUNAMIS SOCIAL CARE,CARE ESTABLISHMENT,Physical Disablity - Cost of Care,Countywide PD Service - Care,Homecare
Cambridgeshire County Council,18-Dec-20,51301490299,-900.00,DUNAMIS SOCIAL CARE,CARE ESTABLISHMENT,Physical Disablity - Cost of Care,Countywide PD Service - Care,Homecare
Cambridgeshire County Council,18-Dec-20,51301492775,-900.00,HATLEY COURT HAVEN LTD,CARE ESTABLISHMENT,OP - City & South Locality - Cost of Care,Older People - City & South - Care,Residential Care
Cambridgeshire County Council,18-Dec-20,51301494060,-900.00,BROOK HEALTHCARE,CARE ESTABLISHMENT,OP - Fenland Locality - Cost of Care,Older People - Fenland - Care,Residential Care
Cambridgeshire County Council,18-Dec-20,51301494060,-900.00,BROOK HEALTHCARE,CARE ESTABLISHMENT,OP - Fenland Locality - Cost of Care,Older People - Fenland - Care,Residential Care
Cambridgeshire County Council,18-Dec-20,51301494060,-900.00,BROOK HEALTHCARE,CARE ESTABLISHMENT,OP - Fenland Locality - Cost of Care,Older People - Fenland - Care,Residential Care
Cambridgeshire County Council,18-Dec-20,51301494060,-900.00,BROOK HEALTHCARE,CARE ESTABLISHMENT,OP - Fenland Locality - Cost of Care,Older People - Fenland - Care,Residential Care
Cambridgeshire County Council,18-Dec-20,51301492762,-895.00,SYMONDS HOUSE NURSING HOME,CARE ESTABLISHMENT,Strategic Management - Adults,Adults Assistant Director,Nursing Care
Cambridgeshire County Council,18-Dec-20,51301492762,-895.00,SYMONDS HOUSE NURSING HOME,CARE ESTABLISHMENT,Strategic Management - Adults,Adults Assistant Director,Nursing Care
Cambridgeshire County Council,18-Dec-20,51301492762,-895.00,SYMONDS HOUSE NURSING HOME,CARE ESTABLISHMENT,Strategic Management - Adults,Adults Assistant Director,Nursing Care
Cambridgeshire County Council,18-Dec-20,51301492762,-895.00,SYMONDS HOUSE NURSING HOME,CARE ESTABLISHMENT,Strategic Management - Adults,Adults Assistant Director,Nursing Care
Cambridgeshire County Council,18-Dec-20,51301492762,-895.00,SYMONDS HOUSE NURSING HOME,CARE ESTABLISHMENT,Strategic Management - Adults,Adults Assistant Director,Nursing Care
Cambridgeshire County Council,18-Dec-20,51301492762,-895.00,SYMONDS HOUSE NURSING HOME,CARE ESTABLISHMENT,Strategic Management - Adults,Adults Assistant Director,Nursing Care
Cambridgeshire County Council,18-Dec-20,51301492762,-895.00,SYMONDS HOUSE NURSING HOME,CARE ESTABLISHMENT,Strategic Management - Adults,Adults Assistant Director,Nursing Care
Cambridgeshire County Council,18-Dec-20,51301492762,-895.00,SYMONDS HOUSE NURSING HOME,CARE ESTABLISHMENT,Strategic Management - Adults,Adults Assistant Director,Nursing Care
Cambridgeshire County Council,18-Dec-20,51301492762,-895.00,SYMONDS HOUSE NURSING HOME,CARE ESTABLISHMENT,Strategic Management - Adults,Adults Assistant Director,Nursing Care
Cambridgeshire County Council,18-Dec-20,51301492476,-887.40,TRINITY CARESTAFF SOLUTIONS LIMITED,CARE ESTABLISHMENT,Physical Disablity - Cost of Care,Countywide PD Service - Care,Domiciliary Care
Cambridgeshire County Council,18-Dec-20,51301492476,-887.40,TRINITY CARESTAFF SOLUTIONS LIMITED,CARE ESTABLISHMENT,Physical Disablity - Cost of Care,Countywide PD Service - Care,Domiciliary Care
Cambridgeshire County Council,18-Dec-20,51301492476,-887.40,TRINITY CARESTAFF SOLUTIONS LIMITED,CARE ESTABLISHMENT,Physical Disablity - Cost of Care,Countywide PD Service - Care,Domiciliary Care
Cambridgeshire County Council,18-Dec-20,51301492476,-887.40,TRINITY CARESTAFF SOLUTIONS LIMITED,CARE ESTABLISHMENT,Physical Disablity - Cost of Care,Countywide PD Service - Care,Domiciliary Care
Cambridgeshire County Council,18-Dec-20,51301492476,-887.40,TRINITY CARESTAFF SOLUTIONS LIMITED,CARE ESTABLISHMENT,Physical Disablity - Cost of Care,Countywide PD Service - Care,Domiciliary Care
Cambridgeshire County Council,18-Dec-20,51301492476,-887.40,TRINITY CARESTAFF SOLUTIONS LIMITED,CARE ESTABLISHMENT,Physical Disablity - Cost of Care,Countywide PD Service - Care,Domiciliary Care
Cambridgeshire County Council,18-Dec-20,51301492476,-887.40,TRINITY CARESTAFF SOLUTIONS LIMITED,CARE ESTABLISHMENT,Physical Disablity - Cost of Care,Countywide PD Service - Care,Domiciliary Care
Cambridgeshire County Council,18-Dec-20,51301492476,-887.40,TRINITY CARESTAFF SOLUTIONS LIMITED,CARE ESTABLISHMENT,Physical Disablity - Cost of Care,Countywide PD Service - Care,Domiciliary Care
Cambridgeshire County Council,07-Dec-20,51301482206,-880.19,CARETECH COMMUNITY SERVICES,CARE ESTABLISHMENT,LD - Young Adults Team,LD - Young Adults - Care,Supported Living
Cambridgeshire County Council,07-Dec-20,51301482206,-880.19,CARETECH COMMUNITY SERVICES,CARE ESTABLISHMENT,LD - Young Adults Team,LD - Young Adults - Care,Supported Living
Cambridgeshire County Council,18-Dec-20,51301489267,-875.00,ABBEY HEALTHCARE (HUNTINGDON) LTD,CARE ESTABLISHMENT,OP - City & South Locality - Cost of Care,Older People - City & South - Care,Residential Care
Cambridgeshire County Council,18-Dec-20,51301489267,-875.00,ABBEY HEALTHCARE (HUNTINGDON) LTD,CARE ESTABLISHMENT,OP - City & South Locality - Cost of Care,Older People - City & South - Care,Residential Care
Cambridgeshire County Council,18-Dec-20,51301489267,-875.00,ABBEY HEALTHCARE (HUNTINGDON) LTD,CARE ESTABLISHMENT,OP - City & South Locality - Cost of Care,Older People - City & South - Care,Residential Care
Cambridgeshire County Council,18-Dec-20,51301489267,-875.00,ABBEY HEALTHCARE (HUNTINGDON) LTD,CARE ESTABLISHMENT,OP - City & South Locality - Cost of Care,Older People - City & South - Care,Residential Care
Cambridgeshire County Council,18-Dec-20,51301489267,-875.00,ABBEY HEALTHCARE (HUNTINGDON) LTD,CARE ESTABLISHMENT,OP - City & South Locality - Cost of Care,Older People - City & South - Care,Residential Care
Cambridgeshire County Council,18-Dec-20,51301489267,-875.00,ABBEY HEALTHCARE (HUNTINGDON) LTD,CARE ESTABLISHMENT,OP - City & South Locality - Cost of Care,Older People - City & South - Care,Residential Care
Cambridgeshire County Council,18-Dec-20,51301489267,-875.00,ABBEY HEALTHCARE (HUNTINGDON) LTD,CARE ESTABLISHMENT,OP - City & South Locality - Cost of Care,Older People - City & South - Care,Residential Care
Cambridgeshire County Council,18-Dec-20,51301489267,-875.00,ABBEY HEALTHCARE (HUNTINGDON) LTD,CARE ESTABLISHMENT,OP - City & South Locality - Cost of Care,Older People - City & South - Care,Residential Care
Cambridgeshire County Council,18-Dec-20,51301489267,-875.00,ABBEY HEALTHCARE (HUNTINGDON) LTD,CARE ESTABLISHMENT,OP - City & South Locality - Cost of Care,Older People - City & South - Care,Residential Care
Cambridgeshire County Council,18-Dec-20,51301489267,-875.00,ABBEY HEALTHCARE (HUNTINGDON) LTD,CARE ESTABLISHMENT,OP - City & South Locality - Cost of Care,Older People - City & South - Care,Residential Care
Cambridgeshire County Council,18-Dec-20,51301489267,-875.00,ABBEY HEALTHCARE (HUNTINGDON) LTD,CARE ESTABLISHMENT,OP - City & South Locality - Cost of Care,Older People - City & South - Care,Residential Care
Cambridgeshire County Council,18-Dec-20,51301493782,-875.00,THE HILLINGS LIMITED,CARE ESTABLISHMENT,OP - Hunts Locality - Cost of Care,Hunts OP Team - Care,Residential Care
Cambridgeshire County Council,18-Dec-20,51301493782,-875.00,THE HILLINGS LIMITED,CARE ESTABLISHMENT,OP - Hunts Locality - Cost of Care,Hunts OP Team - Care,Residential Care
Cambridgeshire County Council,18-Dec-20,51301493782,-875.00,THE HILLINGS LIMITED,CARE ESTABLISHMENT,OP - Hunts Locality - Cost of Care,Hunts OP Team - Care,Residential Care
Cambridgeshire County Council,23-Dec-20,51301496237,-864.76,Redacted Personal Data ,INDIVIDUAL,Physical Disablity - Cost of Care,Countywide PD Service - Care,Direct Payments
Cambridgeshire County Council,23-Dec-20,51301496237,-864.76,Redacted Personal Data ,INDIVIDUAL,Physical Disablity - Cost of Care,Countywide PD Service - Care,Direct Payments
Cambridgeshire County Council,23-Dec-20,51301496237,-864.76,Redacted Personal Data ,INDIVIDUAL,Physical Disablity - Cost of Care,Countywide PD Service - Care,Direct Payments
Cambridgeshire County Council,23-Dec-20,51301496237,-864.76,Redacted Personal Data ,INDIVIDUAL,Physical Disablity - Cost of Care,Countywide PD Service - Care,Direct Payments
Cambridgeshire County Council,23-Dec-20,51301496237,-864.76,Redacted Personal Data ,INDIVIDUAL,Physical Disablity - Cost of Care,Countywide PD Service - Care,Direct Payments
Cambridgeshire County Council,23-Dec-20,51301496237,-864.76,Redacted Personal Data ,INDIVIDUAL,Physical Disablity - Cost of Care,Countywide PD Service - Care,Direct Payments
Cambridgeshire County Council,23-Dec-20,51301496237,-864.76,Redacted Personal Data ,INDIVIDUAL,Physical Disablity - Cost of Care,Countywide PD Service - Care,Direct Payments
Cambridgeshire County Council,23-Dec-20,51301496237,-864.76,Redacted Personal Data ,INDIVIDUAL,Physical Disablity - Cost of Care,Countywide PD Service - Care,Direct Payments
Cambridgeshire County Council,23-Dec-20,51301496237,-864.76,Redacted Personal Data ,INDIVIDUAL,Physical Disablity - Cost of Care,Countywide PD Service - Care,Direct Payments
Cambridgeshire County Council,23-Dec-20,51301496237,-864.76,Redacted Personal Data ,INDIVIDUAL,Physical Disablity - Cost of Care,Countywide PD Service - Care,Direct Payments
Cambridgeshire County Council,23-Dec-20,51301496237,-864.76,Redacted Personal Data ,INDIVIDUAL,Physical Disablity - Cost of Care,Countywide PD Service - Care,Direct Payments
Cambridgeshire County Council,23-Dec-20,51301496237,-864.76,Redacted Personal Data ,INDIVIDUAL,Physical Disablity - Cost of Care,Countywide PD Service - Care,Direct Payments
Cambridgeshire County Council,23-Dec-20,51301496237,-864.76,Redacted Personal Data ,INDIVIDUAL,Physical Disablity - Cost of Care,Countywide PD Service - Care,Direct Payments
Cambridgeshire County Council,23-Dec-20,51301496237,-864.76,Redacted Personal Data ,INDIVIDUAL,Physical Disablity - Cost of Care,Countywide PD Service - Care,Direct Payments
Cambridgeshire County Council,23-Dec-20,51301496237,-864.76,Redacted Personal Data ,INDIVIDUAL,Physical Disablity - Cost of Care,Countywide PD Service - Care,Direct Payments
Cambridgeshire County Council,23-Dec-20,51301496237,-864.76,Redacted Personal Data ,INDIVIDUAL,Physical Disablity - Cost of Care,Countywide PD Service - Care,Direct Payments
Cambridgeshire County Council,23-Dec-20,51301496237,-864.76,Redacted Personal Data ,INDIVIDUAL,Physical Disablity - Cost of Care,Countywide PD Service - Care,Direct Payments
Cambridgeshire County Council,23-Dec-20,51301496237,-864.76,Redacted Personal Data ,INDIVIDUAL,Physical Disablity - Cost of Care,Countywide PD Service - Care,Direct Payments
Cambridgeshire County Council,23-Dec-20,51301496237,-864.76,Redacted Personal Data ,INDIVIDUAL,Physical Disablity - Cost of Care,Countywide PD Service - Care,Direct Payments
Cambridgeshire County Council,23-Dec-20,51301496237,-864.76,Redacted Personal Data ,INDIVIDUAL,Physical Disablity - Cost of Care,Countywide PD Service - Care,Direct Payments
Cambridgeshire County Council,23-Dec-20,51301496237,-864.76,Redacted Personal Data ,INDIVIDUAL,Physical Disablity - Cost of Care,Countywide PD Service - Care,Direct Payments
Cambridgeshire County Council,23-Dec-20,51301496237,-864.76,Redacted Personal Data ,INDIVIDUAL,Physical Disablity - Cost of Care,Countywide PD Service - Care,Direct Payments
Cambridgeshire County Council,23-Dec-20,51301496237,-864.76,Redacted Personal Data ,INDIVIDUAL,Physical Disablity - Cost of Care,Countywide PD Service - Care,Direct Payments
Cambridgeshire County Council,23-Dec-20,51301496237,-864.76,Redacted Personal Data ,INDIVIDUAL,Physical Disablity - Cost of Care,Countywide PD Service - Care,Direct Payments
Cambridgeshire County Council,23-Dec-20,51301496237,-864.76,Redacted Personal Data ,INDIVIDUAL,Physical Disablity - Cost of Care,Countywide PD Service - Care,Direct Payments
Cambridgeshire County Council,23-Dec-20,51301496237,-864.76,Redacted Personal Data ,INDIVIDUAL,Physical Disablity - Cost of Care,Countywide PD Service - Care,Direct Payments
Cambridgeshire County Council,23-Dec-20,51301496237,-864.76,Redacted Personal Data ,INDIVIDUAL,Physical Disablity - Cost of Care,Countywide PD Service - Care,Direct Payments
Cambridgeshire County Council,23-Dec-20,51301496237,-864.76,Redacted Personal Data ,INDIVIDUAL,Physical Disablity - Cost of Care,Countywide PD Service - Care,Direct Payments
Cambridgeshire County Council,23-Dec-20,51301496237,-864.76,Redacted Personal Data ,INDIVIDUAL,Physical Disablity - Cost of Care,Countywide PD Service - Care,Direct Payments
Cambridgeshire County Council,23-Dec-20,51301496237,-864.76,Redacted Personal Data ,INDIVIDUAL,Physical Disablity - Cost of Care,Countywide PD Service - Care,Direct Payments
Cambridgeshire County Council,23-Dec-20,51301496237,-864.76,Redacted Personal Data ,INDIVIDUAL,Physical Disablity - Cost of Care,Countywide PD Service - Care,Direct Payments
Cambridgeshire County Council,23-Dec-20,51301496237,-864.76,Redacted Personal Data ,INDIVIDUAL,Physical Disablity - Cost of Care,Countywide PD Service - Care,Direct Payments
Cambridgeshire County Council,23-Dec-20,51301496237,-864.76,Redacted Personal Data ,INDIVIDUAL,Physical Disablity - Cost of Care,Countywide PD Service - Care,Direct Payments
Cambridgeshire County Council,23-Dec-20,51301496237,-864.76,Redacted Personal Data ,INDIVIDUAL,Physical Disablity - Cost of Care,Countywide PD Service - Care,Direct Payments
Cambridgeshire County Council,23-Dec-20,51301496237,-864.76,Redacted Personal Data ,INDIVIDUAL,Physical Disablity - Cost of Care,Countywide PD Service - Care,Direct Payments
Cambridgeshire County Council,23-Dec-20,51301496237,-864.76,Redacted Personal Data ,INDIVIDUAL,Physical Disablity - Cost of Care,Countywide PD Service - Care,Direct Payments
Cambridgeshire County Council,23-Dec-20,51301496237,-864.76,Redacted Personal Data ,INDIVIDUAL,Physical Disablity - Cost of Care,Countywide PD Service - Care,Direct Payments
Cambridgeshire County Council,23-Dec-20,51301496237,-864.76,Redacted Personal Data ,INDIVIDUAL,Physical Disablity - Cost of Care,Countywide PD Service - Care,Direct Payments
Cambridgeshire County Council,23-Dec-20,51301496237,-864.76,Redacted Personal Data ,INDIVIDUAL,Physical Disablity - Cost of Care,Countywide PD Service - Care,Direct Payments
Cambridgeshire County Council,23-Dec-20,51301496237,-864.76,Redacted Personal Data ,INDIVIDUAL,Physical Disablity - Cost of Care,Countywide PD Service - Care,Direct Payments
Cambridgeshire County Council,23-Dec-20,51301496237,-864.76,Redacted Personal Data ,INDIVIDUAL,Physical Disablity - Cost of Care,Countywide PD Service - Care,Direct Payments
Cambridgeshire County Council,23-Dec-20,51301496237,-864.76,Redacted Personal Data ,INDIVIDUAL,Physical Disablity - Cost of Care,Countywide PD Service - Care,Direct Payments
Cambridgeshire County Council,23-Dec-20,51301496237,-864.76,Redacted Personal Data ,INDIVIDUAL,Physical Disablity - Cost of Care,Countywide PD Service - Care,Direct Payments
Cambridgeshire County Council,23-Dec-20,51301496237,-864.76,Redacted Personal Data ,INDIVIDUAL,Physical Disablity - Cost of Care,Countywide PD Service - Care,Direct Payments
Cambridgeshire County Council,23-Dec-20,51301496237,-864.76,Redacted Personal Data ,INDIVIDUAL,Physical Disablity - Cost of Care,Countywide PD Service - Care,Direct Payments
Cambridgeshire County Council,23-Dec-20,51301496237,-864.76,Redacted Personal Data ,INDIVIDUAL,Physical Disablity - Cost of Care,Countywide PD Service - Care,Direct Payments
Cambridgeshire County Council,23-Dec-20,51301496237,-864.76,Redacted Personal Data ,INDIVIDUAL,Physical Disablity - Cost of Care,Countywide PD Service - Care,Direct Payments
Cambridgeshire County Council,23-Dec-20,51301496237,-864.76,Redacted Personal Data ,INDIVIDUAL,Physical Disablity - Cost of Care,Countywide PD Service - Care,Direct Payments
Cambridgeshire County Council,23-Dec-20,51301496237,-864.76,Redacted Personal Data ,INDIVIDUAL,Physical Disablity - Cost of Care,Countywide PD Service - Care,Direct Payments
Cambridgeshire County Council,07-Dec-20,51301473355,-860.00,Redacted Personal Data ,FOSTER PARENT,Fostering,FCP allowances,Adoption Allowances
Cambridgeshire County Council,18-Dec-20,51301493806,-850.00,KINGFISHER HOUSE,CARE ESTABLISHMENT,OP - City & South Locality - Cost of Care,Older People - City & South - Care,Nursing Care
Cambridgeshire County Council,18-Dec-20,51301493806,-850.00,KINGFISHER HOUSE,CARE ESTABLISHMENT,OP - City & South Locality - Cost of Care,Older People - City & South - Care,Nursing Care
Cambridgeshire County Council,18-Dec-20,51301493806,-850.00,KINGFISHER HOUSE,CARE ESTABLISHMENT,OP - City & South Locality - Cost of Care,Older People - City & South - Care,Nursing Care
Cambridgeshire County Council,18-Dec-20,51301493806,-850.00,KINGFISHER HOUSE,CARE ESTABLISHMENT,OP - City & South Locality - Cost of Care,Older People - City & South - Care,Nursing Care
Cambridgeshire County Council,18-Dec-20,51301493806,-850.00,KINGFISHER HOUSE,CARE ESTABLISHMENT,OP - City & South Locality - Cost of Care,Older People - City & South - Care,Nursing Care
Cambridgeshire County Council,18-Dec-20,51301493806,-850.00,KINGFISHER HOUSE,CARE ESTABLISHMENT,OP - City & South Locality - Cost of Care,Older People - City & South - Care,Nursing Care
Cambridgeshire County Council,18-Dec-20,51301493806,-850.00,KINGFISHER HOUSE,CARE ESTABLISHMENT,OP - City & South Locality - Cost of Care,Older People - City & South - Care,Nursing Care
Cambridgeshire County Council,18-Dec-20,51301493806,-850.00,KINGFISHER HOUSE,CARE ESTABLISHMENT,OP - City & South Locality - Cost of Care,Older People - City & South - Care,Nursing Care
Cambridgeshire County Council,18-Dec-20,51301493806,-850.00,KINGFISHER HOUSE,CARE ESTABLISHMENT,OP - City & South Locality - Cost of Care,Older People - City & South - Care,Nursing Care
Cambridgeshire County Council,18-Dec-20,51301493806,-850.00,KINGFISHER HOUSE,CARE ESTABLISHMENT,OP - City & South Locality - Cost of Care,Older People - City & South - Care,Nursing Care
Cambridgeshire County Council,18-Dec-20,51301493806,-850.00,KINGFISHER HOUSE,CARE ESTABLISHMENT,OP - City & South Locality - Cost of Care,Older People - City & South - Care,Nursing Care
Cambridgeshire County Council,18-Dec-20,51301493806,-850.00,KINGFISHER HOUSE,CARE ESTABLISHMENT,OP - City & South Locality - Cost of Care,Older People - City & South - Care,Nursing Care
Cambridgeshire County Council,07-Dec-20,51301482014,-847.50,AVICAN SUPPORT LTD,CARE ESTABLISHMENT,LAC Placements,Placements - 16+,Agency Placements - In County
Cambridgeshire County Council,07-Dec-20,51301482176,-839.99,Redacted Personal Data ,INDIVIDUAL,Autism and Adult Support - Cost of Care,Autism and Adult Support - Care,Direct Payments
Cambridgeshire County Council,18-Dec-20,51301491570,-828.14,AURORA ORCHARD MANOR,CARE ESTABLISHMENT,LD - Hunts Locality - Cost of Care,LD - Huntingdonshire - Care,Residential Care
Cambridgeshire County Council,18-Dec-20,51301489180,-822.44,THE ELMS NURSING HOME,CARE ESTABLISHMENT,OP - Hunts Locality - Cost of Care,Hunts OP Team - Care,Nursing Care
Cambridgeshire County Council,18-Dec-20,51301489180,-822.44,THE ELMS NURSING HOME,CARE ESTABLISHMENT,OP - Hunts Locality - Cost of Care,Hunts OP Team - Care,Nursing Care
Cambridgeshire County Council,18-Dec-20,51301489180,-822.44,THE ELMS NURSING HOME,CARE ESTABLISHMENT,OP - Hunts Locality - Cost of Care,Hunts OP Team - Care,Nursing Care
Cambridgeshire County Council,18-Dec-20,51301489180,-822.44,THE ELMS NURSING HOME,CARE ESTABLISHMENT,OP - Hunts Locality - Cost of Care,Hunts OP Team - Care,Nursing Care
Cambridgeshire County Council,18-Dec-20,51301489180,-822.44,THE ELMS NURSING HOME,CARE ESTABLISHMENT,OP - Hunts Locality - Cost of Care,Hunts OP Team - Care,Nursing Care
Cambridgeshire County Council,18-Dec-20,51301489180,-822.44,THE ELMS NURSING HOME,CARE ESTABLISHMENT,OP - Hunts Locality - Cost of Care,Hunts OP Team - Care,Nursing Care
Cambridgeshire County Council,07-Dec-20,51301482589,-820.00,Redacted Personal Data ,FOSTER PARENT,Fostering,FCP allowances,Adoption Allowances
Cambridgeshire County Council,07-Dec-20,51301482590,-820.00,Redacted Personal Data ,FOSTER PARENT,Fostering,FCP allowances,Adoption Allowances
Cambridgeshire County Council,07-Dec-20,51301482591,-820.00,Redacted Personal Data ,FOSTER PARENT,Fostering,FCP allowances,Adoption Allowances
Cambridgeshire County Council,07-Dec-20,51301482593,-820.00,Redacted Personal Data ,FOSTER PARENT,Fostering,FCP allowances,Adoption Allowances
Cambridgeshire County Council,18-Dec-20,51301489132,-806.26,BARCHESTER HEALTHCARE HOMES LTD,CARE ESTABLISHMENT,OPMH - City & South,Older People Mental Health E Cambs,Nursing Care
Cambridgeshire County Council,18-Dec-20,51301489132,-806.26,BARCHESTER HEALTHCARE HOMES LTD,CARE ESTABLISHMENT,OPMH - City & South,Older People Mental Health E Cambs,Nursing Care
Cambridgeshire County Council,18-Dec-20,51301489132,-806.26,BARCHESTER HEALTHCARE HOMES LTD,CARE ESTABLISHMENT,OPMH - City & South,Older People Mental Health E Cambs,Nursing Care
Cambridgeshire County Council,18-Dec-20,51301488719,-801.92,AVAILL HEALTHCARE,CARE ESTABLISHMENT,Physical Disablity - Cost of Care,Countywide PD Service - Care,Homecare
Cambridgeshire County Council,18-Dec-20,51301488719,-801.92,AVAILL HEALTHCARE,CARE ESTABLISHMENT,Physical Disablity - Cost of Care,Countywide PD Service - Care,Homecare
Cambridgeshire County Council,18-Dec-20,51301488719,-801.92,AVAILL HEALTHCARE,CARE ESTABLISHMENT,Physical Disablity - Cost of Care,Countywide PD Service - Care,Homecare
Cambridgeshire County Council,18-Dec-20,51301488719,-801.92,AVAILL HEALTHCARE,CARE ESTABLISHMENT,Physical Disablity - Cost of Care,Countywide PD Service - Care,Homecare
Cambridgeshire County Council,18-Dec-20,51301488719,-801.92,AVAILL HEALTHCARE,CARE ESTABLISHMENT,Physical Disablity - Cost of Care,Countywide PD Service - Care,Homecare
Cambridgeshire County Council,18-Dec-20,51301488719,-801.92,AVAILL HEALTHCARE,CARE ESTABLISHMENT,Physical Disablity - Cost of Care,Countywide PD Service - Care,Homecare
Cambridgeshire County Council,18-Dec-20,51301488719,-801.92,AVAILL HEALTHCARE,CARE ESTABLISHMENT,Physical Disablity - Cost of Care,Countywide PD Service - Care,Homecare
Cambridgeshire County Council,18-Dec-20,51301488797,-801.00,AVAILL HEALTHCARE,CARE ESTABLISHMENT,Physical Disablity - Cost of Care,Countywide PD Service - Care,Homecare
Cambridgeshire County Council,18-Dec-20,51301488797,-801.00,AVAILL HEALTHCARE,CARE ESTABLISHMENT,Physical Disablity - Cost of Care,Countywide PD Service - Care,Homecare
Cambridgeshire County Council,18-Dec-20,51301491210,-796.95,Next Steps Ltd,COMPANY,LD - Young Adults Team,LD - Young Adults - Care,Supported Living
Cambridgeshire County Council,18-Dec-20,51301491210,-796.95,Next Steps Ltd,COMPANY,LD - Young Adults Team,LD - Young Adults - Care,Supported Living
Cambridgeshire County Council,24-Dec-20,51301496806,-794.21,The Granary,COMPANY,Autism and Adult Support - Cost of Care,Autism and Adult Support - Care,Residential Care
Cambridgeshire County Council,18-Dec-20,51301491789,-792.86,MIDFIELD LODGE CARE CENTRE,CARE ESTABLISHMENT,Strategic Management - Adults,Adults Assistant Director,Nursing Care
Cambridgeshire County Council,18-Dec-20,51301491815,-780.00,AVERY HOUSE CARE HOME,CARE ESTABLISHMENT,OP - Hunts Locality - Cost of Care,Hunts OP Team - Care,Residential Care
Cambridgeshire County Council,18-Dec-20,51301491815,-780.00,AVERY HOUSE CARE HOME,CARE ESTABLISHMENT,OP - Hunts Locality - Cost of Care,Hunts OP Team - Care,Residential Care
Cambridgeshire County Council,18-Dec-20,51301491815,-780.00,AVERY HOUSE CARE HOME,CARE ESTABLISHMENT,OP - Hunts Locality - Cost of Care,Hunts OP Team - Care,Residential Care
Cambridgeshire County Council,18-Dec-20,51301491815,-780.00,AVERY HOUSE CARE HOME,CARE ESTABLISHMENT,OP - Hunts Locality - Cost of Care,Hunts OP Team - Care,Residential Care
Cambridgeshire County Council,18-Dec-20,51301491815,-780.00,AVERY HOUSE CARE HOME,CARE ESTABLISHMENT,OP - Hunts Locality - Cost of Care,Hunts OP Team - Care,Residential Care
Cambridgeshire County Council,18-Dec-20,51301489283,-780.00,THE ELMS NURSING HOME,CARE ESTABLISHMENT,OP - Fenland Locality - Cost of Care,Older People - Fenland - Care,Nursing Care
Cambridgeshire County Council,18-Dec-20,51301489283,-780.00,THE ELMS NURSING HOME,CARE ESTABLISHMENT,OP - Fenland Locality - Cost of Care,Older People - Fenland - Care,Nursing Care
Cambridgeshire County Council,18-Dec-20,51301489283,-780.00,THE ELMS NURSING HOME,CARE ESTABLISHMENT,OP - Fenland Locality - Cost of Care,Older People - Fenland - Care,Nursing Care
Cambridgeshire County Council,18-Dec-20,51301489283,-780.00,THE ELMS NURSING HOME,CARE ESTABLISHMENT,OP - Fenland Locality - Cost of Care,Older People - Fenland - Care,Nursing Care
Cambridgeshire County Council,18-Dec-20,51301489283,-780.00,THE ELMS NURSING HOME,CARE ESTABLISHMENT,OP - Fenland Locality - Cost of Care,Older People - Fenland - Care,Nursing Care
Cambridgeshire County Council,18-Dec-20,51301489283,-780.00,THE ELMS NURSING HOME,CARE ESTABLISHMENT,OP - Fenland Locality - Cost of Care,Older People - Fenland - Care,Nursing Care
Cambridgeshire County Council,18-Dec-20,51301489283,-780.00,THE ELMS NURSING HOME,CARE ESTABLISHMENT,OP - Fenland Locality - Cost of Care,Older People - Fenland - Care,Nursing Care
Cambridgeshire County Council,18-Dec-20,51301489283,-780.00,THE ELMS NURSING HOME,CARE ESTABLISHMENT,OP - Fenland Locality - Cost of Care,Older People - Fenland - Care,Nursing Care
Cambridgeshire County Council,18-Dec-20,51301489283,-780.00,THE ELMS NURSING HOME,CARE ESTABLISHMENT,OP - Fenland Locality - Cost of Care,Older People - Fenland - Care,Nursing Care
Cambridgeshire County Council,18-Dec-20,51301489283,-780.00,THE ELMS NURSING HOME,CARE ESTABLISHMENT,OP - Fenland Locality - Cost of Care,Older People - Fenland - Care,Nursing Care
Cambridgeshire County Council,18-Dec-20,51301489283,-780.00,THE ELMS NURSING HOME,CARE ESTABLISHMENT,OP - Fenland Locality - Cost of Care,Older People - Fenland - Care,Nursing Care
Cambridgeshire County Council,18-Dec-20,51301489283,-780.00,THE ELMS NURSING HOME,CARE ESTABLISHMENT,OP - Fenland Locality - Cost of Care,Older People - Fenland - Care,Nursing Care
Cambridgeshire County Council,18-Dec-20,51301489283,-780.00,THE ELMS NURSING HOME,CARE ESTABLISHMENT,OP - Fenland Locality - Cost of Care,Older People - Fenland - Care,Nursing Care
Cambridgeshire County Council,18-Dec-20,51301489283,-780.00,THE ELMS NURSING HOME,CARE ESTABLISHMENT,OP - Fenland Locality - Cost of Care,Older People - Fenland - Care,Nursing Care
Cambridgeshire County Council,18-Dec-20,51301490299,-771.43,DUNAMIS SOCIAL CARE,CARE ESTABLISHMENT,Physical Disablity - Cost of Care,Countywide PD Service - Care,Homecare
Cambridgeshire County Council,18-Dec-20,51301490288,-769.29,Christies Care Lts,COMPANY,Physical Disablity - Cost of Care,Countywide PD Service - Care,Homecare
Cambridgeshire County Council,18-Dec-20,51301493744,-750.00,ORCHARD HOUSE NURSING HOME,CARE ESTABLISHMENT,OP - Fenland Locality - Cost of Care,Older People - Fenland - Care,Residential Care
Cambridgeshire County Council,18-Dec-20,51301491200,-750.00,THE CAMBRIDGE HOUSING SOCIETY LTD,CARE ESTABLISHMENT,OP - East Cambs Locality - Cost of Care,East Cambs - O P Team - Care,Short Term Other
Cambridgeshire County Council,18-Dec-20,51301491200,-750.00,THE CAMBRIDGE HOUSING SOCIETY LTD,CARE ESTABLISHMENT,OP - East Cambs Locality - Cost of Care,East Cambs - O P Team - Care,Short Term Other
Cambridgeshire County Council,18-Dec-20,51301491200,-750.00,THE CAMBRIDGE HOUSING SOCIETY LTD,CARE ESTABLISHMENT,OP - East Cambs Locality - Cost of Care,East Cambs - O P Team - Care,Short Term Other
Cambridgeshire County Council,18-Dec-20,51301491200,-750.00,THE CAMBRIDGE HOUSING SOCIETY LTD,CARE ESTABLISHMENT,OP - East Cambs Locality - Cost of Care,East Cambs - O P Team - Care,Short Term Other
Cambridgeshire County Council,18-Dec-20,51301491200,-750.00,THE CAMBRIDGE HOUSING SOCIETY LTD,CARE ESTABLISHMENT,OP - East Cambs Locality - Cost of Care,East Cambs - O P Team - Care,Short Term Other
Cambridgeshire County Council,18-Dec-20,51301491200,-750.00,THE CAMBRIDGE HOUSING SOCIETY LTD,CARE ESTABLISHMENT,OP - East Cambs Locality - Cost of Care,East Cambs - O P Team - Care,Short Term Other
Cambridgeshire County Council,18-Dec-20,51301491200,-750.00,THE CAMBRIDGE HOUSING SOCIETY LTD,CARE ESTABLISHMENT,OP - East Cambs Locality - Cost of Care,East Cambs - O P Team - Care,Short Term Other
Cambridgeshire County Council,18-Dec-20,51301491200,-750.00,THE CAMBRIDGE HOUSING SOCIETY LTD,CARE ESTABLISHMENT,OP - East Cambs Locality - Cost of Care,East Cambs - O P Team - Care,Short Term Other
Cambridgeshire County Council,18-Dec-20,51301491796,-750.00,THE CAMBRIDGE HOUSING SOCIETY LTD,CARE ESTABLISHMENT,OP - City & South Locality - Cost of Care,Older People - City & South - Care,Residential Care
Cambridgeshire County Council,18-Dec-20,51301491796,-750.00,THE CAMBRIDGE HOUSING SOCIETY LTD,CARE ESTABLISHMENT,OP - City & South Locality - Cost of Care,Older People - City & South - Care,Residential Care
Cambridgeshire County Council,18-Dec-20,51301491796,-750.00,THE CAMBRIDGE HOUSING SOCIETY LTD,CARE ESTABLISHMENT,OP - City & South Locality - Cost of Care,Older People - City & South - Care,Residential Care
Cambridgeshire County Council,18-Dec-20,51301491796,-750.00,THE CAMBRIDGE HOUSING SOCIETY LTD,CARE ESTABLISHMENT,OP - City & South Locality - Cost of Care,Older People - City & South - Care,Residential Care
Cambridgeshire County Council,18-Dec-20,51301491796,-750.00,THE CAMBRIDGE HOUSING SOCIETY LTD,CARE ESTABLISHMENT,OP - City & South Locality - Cost of Care,Older People - City & South - Care,Residential Care
Cambridgeshire County Council,18-Dec-20,51301491796,-750.00,THE CAMBRIDGE HOUSING SOCIETY LTD,CARE ESTABLISHMENT,OP - City & South Locality - Cost of Care,Older People - City & South - Care,Residential Care
Cambridgeshire County Council,18-Dec-20,51301491796,-750.00,THE CAMBRIDGE HOUSING SOCIETY LTD,CARE ESTABLISHMENT,OP - City & South Locality - Cost of Care,Older People - City & South - Care,Residential Care
Cambridgeshire County Council,18-Dec-20,51301491796,-750.00,THE CAMBRIDGE HOUSING SOCIETY LTD,CARE ESTABLISHMENT,OP - City & South Locality - Cost of Care,Older People - City & South - Care,Residential Care
Cambridgeshire County Council,18-Dec-20,51301491796,-750.00,THE CAMBRIDGE HOUSING SOCIETY LTD,CARE ESTABLISHMENT,OP - City & South Locality - Cost of Care,Older People - City & South - Care,Residential Care
Cambridgeshire County Council,18-Dec-20,51301491796,-750.00,THE CAMBRIDGE HOUSING SOCIETY LTD,CARE ESTABLISHMENT,OP - City & South Locality - Cost of Care,Older People - City & South - Care,Residential Care
Cambridgeshire County Council,18-Dec-20,51301491796,-750.00,THE CAMBRIDGE HOUSING SOCIETY LTD,CARE ESTABLISHMENT,OP - City & South Locality - Cost of Care,Older People - City & South - Care,Residential Care
Cambridgeshire County Council,24-Dec-20,51301496599,-749.84,Redacted Personal Data ,INDIVIDUAL,Children's Disability Direct Payments,CSC Direct Payments,Direct Payments
Cambridgeshire County Council,07-Dec-20,51301482313,-743.82,TURNING POINT SERVICES LTD,CARE ESTABLISHMENT,LD - Fenland Locality - Cost of Care,LD - Fenland  - Care,Homecare
Cambridgeshire County Council,07-Dec-20,51301482313,-743.82,TURNING POINT SERVICES LTD,CARE ESTABLISHMENT,LD - Fenland Locality - Cost of Care,LD - Fenland  - Care,Homecare
Cambridgeshire County Council,07-Dec-20,51301482313,-743.82,TURNING POINT SERVICES LTD,CARE ESTABLISHMENT,LD - Fenland Locality - Cost of Care,LD - Fenland  - Care,Homecare
Cambridgeshire County Council,07-Dec-20,51301482313,-743.82,TURNING POINT SERVICES LTD,CARE ESTABLISHMENT,LD - Fenland Locality - Cost of Care,LD - Fenland  - Care,Homecare
Cambridgeshire County Council,07-Dec-20,51301482313,-743.82,TURNING POINT SERVICES LTD,CARE ESTABLISHMENT,LD - Fenland Locality - Cost of Care,LD - Fenland  - Care,Homecare
Cambridgeshire County Council,07-Dec-20,51301482313,-743.82,TURNING POINT SERVICES LTD,CARE ESTABLISHMENT,LD - Fenland Locality - Cost of Care,LD - Fenland  - Care,Homecare
Cambridgeshire County Council,07-Dec-20,51301482313,-743.82,TURNING POINT SERVICES LTD,CARE ESTABLISHMENT,LD - Fenland Locality - Cost of Care,LD - Fenland  - Care,Homecare
Cambridgeshire County Council,07-Dec-20,51301482313,-743.82,TURNING POINT SERVICES LTD,CARE ESTABLISHMENT,LD - Fenland Locality - Cost of Care,LD - Fenland  - Care,Homecare
Cambridgeshire County Council,07-Dec-20,51301482313,-743.82,TURNING POINT SERVICES LTD,CARE ESTABLISHMENT,LD - Fenland Locality - Cost of Care,LD - Fenland  - Care,Homecare
Cambridgeshire County Council,07-Dec-20,51301482313,-743.82,TURNING POINT SERVICES LTD,CARE ESTABLISHMENT,LD - Fenland Locality - Cost of Care,LD - Fenland  - Care,Homecare
Cambridgeshire County Council,07-Dec-20,51301482313,-743.82,TURNING POINT SERVICES LTD,CARE ESTABLISHMENT,LD - Fenland Locality - Cost of Care,LD - Fenland  - Care,Homecare
Cambridgeshire County Council,07-Dec-20,51301482313,-743.82,TURNING POINT SERVICES LTD,CARE ESTABLISHMENT,LD - Fenland Locality - Cost of Care,LD - Fenland  - Care,Homecare
Cambridgeshire County Council,07-Dec-20,51301482313,-743.82,TURNING POINT SERVICES LTD,CARE ESTABLISHMENT,LD - Fenland Locality - Cost of Care,LD - Fenland  - Care,Homecare
Cambridgeshire County Council,07-Dec-20,51301482313,-743.82,TURNING POINT SERVICES LTD,CARE ESTABLISHMENT,LD - Fenland Locality - Cost of Care,LD - Fenland  - Care,Homecare
Cambridgeshire County Council,07-Dec-20,51301482313,-743.82,TURNING POINT SERVICES LTD,CARE ESTABLISHMENT,LD - Fenland Locality - Cost of Care,LD - Fenland  - Care,Homecare
Cambridgeshire County Council,07-Dec-20,51301482313,-743.82,TURNING POINT SERVICES LTD,CARE ESTABLISHMENT,LD - Fenland Locality - Cost of Care,LD - Fenland  - Care,Homecare
Cambridgeshire County Council,07-Dec-20,51301482313,-743.82,TURNING POINT SERVICES LTD,CARE ESTABLISHMENT,LD - Fenland Locality - Cost of Care,LD - Fenland  - Care,Homecare
Cambridgeshire County Council,07-Dec-20,51301482313,-743.82,TURNING POINT SERVICES LTD,CARE ESTABLISHMENT,LD - Fenland Locality - Cost of Care,LD - Fenland  - Care,Homecare
Cambridgeshire County Council,07-Dec-20,51301482313,-743.82,TURNING POINT SERVICES LTD,CARE ESTABLISHMENT,LD - Fenland Locality - Cost of Care,LD - Fenland  - Care,Homecare
Cambridgeshire County Council,07-Dec-20,51301482313,-743.82,TURNING POINT SERVICES LTD,CARE ESTABLISHMENT,LD - Fenland Locality - Cost of Care,LD - Fenland  - Care,Homecare
Cambridgeshire County Council,07-Dec-20,51301482313,-743.82,TURNING POINT SERVICES LTD,CARE ESTABLISHMENT,LD - Fenland Locality - Cost of Care,LD - Fenland  - Care,Homecare
Cambridgeshire County Council,07-Dec-20,51301482313,-743.82,TURNING POINT SERVICES LTD,CARE ESTABLISHMENT,LD - Fenland Locality - Cost of Care,LD - Fenland  - Care,Homecare
Cambridgeshire County Council,07-Dec-20,51301482313,-743.82,TURNING POINT SERVICES LTD,CARE ESTABLISHMENT,LD - Fenland Locality - Cost of Care,LD - Fenland  - Care,Homecare
Cambridgeshire County Council,07-Dec-20,51301482313,-743.82,TURNING POINT SERVICES LTD,CARE ESTABLISHMENT,LD - Fenland Locality - Cost of Care,LD - Fenland  - Care,Homecare
Cambridgeshire County Council,07-Dec-20,51301482313,-743.82,TURNING POINT SERVICES LTD,CARE ESTABLISHMENT,LD - Fenland Locality - Cost of Care,LD - Fenland  - Care,Homecare
Cambridgeshire County Council,07-Dec-20,51301482313,-743.82,TURNING POINT SERVICES LTD,CARE ESTABLISHMENT,LD - Fenland Locality - Cost of Care,LD - Fenland  - Care,Homecare
Cambridgeshire County Council,18-Dec-20,51301489846,-738.01,BETTER HEALTHCARE SERVICES LTD,CARE ESTABLISHMENT,OP - Hunts Locality - Cost of Care,Hunts OP Team - Care,Domiciliary Care
Cambridgeshire County Council,18-Dec-20,51301489846,-738.01,BETTER HEALTHCARE SERVICES LTD,CARE ESTABLISHMENT,OP - Hunts Locality - Cost of Care,Hunts OP Team - Care,Domiciliary Care
Cambridgeshire County Council,18-Dec-20,51301489846,-738.01,BETTER HEALTHCARE SERVICES LTD,CARE ESTABLISHMENT,OP - Hunts Locality - Cost of Care,Hunts OP Team - Care,Domiciliary Care
Cambridgeshire County Council,18-Dec-20,51301489846,-738.01,BETTER HEALTHCARE SERVICES LTD,CARE ESTABLISHMENT,OP - Hunts Locality - Cost of Care,Hunts OP Team - Care,Domiciliary Care
Cambridgeshire County Council,18-Dec-20,51301489846,-738.01,BETTER HEALTHCARE SERVICES LTD,CARE ESTABLISHMENT,OP - Hunts Locality - Cost of Care,Hunts OP Team - Care,Domiciliary Care
Cambridgeshire County Council,18-Dec-20,51301489846,-738.01,BETTER HEALTHCARE SERVICES LTD,CARE ESTABLISHMENT,OP - Hunts Locality - Cost of Care,Hunts OP Team - Care,Domiciliary Care
Cambridgeshire County Council,18-Dec-20,51301489846,-738.01,BETTER HEALTHCARE SERVICES LTD,CARE ESTABLISHMENT,OP - Hunts Locality - Cost of Care,Hunts OP Team - Care,Domiciliary Care
Cambridgeshire County Council,18-Dec-20,51301489846,-738.01,BETTER HEALTHCARE SERVICES LTD,CARE ESTABLISHMENT,OP - Hunts Locality - Cost of Care,Hunts OP Team - Care,Domiciliary Care
Cambridgeshire County Council,18-Dec-20,51301489846,-738.01,BETTER HEALTHCARE SERVICES LTD,CARE ESTABLISHMENT,OP - Hunts Locality - Cost of Care,Hunts OP Team - Care,Domiciliary Care
Cambridgeshire County Council,18-Dec-20,51301492722,-729.44,HUNTERS HEALTHCARE (HUNTERS DOWN),CARE ESTABLISHMENT,OP - Hunts Locality - Cost of Care,Hunts OP Team - Care,Nursing Care
Cambridgeshire County Council,18-Dec-20,51301492722,-729.44,HUNTERS HEALTHCARE (HUNTERS DOWN),CARE ESTABLISHMENT,OP - Hunts Locality - Cost of Care,Hunts OP Team - Care,Nursing Care
Cambridgeshire County Council,18-Dec-20,51301492722,-729.44,HUNTERS HEALTHCARE (HUNTERS DOWN),CARE ESTABLISHMENT,OP - Hunts Locality - Cost of Care,Hunts OP Team - Care,Nursing Care
Cambridgeshire County Council,18-Dec-20,51301492722,-729.44,HUNTERS HEALTHCARE (HUNTERS DOWN),CARE ESTABLISHMENT,OP - Hunts Locality - Cost of Care,Hunts OP Team - Care,Nursing Care
Cambridgeshire County Council,18-Dec-20,51301492722,-729.44,HUNTERS HEALTHCARE (HUNTERS DOWN),CARE ESTABLISHMENT,OP - Hunts Locality - Cost of Care,Hunts OP Team - Care,Nursing Care
Cambridgeshire County Council,18-Dec-20,51301492722,-729.44,HUNTERS HEALTHCARE (HUNTERS DOWN),CARE ESTABLISHMENT,OP - Hunts Locality - Cost of Care,Hunts OP Team - Care,Nursing Care
Cambridgeshire County Council,18-Dec-20,51301492722,-729.44,HUNTERS HEALTHCARE (HUNTERS DOWN),CARE ESTABLISHMENT,OP - Hunts Locality - Cost of Care,Hunts OP Team - Care,Nursing Care
Cambridgeshire County Council,18-Dec-20,51301492722,-729.44,HUNTERS HEALTHCARE (HUNTERS DOWN),CARE ESTABLISHMENT,OP - Hunts Locality - Cost of Care,Hunts OP Team - Care,Nursing Care
Cambridgeshire County Council,18-Dec-20,51301492722,-729.44,HUNTERS HEALTHCARE (HUNTERS DOWN),CARE ESTABLISHMENT,OP - Hunts Locality - Cost of Care,Hunts OP Team - Care,Nursing Care
Cambridgeshire County Council,18-Dec-20,51301492722,-729.44,HUNTERS HEALTHCARE (HUNTERS DOWN),CARE ESTABLISHMENT,OP - Hunts Locality - Cost of Care,Hunts OP Team - Care,Nursing Care
Cambridgeshire County Council,18-Dec-20,51301492722,-729.44,HUNTERS HEALTHCARE (HUNTERS DOWN),CARE ESTABLISHMENT,OP - Hunts Locality - Cost of Care,Hunts OP Team - Care,Nursing Care
Cambridgeshire County Council,18-Dec-20,51301492722,-729.44,HUNTERS HEALTHCARE (HUNTERS DOWN),CARE ESTABLISHMENT,OP - Hunts Locality - Cost of Care,Hunts OP Team - Care,Nursing Care
Cambridgeshire County Council,18-Dec-20,51301492722,-729.44,HUNTERS HEALTHCARE (HUNTERS DOWN),CARE ESTABLISHMENT,OP - Hunts Locality - Cost of Care,Hunts OP Team - Care,Nursing Care
Cambridgeshire County Council,18-Dec-20,51301492722,-729.44,HUNTERS HEALTHCARE (HUNTERS DOWN),CARE ESTABLISHMENT,OP - Hunts Locality - Cost of Care,Hunts OP Team - Care,Nursing Care
Cambridgeshire County Council,18-Dec-20,51301492722,-729.44,HUNTERS HEALTHCARE (HUNTERS DOWN),CARE ESTABLISHMENT,OP - Hunts Locality - Cost of Care,Hunts OP Team - Care,Nursing Care
Cambridgeshire County Council,18-Dec-20,51301492722,-729.44,HUNTERS HEALTHCARE (HUNTERS DOWN),CARE ESTABLISHMENT,OP - Hunts Locality - Cost of Care,Hunts OP Team - Care,Nursing Care
Cambridgeshire County Council,18-Dec-20,51301492722,-729.44,HUNTERS HEALTHCARE (HUNTERS DOWN),CARE ESTABLISHMENT,OP - Hunts Locality - Cost of Care,Hunts OP Team - Care,Nursing Care
Cambridgeshire County Council,18-Dec-20,51301492722,-729.44,HUNTERS HEALTHCARE (HUNTERS DOWN),CARE ESTABLISHMENT,OP - Hunts Locality - Cost of Care,Hunts OP Team - Care,Nursing Care
Cambridgeshire County Council,18-Dec-20,51301492722,-729.44,HUNTERS HEALTHCARE (HUNTERS DOWN),CARE ESTABLISHMENT,OP - Hunts Locality - Cost of Care,Hunts OP Team - Care,Nursing Care
Cambridgeshire County Council,18-Dec-20,51301492722,-729.44,HUNTERS HEALTHCARE (HUNTERS DOWN),CARE ESTABLISHMENT,OP - Hunts Locality - Cost of Care,Hunts OP Team - Care,Nursing Care
Cambridgeshire County Council,18-Dec-20,51301492722,-729.44,HUNTERS HEALTHCARE (HUNTERS DOWN),CARE ESTABLISHMENT,OP - Hunts Locality - Cost of Care,Hunts OP Team - Care,Nursing Care
Cambridgeshire County Council,18-Dec-20,51301492722,-729.44,HUNTERS HEALTHCARE (HUNTERS DOWN),CARE ESTABLISHMENT,OP - Hunts Locality - Cost of Care,Hunts OP Team - Care,Nursing Care
Cambridgeshire County Council,18-Dec-20,51301492722,-729.44,HUNTERS HEALTHCARE (HUNTERS DOWN),CARE ESTABLISHMENT,OP - Hunts Locality - Cost of Care,Hunts OP Team - Care,Nursing Care
Cambridgeshire County Council,18-Dec-20,51301492722,-729.44,HUNTERS HEALTHCARE (HUNTERS DOWN),CARE ESTABLISHMENT,OP - Hunts Locality - Cost of Care,Hunts OP Team - Care,Nursing Care
Cambridgeshire County Council,18-Dec-20,51301492722,-729.44,HUNTERS HEALTHCARE (HUNTERS DOWN),CARE ESTABLISHMENT,OP - Hunts Locality - Cost of Care,Hunts OP Team - Care,Nursing Care
Cambridgeshire County Council,18-Dec-20,51301492722,-729.44,HUNTERS HEALTHCARE (HUNTERS DOWN),CARE ESTABLISHMENT,OP - Hunts Locality - Cost of Care,Hunts OP Team - Care,Nursing Care
Cambridgeshire County Council,18-Dec-20,51301492722,-729.44,HUNTERS HEALTHCARE (HUNTERS DOWN),CARE ESTABLISHMENT,OP - Hunts Locality - Cost of Care,Hunts OP Team - Care,Nursing Care
Cambridgeshire County Council,18-Dec-20,51301492722,-729.44,HUNTERS HEALTHCARE (HUNTERS DOWN),CARE ESTABLISHMENT,OP - Hunts Locality - Cost of Care,Hunts OP Team - Care,Nursing Care
Cambridgeshire County Council,18-Dec-20,51301492722,-729.44,HUNTERS HEALTHCARE (HUNTERS DOWN),CARE ESTABLISHMENT,OP - Hunts Locality - Cost of Care,Hunts OP Team - Care,Nursing Care
Cambridgeshire County Council,18-Dec-20,51301492722,-729.44,HUNTERS HEALTHCARE (HUNTERS DOWN),CARE ESTABLISHMENT,OP - Hunts Locality - Cost of Care,Hunts OP Team - Care,Nursing Care
Cambridgeshire County Council,18-Dec-20,51301492722,-729.44,HUNTERS HEALTHCARE (HUNTERS DOWN),CARE ESTABLISHMENT,OP - Hunts Locality - Cost of Care,Hunts OP Team - Care,Nursing Care
Cambridgeshire County Council,18-Dec-20,51301492722,-729.44,HUNTERS HEALTHCARE (HUNTERS DOWN),CARE ESTABLISHMENT,OP - Hunts Locality - Cost of Care,Hunts OP Team - Care,Nursing Care
Cambridgeshire County Council,18-Dec-20,51301492722,-729.44,HUNTERS HEALTHCARE (HUNTERS DOWN),CARE ESTABLISHMENT,OP - Hunts Locality - Cost of Care,Hunts OP Team - Care,Nursing Care
Cambridgeshire County Council,18-Dec-20,51301492722,-729.44,HUNTERS HEALTHCARE (HUNTERS DOWN),CARE ESTABLISHMENT,OP - Hunts Locality - Cost of Care,Hunts OP Team - Care,Nursing Care
Cambridgeshire County Council,18-Dec-20,51301492722,-729.44,HUNTERS HEALTHCARE (HUNTERS DOWN),CARE ESTABLISHMENT,OP - Hunts Locality - Cost of Care,Hunts OP Team - Care,Nursing Care
Cambridgeshire County Council,07-Dec-20,51301482258,-725.00,METHODIST HOMES FOR THE AGED (MHA),CARE ESTABLISHMENT,OP - East Cambs Locality - Cost of Care,East Cambs - O P Team - Care,Residential Care
Cambridgeshire County Council,07-Dec-20,51301482258,-725.00,METHODIST HOMES FOR THE AGED (MHA),CARE ESTABLISHMENT,OP - East Cambs Locality - Cost of Care,East Cambs - O P Team - Care,Residential Care
Cambridgeshire County Council,07-Dec-20,51301482258,-725.00,METHODIST HOMES FOR THE AGED (MHA),CARE ESTABLISHMENT,OP - East Cambs Locality - Cost of Care,East Cambs - O P Team - Care,Residential Care
Cambridgeshire County Council,07-Dec-20,51301482258,-725.00,METHODIST HOMES FOR THE AGED (MHA),CARE ESTABLISHMENT,OP - East Cambs Locality - Cost of Care,East Cambs - O P Team - Care,Residential Care
Cambridgeshire County Council,07-Dec-20,51301482258,-725.00,METHODIST HOMES FOR THE AGED (MHA),CARE ESTABLISHMENT,OP - East Cambs Locality - Cost of Care,East Cambs - O P Team - Care,Residential Care
Cambridgeshire County Council,07-Dec-20,51301482258,-725.00,METHODIST HOMES FOR THE AGED (MHA),CARE ESTABLISHMENT,OP - East Cambs Locality - Cost of Care,East Cambs - O P Team - Care,Residential Care
Cambridgeshire County Council,07-Dec-20,51301482258,-725.00,METHODIST HOMES FOR THE AGED (MHA),CARE ESTABLISHMENT,OP - East Cambs Locality - Cost of Care,East Cambs - O P Team - Care,Residential Care
Cambridgeshire County Council,07-Dec-20,51301482258,-725.00,METHODIST HOMES FOR THE AGED (MHA),CARE ESTABLISHMENT,OP - East Cambs Locality - Cost of Care,East Cambs - O P Team - Care,Residential Care
Cambridgeshire County Council,07-Dec-20,51301482258,-725.00,METHODIST HOMES FOR THE AGED (MHA),CARE ESTABLISHMENT,OP - East Cambs Locality - Cost of Care,East Cambs - O P Team - Care,Residential Care
Cambridgeshire County Council,07-Dec-20,51301482258,-725.00,METHODIST HOMES FOR THE AGED (MHA),CARE ESTABLISHMENT,OP - East Cambs Locality - Cost of Care,East Cambs - O P Team - Care,Residential Care
Cambridgeshire County Council,07-Dec-20,51301482258,-725.00,METHODIST HOMES FOR THE AGED (MHA),CARE ESTABLISHMENT,OP - East Cambs Locality - Cost of Care,East Cambs - O P Team - Care,Residential Care
Cambridgeshire County Council,07-Dec-20,51301482258,-725.00,METHODIST HOMES FOR THE AGED (MHA),CARE ESTABLISHMENT,OP - East Cambs Locality - Cost of Care,East Cambs - O P Team - Care,Residential Care
Cambridgeshire County Council,07-Dec-20,51301482258,-725.00,METHODIST HOMES FOR THE AGED (MHA),CARE ESTABLISHMENT,OP - East Cambs Locality - Cost of Care,East Cambs - O P Team - Care,Residential Care
Cambridgeshire County Council,07-Dec-20,51301482258,-725.00,METHODIST HOMES FOR THE AGED (MHA),CARE ESTABLISHMENT,OP - East Cambs Locality - Cost of Care,East Cambs - O P Team - Care,Residential Care
Cambridgeshire County Council,18-Dec-20,51301493802,-721.08,GLENNFIELD CARE CENTRE (OP),CARE ESTABLISHMENT,OP - Hunts Locality - Cost of Care,Hunts OP Team - Care,Nursing Care
Cambridgeshire County Council,09-Dec-20,51301484333,-720.00,Redacted Personal Data ,PARENT/GUARDIAN,Fostering,FCP allowances,Adoption Allowances
Cambridgeshire County Council,18-Dec-20,51301494072,-716.08,Cherry Blossom Care Home,COMPANY,OP - Fenland Locality - Cost of Care,Older People - Fenland - Care,Nursing Care
Cambridgeshire County Council,18-Dec-20,51301494072,-716.08,Cherry Blossom Care Home,COMPANY,OP - Fenland Locality - Cost of Care,Older People - Fenland - Care,Nursing Care
Cambridgeshire County Council,18-Dec-20,51301494072,-716.08,Cherry Blossom Care Home,COMPANY,OP - Fenland Locality - Cost of Care,Older People - Fenland - Care,Nursing Care
Cambridgeshire County Council,18-Dec-20,51301494072,-716.08,Cherry Blossom Care Home,COMPANY,OP - Fenland Locality - Cost of Care,Older People - Fenland - Care,Nursing Care
Cambridgeshire County Council,18-Dec-20,51301494072,-716.08,Cherry Blossom Care Home,COMPANY,OP - Fenland Locality - Cost of Care,Older People - Fenland - Care,Nursing Care
Cambridgeshire County Council,18-Dec-20,51301494072,-716.08,Cherry Blossom Care Home,COMPANY,OP - Fenland Locality - Cost of Care,Older People - Fenland - Care,Nursing Care
Cambridgeshire County Council,18-Dec-20,51301493833,-716.08,KINGFISHER HOUSE,CARE ESTABLISHMENT,OP - East Cambs Locality - Cost of Care,East Cambs - O P Team - Care,Nursing Care
Cambridgeshire County Council,18-Dec-20,51301493833,-716.08,KINGFISHER HOUSE,CARE ESTABLISHMENT,OP - East Cambs Locality - Cost of Care,East Cambs - O P Team - Care,Nursing Care
Cambridgeshire County Council,18-Dec-20,51301491816,-716.08,MIDFIELD LODGE CARE CENTRE,CARE ESTABLISHMENT,Physical Disablity - Cost of Care,Countywide PD Service - Care,Nursing Care
Cambridgeshire County Council,18-Dec-20,51301491816,-716.08,MIDFIELD LODGE CARE CENTRE,CARE ESTABLISHMENT,Physical Disablity - Cost of Care,Countywide PD Service - Care,Nursing Care
Cambridgeshire County Council,18-Dec-20,51301491816,-716.08,MIDFIELD LODGE CARE CENTRE,CARE ESTABLISHMENT,Physical Disablity - Cost of Care,Countywide PD Service - Care,Nursing Care
Cambridgeshire County Council,18-Dec-20,51301491816,-716.08,MIDFIELD LODGE CARE CENTRE,CARE ESTABLISHMENT,Physical Disablity - Cost of Care,Countywide PD Service - Care,Nursing Care
Cambridgeshire County Council,18-Dec-20,51301491816,-716.08,MIDFIELD LODGE CARE CENTRE,CARE ESTABLISHMENT,Physical Disablity - Cost of Care,Countywide PD Service - Care,Nursing Care
Cambridgeshire County Council,07-Dec-20,51301482329,-713.61,BROOKFIELD CARE (Radis Commnity Care),CARE ESTABLISHMENT,OP - Hunts Locality - Cost of Care,Hunts OP Team - Care,Domiciliary Care
Cambridgeshire County Council,07-Dec-20,51301482329,-713.61,BROOKFIELD CARE (Radis Commnity Care),CARE ESTABLISHMENT,OP - Hunts Locality - Cost of Care,Hunts OP Team - Care,Domiciliary Care
Cambridgeshire County Council,07-Dec-20,51301482329,-713.61,BROOKFIELD CARE (Radis Commnity Care),CARE ESTABLISHMENT,OP - Hunts Locality - Cost of Care,Hunts OP Team - Care,Domiciliary Care
Cambridgeshire County Council,07-Dec-20,51301482329,-713.61,BROOKFIELD CARE (Radis Commnity Care),CARE ESTABLISHMENT,OP - Hunts Locality - Cost of Care,Hunts OP Team - Care,Domiciliary Care
Cambridgeshire County Council,07-Dec-20,51301482329,-713.61,BROOKFIELD CARE (Radis Commnity Care),CARE ESTABLISHMENT,OP - Hunts Locality - Cost of Care,Hunts OP Team - Care,Domiciliary Care
Cambridgeshire County Council,07-Dec-20,51301482329,-713.61,BROOKFIELD CARE (Radis Commnity Care),CARE ESTABLISHMENT,OP - Hunts Locality - Cost of Care,Hunts OP Team - Care,Domiciliary Care
Cambridgeshire County Council,07-Dec-20,51301482329,-713.61,BROOKFIELD CARE (Radis Commnity Care),CARE ESTABLISHMENT,OP - Hunts Locality - Cost of Care,Hunts OP Team - Care,Domiciliary Care
Cambridgeshire County Council,07-Dec-20,51301482329,-713.61,BROOKFIELD CARE (Radis Commnity Care),CARE ESTABLISHMENT,OP - Hunts Locality - Cost of Care,Hunts OP Team - Care,Domiciliary Care
Cambridgeshire County Council,07-Dec-20,51301482329,-713.61,BROOKFIELD CARE (Radis Commnity Care),CARE ESTABLISHMENT,OP - Hunts Locality - Cost of Care,Hunts OP Team - Care,Domiciliary Care
Cambridgeshire County Council,07-Dec-20,51301482329,-713.61,BROOKFIELD CARE (Radis Commnity Care),CARE ESTABLISHMENT,OP - Hunts Locality - Cost of Care,Hunts OP Team - Care,Domiciliary Care
Cambridgeshire County Council,07-Dec-20,51301482329,-713.61,BROOKFIELD CARE (Radis Commnity Care),CARE ESTABLISHMENT,OP - Hunts Locality - Cost of Care,Hunts OP Team - Care,Domiciliary Care
Cambridgeshire County Council,07-Dec-20,51301482329,-713.61,BROOKFIELD CARE (Radis Commnity Care),CARE ESTABLISHMENT,OP - Hunts Locality - Cost of Care,Hunts OP Team - Care,Domiciliary Care
Cambridgeshire County Council,07-Dec-20,51301482329,-713.61,BROOKFIELD CARE (Radis Commnity Care),CARE ESTABLISHMENT,OP - Hunts Locality - Cost of Care,Hunts OP Team - Care,Domiciliary Care
Cambridgeshire County Council,07-Dec-20,51301482329,-713.61,BROOKFIELD CARE (Radis Commnity Care),CARE ESTABLISHMENT,OP - Hunts Locality - Cost of Care,Hunts OP Team - Care,Domiciliary Care
Cambridgeshire County Council,07-Dec-20,51301482329,-713.61,BROOKFIELD CARE (Radis Commnity Care),CARE ESTABLISHMENT,OP - Hunts Locality - Cost of Care,Hunts OP Team - Care,Domiciliary Care
Cambridgeshire County Council,07-Dec-20,51301482329,-713.61,BROOKFIELD CARE (Radis Commnity Care),CARE ESTABLISHMENT,OP - Hunts Locality - Cost of Care,Hunts OP Team - Care,Domiciliary Care
Cambridgeshire County Council,07-Dec-20,51301482329,-713.61,BROOKFIELD CARE (Radis Commnity Care),CARE ESTABLISHMENT,OP - Hunts Locality - Cost of Care,Hunts OP Team - Care,Domiciliary Care
Cambridgeshire County Council,07-Dec-20,51301482329,-713.61,BROOKFIELD CARE (Radis Commnity Care),CARE ESTABLISHMENT,OP - Hunts Locality - Cost of Care,Hunts OP Team - Care,Domiciliary Care
Cambridgeshire County Council,07-Dec-20,51301482329,-713.61,BROOKFIELD CARE (Radis Commnity Care),CARE ESTABLISHMENT,OP - Hunts Locality - Cost of Care,Hunts OP Team - Care,Domiciliary Care
Cambridgeshire County Council,07-Dec-20,51301482329,-713.61,BROOKFIELD CARE (Radis Commnity Care),CARE ESTABLISHMENT,OP - Hunts Locality - Cost of Care,Hunts OP Team - Care,Domiciliary Care
Cambridgeshire County Council,07-Dec-20,51301482329,-713.61,BROOKFIELD CARE (Radis Commnity Care),CARE ESTABLISHMENT,OP - Hunts Locality - Cost of Care,Hunts OP Team - Care,Domiciliary Care
Cambridgeshire County Council,07-Dec-20,51301482329,-713.61,BROOKFIELD CARE (Radis Commnity Care),CARE ESTABLISHMENT,OP - Hunts Locality - Cost of Care,Hunts OP Team - Care,Domiciliary Care
Cambridgeshire County Council,18-Dec-20,51301489838,-706.86,MEADOWS HOMECARE SERVICES,CARE ESTABLISHMENT,OPMH - Hunts & Fens,Older People Mental Health Fenland,Homecare
Cambridgeshire County Council,18-Dec-20,51301489838,-706.86,MEADOWS HOMECARE SERVICES,CARE ESTABLISHMENT,OPMH - Hunts & Fens,Older People Mental Health Fenland,Homecare
Cambridgeshire County Council,18-Dec-20,51301489838,-706.86,MEADOWS HOMECARE SERVICES,CARE ESTABLISHMENT,OPMH - Hunts & Fens,Older People Mental Health Fenland,Homecare
Cambridgeshire County Council,18-Dec-20,51301489838,-706.86,MEADOWS HOMECARE SERVICES,CARE ESTABLISHMENT,OPMH - Hunts & Fens,Older People Mental Health Fenland,Homecare
Cambridgeshire County Council,18-Dec-20,51301489838,-706.86,MEADOWS HOMECARE SERVICES,CARE ESTABLISHMENT,OPMH - Hunts & Fens,Older People Mental Health Fenland,Homecare
Cambridgeshire County Council,18-Dec-20,51301489838,-706.86,MEADOWS HOMECARE SERVICES,CARE ESTABLISHMENT,OPMH - Hunts & Fens,Older People Mental Health Fenland,Homecare
Cambridgeshire County Council,18-Dec-20,51301489838,-706.86,MEADOWS HOMECARE SERVICES,CARE ESTABLISHMENT,OPMH - Hunts & Fens,Older People Mental Health Fenland,Homecare
Cambridgeshire County Council,18-Dec-20,51301489838,-706.86,MEADOWS HOMECARE SERVICES,CARE ESTABLISHMENT,OPMH - Hunts & Fens,Older People Mental Health Fenland,Homecare
Cambridgeshire County Council,18-Dec-20,51301489838,-706.86,MEADOWS HOMECARE SERVICES,CARE ESTABLISHMENT,OPMH - Hunts & Fens,Older People Mental Health Fenland,Homecare
Cambridgeshire County Council,18-Dec-20,51301489838,-706.86,MEADOWS HOMECARE SERVICES,CARE ESTABLISHMENT,OPMH - Hunts & Fens,Older People Mental Health Fenland,Homecare
Cambridgeshire County Council,18-Dec-20,51301489838,-706.86,MEADOWS HOMECARE SERVICES,CARE ESTABLISHMENT,OPMH - Hunts & Fens,Older People Mental Health Fenland,Homecare
Cambridgeshire County Council,18-Dec-20,51301489226,-705.39,BARCHESTER HEALTHCARE HOMES LTD,CARE ESTABLISHMENT,OPMH - City & South,Older People Mental Health E Cambs,Nursing Care
Cambridgeshire County Council,11-Dec-20,51301486324,-702.86,CONQUEST CARE HOMES PETERBOROUGH,CARE ESTABLISHMENT,Physical Disablity - Cost of Care,Countywide PD Service - Care,Residential Care
Cambridgeshire County Council,18-Dec-20,51301490596,-700.56,Redacted Personal Data ,INDIVIDUAL,OP - Fenland Locality - Cost of Care,Older People - Fenland - Care,Direct Payments
Cambridgeshire County Council,18-Dec-20,51301490596,-700.56,Redacted Personal Data ,INDIVIDUAL,OP - Fenland Locality - Cost of Care,Older People - Fenland - Care,Direct Payments
Cambridgeshire County Council,18-Dec-20,51301490596,-700.56,Redacted Personal Data ,INDIVIDUAL,OP - Fenland Locality - Cost of Care,Older People - Fenland - Care,Direct Payments
Cambridgeshire County Council,18-Dec-20,51301490596,-700.56,Redacted Personal Data ,INDIVIDUAL,OP - Fenland Locality - Cost of Care,Older People - Fenland - Care,Direct Payments
Cambridgeshire County Council,18-Dec-20,51301490596,-700.56,Redacted Personal Data ,INDIVIDUAL,OP - Fenland Locality - Cost of Care,Older People - Fenland - Care,Direct Payments
Cambridgeshire County Council,18-Dec-20,51301490596,-700.56,Redacted Personal Data ,INDIVIDUAL,OP - Fenland Locality - Cost of Care,Older People - Fenland - Care,Direct Payments
Cambridgeshire County Council,18-Dec-20,51301491197,-700.00,ARIA COURT,CARE ESTABLISHMENT,OP - Fenland Locality - Cost of Care,Older People - Fenland - Care,Short Term Other
Cambridgeshire County Council,18-Dec-20,51301491197,-700.00,ARIA COURT,CARE ESTABLISHMENT,OP - Fenland Locality - Cost of Care,Older People - Fenland - Care,Short Term Other
Cambridgeshire County Council,18-Dec-20,51301493838,-700.00,ARIA COURT,CARE ESTABLISHMENT,OP - Fenland Locality - Cost of Care,Older People - Fenland - Care,Residential Care
Cambridgeshire County Council,18-Dec-20,51301493838,-700.00,ARIA COURT,CARE ESTABLISHMENT,OP - Fenland Locality - Cost of Care,Older People - Fenland - Care,Residential Care
Cambridgeshire County Council,18-Dec-20,51301493838,-700.00,ARIA COURT,CARE ESTABLISHMENT,OP - Fenland Locality - Cost of Care,Older People - Fenland - Care,Residential Care
Cambridgeshire County Council,18-Dec-20,51301493838,-700.00,ARIA COURT,CARE ESTABLISHMENT,OP - Fenland Locality - Cost of Care,Older People - Fenland - Care,Residential Care
Cambridgeshire County Council,18-Dec-20,51301493810,-700.00,DOVE COURT,CARE ESTABLISHMENT,OP - Fenland Locality - Cost of Care,Older People - Fenland - Care,Residential Care
Cambridgeshire County Council,18-Dec-20,51301493810,-700.00,DOVE COURT,CARE ESTABLISHMENT,OP - Fenland Locality - Cost of Care,Older People - Fenland - Care,Residential Care
Cambridgeshire County Council,18-Dec-20,51301493810,-700.00,DOVE COURT,CARE ESTABLISHMENT,OP - Fenland Locality - Cost of Care,Older People - Fenland - Care,Residential Care
Cambridgeshire County Council,18-Dec-20,51301493810,-700.00,DOVE COURT,CARE ESTABLISHMENT,OP - Fenland Locality - Cost of Care,Older People - Fenland - Care,Residential Care
Cambridgeshire County Council,18-Dec-20,51301493818,-700.00,DOVE COURT,CARE ESTABLISHMENT,OP - Fenland Locality - Cost of Care,Older People - Fenland - Care,Residential Care
Cambridgeshire County Council,18-Dec-20,51301493818,-700.00,DOVE COURT,CARE ESTABLISHMENT,OP - Fenland Locality - Cost of Care,Older People - Fenland - Care,Residential Care
Cambridgeshire County Council,18-Dec-20,51301493818,-700.00,DOVE COURT,CARE ESTABLISHMENT,OP - Fenland Locality - Cost of Care,Older People - Fenland - Care,Residential Care
Cambridgeshire County Council,18-Dec-20,51301493818,-700.00,DOVE COURT,CARE ESTABLISHMENT,OP - Fenland Locality - Cost of Care,Older People - Fenland - Care,Residential Care
Cambridgeshire County Council,18-Dec-20,51301493818,-700.00,DOVE COURT,CARE ESTABLISHMENT,OP - Fenland Locality - Cost of Care,Older People - Fenland - Care,Residential Care
Cambridgeshire County Council,18-Dec-20,51301493818,-700.00,DOVE COURT,CARE ESTABLISHMENT,OP - Fenland Locality - Cost of Care,Older People - Fenland - Care,Residential Care
Cambridgeshire County Council,18-Dec-20,51301493821,-700.00,DOVE COURT,CARE ESTABLISHMENT,OP - Fenland Locality - Cost of Care,Older People - Fenland - Care,Residential Care
Cambridgeshire County Council,18-Dec-20,51301493821,-700.00,DOVE COURT,CARE ESTABLISHMENT,OP - Fenland Locality - Cost of Care,Older People - Fenland - Care,Residential Care
Cambridgeshire County Council,18-Dec-20,51301493821,-700.00,DOVE COURT,CARE ESTABLISHMENT,OP - Fenland Locality - Cost of Care,Older People - Fenland - Care,Residential Care
Cambridgeshire County Council,18-Dec-20,51301493821,-700.00,DOVE COURT,CARE ESTABLISHMENT,OP - Fenland Locality - Cost of Care,Older People - Fenland - Care,Residential Care
Cambridgeshire County Council,18-Dec-20,51301493821,-700.00,DOVE COURT,CARE ESTABLISHMENT,OP - Fenland Locality - Cost of Care,Older People - Fenland - Care,Residential Care
Cambridgeshire County Council,18-Dec-20,51301493811,-700.00,DOVE COURT,CARE ESTABLISHMENT,OP - City & South Locality - Cost of Care,Older People - City & South - Care,Residential Care
Cambridgeshire County Council,18-Dec-20,51301493811,-700.00,DOVE COURT,CARE ESTABLISHMENT,OP - City & South Locality - Cost of Care,Older People - City & South - Care,Residential Care
Cambridgeshire County Council,18-Dec-20,51301488525,-693.71,K RAVIVARUMAN T/A FAIR HAVEN CARE HOME,CARE ESTABLISHMENT,OP - East Cambs Blocks,East Cambs � Long term Blocks,Residential Care
Cambridgeshire County Council,18-Dec-20,51301492705,-690.00,BUCHAN HEALTHCARE LTD,CARE ESTABLISHMENT,OP - City & South Locality - Cost of Care,Older People - City & South - Care,Residential Care
Cambridgeshire County Council,18-Dec-20,51301492705,-690.00,BUCHAN HEALTHCARE LTD,CARE ESTABLISHMENT,OP - City & South Locality - Cost of Care,Older People - City & South - Care,Residential Care
Cambridgeshire County Council,18-Dec-20,51301492705,-690.00,BUCHAN HEALTHCARE LTD,CARE ESTABLISHMENT,OP - City & South Locality - Cost of Care,Older People - City & South - Care,Residential Care
Cambridgeshire County Council,18-Dec-20,51301488719,-687.36,AVAILL HEALTHCARE,CARE ESTABLISHMENT,Physical Disablity - Cost of Care,Countywide PD Service - Care,Homecare
Cambridgeshire County Council,18-Dec-20,51301488499,-685.71,HC-ONE,CARE ESTABLISHMENT,OP - Hunts Blocks,Hunts - Long term blocks,Nursing Care
Cambridgeshire County Council,18-Dec-20,51301493570,-680.40,AUGUSTA CARE LTD,CARE ESTABLISHMENT,LD - Fenland Locality - Cost of Care,LD - Fenland  - Care,Supported Living
Cambridgeshire County Council,18-Dec-20,51301493570,-680.40,AUGUSTA CARE LTD,CARE ESTABLISHMENT,LD - Fenland Locality - Cost of Care,LD - Fenland  - Care,Supported Living
Cambridgeshire County Council,18-Dec-20,51301493570,-680.40,AUGUSTA CARE LTD,CARE ESTABLISHMENT,LD - Fenland Locality - Cost of Care,LD - Fenland  - Care,Supported Living
Cambridgeshire County Council,18-Dec-20,51301493570,-680.40,AUGUSTA CARE LTD,CARE ESTABLISHMENT,LD - Fenland Locality - Cost of Care,LD - Fenland  - Care,Supported Living
Cambridgeshire County Council,18-Dec-20,51301493570,-680.40,AUGUSTA CARE LTD,CARE ESTABLISHMENT,LD - Fenland Locality - Cost of Care,LD - Fenland  - Care,Supported Living
Cambridgeshire County Council,18-Dec-20,51301493570,-680.40,AUGUSTA CARE LTD,CARE ESTABLISHMENT,LD - Fenland Locality - Cost of Care,LD - Fenland  - Care,Supported Living
Cambridgeshire County Council,18-Dec-20,51301493570,-680.40,AUGUSTA CARE LTD,CARE ESTABLISHMENT,LD - Fenland Locality - Cost of Care,LD - Fenland  - Care,Supported Living
Cambridgeshire County Council,18-Dec-20,51301493570,-680.40,AUGUSTA CARE LTD,CARE ESTABLISHMENT,LD - Fenland Locality - Cost of Care,LD - Fenland  - Care,Supported Living
Cambridgeshire County Council,23-Dec-20,51301496242,-679.84,Redacted Personal Data ,INDIVIDUAL,Physical Disablity - Cost of Care,Countywide PD Service - Care,Direct Payments
Cambridgeshire County Council,23-Dec-20,51301496242,-679.84,Redacted Personal Data ,INDIVIDUAL,Physical Disablity - Cost of Care,Countywide PD Service - Care,Direct Payments
Cambridgeshire County Council,23-Dec-20,51301496242,-679.84,Redacted Personal Data ,INDIVIDUAL,Physical Disablity - Cost of Care,Countywide PD Service - Care,Direct Payments
Cambridgeshire County Council,23-Dec-20,51301496242,-679.84,Redacted Personal Data ,INDIVIDUAL,Physical Disablity - Cost of Care,Countywide PD Service - Care,Direct Payments
Cambridgeshire County Council,23-Dec-20,51301496242,-679.84,Redacted Personal Data ,INDIVIDUAL,Physical Disablity - Cost of Care,Countywide PD Service - Care,Direct Payments
Cambridgeshire County Council,23-Dec-20,51301496242,-679.84,Redacted Personal Data ,INDIVIDUAL,Physical Disablity - Cost of Care,Countywide PD Service - Care,Direct Payments
Cambridgeshire County Council,23-Dec-20,51301496242,-679.84,Redacted Personal Data ,INDIVIDUAL,Physical Disablity - Cost of Care,Countywide PD Service - Care,Direct Payments
Cambridgeshire County Council,23-Dec-20,51301496242,-679.84,Redacted Personal Data ,INDIVIDUAL,Physical Disablity - Cost of Care,Countywide PD Service - Care,Direct Payments
Cambridgeshire County Council,23-Dec-20,51301496242,-679.84,Redacted Personal Data ,INDIVIDUAL,Physical Disablity - Cost of Care,Countywide PD Service - Care,Direct Payments
Cambridgeshire County Council,23-Dec-20,51301496242,-679.84,Redacted Personal Data ,INDIVIDUAL,Physical Disablity - Cost of Care,Countywide PD Service - Care,Direct Payments
Cambridgeshire County Council,23-Dec-20,51301496242,-679.84,Redacted Personal Data ,INDIVIDUAL,Physical Disablity - Cost of Care,Countywide PD Service - Care,Direct Payments
Cambridgeshire County Council,23-Dec-20,51301496242,-679.84,Redacted Personal Data ,INDIVIDUAL,Physical Disablity - Cost of Care,Countywide PD Service - Care,Direct Payments
Cambridgeshire County Council,23-Dec-20,51301496242,-679.84,Redacted Personal Data ,INDIVIDUAL,Physical Disablity - Cost of Care,Countywide PD Service - Care,Direct Payments
Cambridgeshire County Council,18-Dec-20,51301491208,-666.08,ABBEY HEALTHCARE (HUNTINGDON) LTD,CARE ESTABLISHMENT,OP - Hunts Locality - Cost of Care,Hunts OP Team - Care,Short Term Other
Cambridgeshire County Council,18-Dec-20,51301491208,-666.08,ABBEY HEALTHCARE (HUNTINGDON) LTD,CARE ESTABLISHMENT,OP - Hunts Locality - Cost of Care,Hunts OP Team - Care,Short Term Other
Cambridgeshire County Council,18-Dec-20,51301491208,-666.08,ABBEY HEALTHCARE (HUNTINGDON) LTD,CARE ESTABLISHMENT,OP - Hunts Locality - Cost of Care,Hunts OP Team - Care,Short Term Other
Cambridgeshire County Council,18-Dec-20,51301491208,-666.08,ABBEY HEALTHCARE (HUNTINGDON) LTD,CARE ESTABLISHMENT,OP - Hunts Locality - Cost of Care,Hunts OP Team - Care,Short Term Other
Cambridgeshire County Council,18-Dec-20,51301491208,-666.08,ABBEY HEALTHCARE (HUNTINGDON) LTD,CARE ESTABLISHMENT,OP - Hunts Locality - Cost of Care,Hunts OP Team - Care,Short Term Other
Cambridgeshire County Council,18-Dec-20,51301493826,-666.08,KINGFISHER HOUSE,CARE ESTABLISHMENT,OP - East Cambs Locality - Cost of Care,East Cambs - O P Team - Care,Nursing Care
Cambridgeshire County Council,18-Dec-20,51301493826,-666.08,KINGFISHER HOUSE,CARE ESTABLISHMENT,OP - East Cambs Locality - Cost of Care,East Cambs - O P Team - Care,Nursing Care
Cambridgeshire County Council,18-Dec-20,51301493045,-661.12,PAPWORTH TRUST,TRUST (OTHER),LD - Fenland Locality - Cost of Care,LD - Fenland  - Care,Supported Living
Cambridgeshire County Council,18-Dec-20,51301493045,-661.12,PAPWORTH TRUST,TRUST (OTHER),LD - Fenland Locality - Cost of Care,LD - Fenland  - Care,Supported Living
Cambridgeshire County Council,18-Dec-20,51301493045,-661.12,PAPWORTH TRUST,TRUST (OTHER),LD - Fenland Locality - Cost of Care,LD - Fenland  - Care,Supported Living
Cambridgeshire County Council,18-Dec-20,51301493045,-661.12,PAPWORTH TRUST,TRUST (OTHER),LD - Fenland Locality - Cost of Care,LD - Fenland  - Care,Supported Living
Cambridgeshire County Council,18-Dec-20,51301493045,-661.12,PAPWORTH TRUST,TRUST (OTHER),LD - Fenland Locality - Cost of Care,LD - Fenland  - Care,Supported Living
Cambridgeshire County Council,18-Dec-20,51301493045,-661.12,PAPWORTH TRUST,TRUST (OTHER),LD - Fenland Locality - Cost of Care,LD - Fenland  - Care,Supported Living
Cambridgeshire County Council,18-Dec-20,51301493045,-661.12,PAPWORTH TRUST,TRUST (OTHER),LD - Fenland Locality - Cost of Care,LD - Fenland  - Care,Supported Living
Cambridgeshire County Council,18-Dec-20,51301493045,-661.12,PAPWORTH TRUST,TRUST (OTHER),LD - Fenland Locality - Cost of Care,LD - Fenland  - Care,Supported Living
Cambridgeshire County Council,18-Dec-20,51301482228,-659.98,GLENHOLME HEALTHCARE LTD,CARE ESTABLISHMENT,LD - Fenland Locality - Cost of Care,LD - Fenland  - Care,Residential Care
Cambridgeshire County Council,18-Dec-20,51301482228,-659.98,GLENHOLME HEALTHCARE LTD,CARE ESTABLISHMENT,LD - Fenland Locality - Cost of Care,LD - Fenland  - Care,Residential Care
Cambridgeshire County Council,18-Dec-20,51301482228,-659.98,GLENHOLME HEALTHCARE LTD,CARE ESTABLISHMENT,LD - Fenland Locality - Cost of Care,LD - Fenland  - Care,Residential Care
Cambridgeshire County Council,18-Dec-20,51301482228,-659.98,GLENHOLME HEALTHCARE LTD,CARE ESTABLISHMENT,LD - Fenland Locality - Cost of Care,LD - Fenland  - Care,Residential Care
Cambridgeshire County Council,18-Dec-20,51301482228,-659.98,GLENHOLME HEALTHCARE LTD,CARE ESTABLISHMENT,LD - Fenland Locality - Cost of Care,LD - Fenland  - Care,Residential Care
Cambridgeshire County Council,18-Dec-20,51301492795,-655.00,BUCHAN HEALTHCARE LTD,CARE ESTABLISHMENT,OP - City & South Locality - Cost of Care,Older People - City & South - Care,Residential Care
Cambridgeshire County Council,18-Dec-20,51301492795,-655.00,BUCHAN HEALTHCARE LTD,CARE ESTABLISHMENT,OP - City & South Locality - Cost of Care,Older People - City & South - Care,Residential Care
Cambridgeshire County Council,18-Dec-20,51301492795,-655.00,BUCHAN HEALTHCARE LTD,CARE ESTABLISHMENT,OP - City & South Locality - Cost of Care,Older People - City & South - Care,Residential Care
Cambridgeshire County Council,18-Dec-20,51301492795,-655.00,BUCHAN HEALTHCARE LTD,CARE ESTABLISHMENT,OP - City & South Locality - Cost of Care,Older People - City & South - Care,Residential Care
Cambridgeshire County Council,18-Dec-20,51301492795,-655.00,BUCHAN HEALTHCARE LTD,CARE ESTABLISHMENT,OP - City & South Locality - Cost of Care,Older People - City & South - Care,Residential Care
Cambridgeshire County Council,18-Dec-20,51301492795,-655.00,BUCHAN HEALTHCARE LTD,CARE ESTABLISHMENT,OP - City & South Locality - Cost of Care,Older People - City & South - Care,Residential Care
Cambridgeshire County Council,18-Dec-20,51301492795,-655.00,BUCHAN HEALTHCARE LTD,CARE ESTABLISHMENT,OP - City & South Locality - Cost of Care,Older People - City & South - Care,Residential Care
Cambridgeshire County Council,18-Dec-20,51301492795,-655.00,BUCHAN HEALTHCARE LTD,CARE ESTABLISHMENT,OP - City & South Locality - Cost of Care,Older People - City & South - Care,Residential Care
Cambridgeshire County Council,18-Dec-20,51301491807,-650.00,FIELD HOUSE (EYE) LIMITED,CARE ESTABLISHMENT,OP - Hunts Locality - Cost of Care,Hunts OP Team - Care,Residential Care
Cambridgeshire County Council,18-Dec-20,51301491807,-650.00,FIELD HOUSE (EYE) LIMITED,CARE ESTABLISHMENT,OP - Hunts Locality - Cost of Care,Hunts OP Team - Care,Residential Care
Cambridgeshire County Council,18-Dec-20,51301491807,-650.00,FIELD HOUSE (EYE) LIMITED,CARE ESTABLISHMENT,OP - Hunts Locality - Cost of Care,Hunts OP Team - Care,Residential Care
Cambridgeshire County Council,18-Dec-20,51301491807,-650.00,FIELD HOUSE (EYE) LIMITED,CARE ESTABLISHMENT,OP - Hunts Locality - Cost of Care,Hunts OP Team - Care,Residential Care
Cambridgeshire County Council,18-Dec-20,51301491807,-650.00,FIELD HOUSE (EYE) LIMITED,CARE ESTABLISHMENT,OP - Hunts Locality - Cost of Care,Hunts OP Team - Care,Residential Care
Cambridgeshire County Council,18-Dec-20,51301491807,-650.00,FIELD HOUSE (EYE) LIMITED,CARE ESTABLISHMENT,OP - Hunts Locality - Cost of Care,Hunts OP Team - Care,Residential Care
Cambridgeshire County Council,18-Dec-20,51301491807,-650.00,FIELD HOUSE (EYE) LIMITED,CARE ESTABLISHMENT,OP - Hunts Locality - Cost of Care,Hunts OP Team - Care,Residential Care
Cambridgeshire County Council,18-Dec-20,51301491807,-650.00,FIELD HOUSE (EYE) LIMITED,CARE ESTABLISHMENT,OP - Hunts Locality - Cost of Care,Hunts OP Team - Care,Residential Care
Cambridgeshire County Council,18-Dec-20,51301491807,-650.00,FIELD HOUSE (EYE) LIMITED,CARE ESTABLISHMENT,OP - Hunts Locality - Cost of Care,Hunts OP Team - Care,Residential Care
Cambridgeshire County Council,18-Dec-20,51301491807,-650.00,FIELD HOUSE (EYE) LIMITED,CARE ESTABLISHMENT,OP - Hunts Locality - Cost of Care,Hunts OP Team - Care,Residential Care
Cambridgeshire County Council,18-Dec-20,51301491807,-650.00,FIELD HOUSE (EYE) LIMITED,CARE ESTABLISHMENT,OP - Hunts Locality - Cost of Care,Hunts OP Team - Care,Residential Care
Cambridgeshire County Council,18-Dec-20,51301491807,-650.00,FIELD HOUSE (EYE) LIMITED,CARE ESTABLISHMENT,OP - Hunts Locality - Cost of Care,Hunts OP Team - Care,Residential Care
Cambridgeshire County Council,18-Dec-20,51301491807,-650.00,FIELD HOUSE (EYE) LIMITED,CARE ESTABLISHMENT,OP - Hunts Locality - Cost of Care,Hunts OP Team - Care,Residential Care
Cambridgeshire County Council,18-Dec-20,51301491807,-650.00,FIELD HOUSE (EYE) LIMITED,CARE ESTABLISHMENT,OP - Hunts Locality - Cost of Care,Hunts OP Team - Care,Residential Care
Cambridgeshire County Council,18-Dec-20,51301493780,-650.00,THE HILLINGS LIMITED,CARE ESTABLISHMENT,OP - Hunts Locality - Cost of Care,Hunts OP Team - Care,Residential Care
Cambridgeshire County Council,18-Dec-20,51301493780,-650.00,THE HILLINGS LIMITED,CARE ESTABLISHMENT,OP - Hunts Locality - Cost of Care,Hunts OP Team - Care,Residential Care
Cambridgeshire County Council,18-Dec-20,51301493780,-650.00,THE HILLINGS LIMITED,CARE ESTABLISHMENT,OP - Hunts Locality - Cost of Care,Hunts OP Team - Care,Residential Care
Cambridgeshire County Council,18-Dec-20,51301493780,-650.00,THE HILLINGS LIMITED,CARE ESTABLISHMENT,OP - Hunts Locality - Cost of Care,Hunts OP Team - Care,Residential Care
Cambridgeshire County Council,18-Dec-20,51301493780,-650.00,THE HILLINGS LIMITED,CARE ESTABLISHMENT,OP - Hunts Locality - Cost of Care,Hunts OP Team - Care,Residential Care
Cambridgeshire County Council,18-Dec-20,51301493780,-650.00,THE HILLINGS LIMITED,CARE ESTABLISHMENT,OP - Hunts Locality - Cost of Care,Hunts OP Team - Care,Residential Care
Cambridgeshire County Council,18-Dec-20,51301493780,-650.00,THE HILLINGS LIMITED,CARE ESTABLISHMENT,OP - Hunts Locality - Cost of Care,Hunts OP Team - Care,Residential Care
Cambridgeshire County Council,18-Dec-20,51301493780,-650.00,THE HILLINGS LIMITED,CARE ESTABLISHMENT,OP - Hunts Locality - Cost of Care,Hunts OP Team - Care,Residential Care
Cambridgeshire County Council,18-Dec-20,51301493780,-650.00,THE HILLINGS LIMITED,CARE ESTABLISHMENT,OP - Hunts Locality - Cost of Care,Hunts OP Team - Care,Residential Care
Cambridgeshire County Council,18-Dec-20,51301494087,-650.00,THE CHESTNUTS RESIDENTIAL HOME,CARE ESTABLISHMENT,OP - Fenland Locality - Cost of Care,Older People - Fenland - Care,Residential Care
Cambridgeshire County Council,18-Dec-20,51301494087,-650.00,THE CHESTNUTS RESIDENTIAL HOME,CARE ESTABLISHMENT,OP - Fenland Locality - Cost of Care,Older People - Fenland - Care,Residential Care
Cambridgeshire County Council,18-Dec-20,51301494087,-650.00,THE CHESTNUTS RESIDENTIAL HOME,CARE ESTABLISHMENT,OP - Fenland Locality - Cost of Care,Older People - Fenland - Care,Residential Care
Cambridgeshire County Council,18-Dec-20,51301494087,-650.00,THE CHESTNUTS RESIDENTIAL HOME,CARE ESTABLISHMENT,OP - Fenland Locality - Cost of Care,Older People - Fenland - Care,Residential Care
Cambridgeshire County Council,18-Dec-20,51301494087,-650.00,THE CHESTNUTS RESIDENTIAL HOME,CARE ESTABLISHMENT,OP - Fenland Locality - Cost of Care,Older People - Fenland - Care,Residential Care
Cambridgeshire County Council,18-Dec-20,51301494087,-650.00,THE CHESTNUTS RESIDENTIAL HOME,CARE ESTABLISHMENT,OP - Fenland Locality - Cost of Care,Older People - Fenland - Care,Residential Care
Cambridgeshire County Council,18-Dec-20,51301494087,-650.00,THE CHESTNUTS RESIDENTIAL HOME,CARE ESTABLISHMENT,OP - Fenland Locality - Cost of Care,Older People - Fenland - Care,Residential Care
Cambridgeshire County Council,18-Dec-20,51301494087,-650.00,THE CHESTNUTS RESIDENTIAL HOME,CARE ESTABLISHMENT,OP - Fenland Locality - Cost of Care,Older People - Fenland - Care,Residential Care
Cambridgeshire County Council,18-Dec-20,51301494087,-650.00,THE CHESTNUTS RESIDENTIAL HOME,CARE ESTABLISHMENT,OP - Fenland Locality - Cost of Care,Older People - Fenland - Care,Residential Care
Cambridgeshire County Council,18-Dec-20,51301493725,-650.00,LITTLEPORT GRANGE,CARE ESTABLISHMENT,OP - East Cambs Locality - Cost of Care,East Cambs - O P Team - Care,Residential Care
Cambridgeshire County Council,18-Dec-20,51301493725,-650.00,LITTLEPORT GRANGE,CARE ESTABLISHMENT,OP - East Cambs Locality - Cost of Care,East Cambs - O P Team - Care,Residential Care
Cambridgeshire County Council,18-Dec-20,51301493725,-650.00,LITTLEPORT GRANGE,CARE ESTABLISHMENT,OP - East Cambs Locality - Cost of Care,East Cambs - O P Team - Care,Residential Care
Cambridgeshire County Council,18-Dec-20,51301493725,-650.00,LITTLEPORT GRANGE,CARE ESTABLISHMENT,OP - East Cambs Locality - Cost of Care,East Cambs - O P Team - Care,Residential Care
Cambridgeshire County Council,18-Dec-20,51301493725,-650.00,LITTLEPORT GRANGE,CARE ESTABLISHMENT,OP - East Cambs Locality - Cost of Care,East Cambs - O P Team - Care,Residential Care
Cambridgeshire County Council,18-Dec-20,51301493725,-650.00,LITTLEPORT GRANGE,CARE ESTABLISHMENT,OP - East Cambs Locality - Cost of Care,East Cambs - O P Team - Care,Residential Care
Cambridgeshire County Council,18-Dec-20,51301493725,-650.00,LITTLEPORT GRANGE,CARE ESTABLISHMENT,OP - East Cambs Locality - Cost of Care,East Cambs - O P Team - Care,Residential Care
Cambridgeshire County Council,18-Dec-20,51301493725,-650.00,LITTLEPORT GRANGE,CARE ESTABLISHMENT,OP - East Cambs Locality - Cost of Care,East Cambs - O P Team - Care,Residential Care
Cambridgeshire County Council,18-Dec-20,51301493725,-650.00,LITTLEPORT GRANGE,CARE ESTABLISHMENT,OP - East Cambs Locality - Cost of Care,East Cambs - O P Team - Care,Residential Care
Cambridgeshire County Council,18-Dec-20,51301493725,-650.00,LITTLEPORT GRANGE,CARE ESTABLISHMENT,OP - East Cambs Locality - Cost of Care,East Cambs - O P Team - Care,Residential Care
Cambridgeshire County Council,18-Dec-20,51301493725,-650.00,LITTLEPORT GRANGE,CARE ESTABLISHMENT,OP - East Cambs Locality - Cost of Care,East Cambs - O P Team - Care,Residential Care
Cambridgeshire County Council,18-Dec-20,51301493725,-650.00,LITTLEPORT GRANGE,CARE ESTABLISHMENT,OP - East Cambs Locality - Cost of Care,East Cambs - O P Team - Care,Residential Care
Cambridgeshire County Council,18-Dec-20,51301493725,-650.00,LITTLEPORT GRANGE,CARE ESTABLISHMENT,OP - East Cambs Locality - Cost of Care,East Cambs - O P Team - Care,Residential Care
Cambridgeshire County Council,18-Dec-20,51301493725,-650.00,LITTLEPORT GRANGE,CARE ESTABLISHMENT,OP - East Cambs Locality - Cost of Care,East Cambs - O P Team - Care,Residential Care
Cambridgeshire County Council,18-Dec-20,51301493725,-650.00,LITTLEPORT GRANGE,CARE ESTABLISHMENT,OP - East Cambs Locality - Cost of Care,East Cambs - O P Team - Care,Residential Care
Cambridgeshire County Council,18-Dec-20,51301493725,-650.00,LITTLEPORT GRANGE,CARE ESTABLISHMENT,OP - East Cambs Locality - Cost of Care,East Cambs - O P Team - Care,Residential Care
Cambridgeshire County Council,18-Dec-20,51301493725,-650.00,LITTLEPORT GRANGE,CARE ESTABLISHMENT,OP - East Cambs Locality - Cost of Care,East Cambs - O P Team - Care,Residential Care
Cambridgeshire County Council,18-Dec-20,51301492817,-648.00,BUCHAN HEALTHCARE LTD,CARE ESTABLISHMENT,OP - City & South Locality - Cost of Care,Older People - City & South - Care,Nursing Care
Cambridgeshire County Council,18-Dec-20,51301492817,-648.00,BUCHAN HEALTHCARE LTD,CARE ESTABLISHMENT,OP - City & South Locality - Cost of Care,Older People - City & South - Care,Nursing Care
Cambridgeshire County Council,18-Dec-20,51301493792,-645.00,THE HILLINGS LIMITED,CARE ESTABLISHMENT,OP - Hunts Locality - Cost of Care,Hunts OP Team - Care,Residential Care
Cambridgeshire County Council,18-Dec-20,51301493792,-645.00,THE HILLINGS LIMITED,CARE ESTABLISHMENT,OP - Hunts Locality - Cost of Care,Hunts OP Team - Care,Residential Care
Cambridgeshire County Council,18-Dec-20,51301493792,-645.00,THE HILLINGS LIMITED,CARE ESTABLISHMENT,OP - Hunts Locality - Cost of Care,Hunts OP Team - Care,Residential Care
Cambridgeshire County Council,18-Dec-20,51301493792,-645.00,THE HILLINGS LIMITED,CARE ESTABLISHMENT,OP - Hunts Locality - Cost of Care,Hunts OP Team - Care,Residential Care
Cambridgeshire County Council,18-Dec-20,51301493792,-645.00,THE HILLINGS LIMITED,CARE ESTABLISHMENT,OP - Hunts Locality - Cost of Care,Hunts OP Team - Care,Residential Care
Cambridgeshire County Council,18-Dec-20,51301493792,-645.00,THE HILLINGS LIMITED,CARE ESTABLISHMENT,OP - Hunts Locality - Cost of Care,Hunts OP Team - Care,Residential Care
Cambridgeshire County Council,18-Dec-20,51301493792,-645.00,THE HILLINGS LIMITED,CARE ESTABLISHMENT,OP - Hunts Locality - Cost of Care,Hunts OP Team - Care,Residential Care
Cambridgeshire County Council,18-Dec-20,51301493792,-645.00,THE HILLINGS LIMITED,CARE ESTABLISHMENT,OP - Hunts Locality - Cost of Care,Hunts OP Team - Care,Residential Care
Cambridgeshire County Council,18-Dec-20,51301493792,-645.00,THE HILLINGS LIMITED,CARE ESTABLISHMENT,OP - Hunts Locality - Cost of Care,Hunts OP Team - Care,Residential Care
Cambridgeshire County Council,18-Dec-20,51301493792,-645.00,THE HILLINGS LIMITED,CARE ESTABLISHMENT,OP - Hunts Locality - Cost of Care,Hunts OP Team - Care,Residential Care
Cambridgeshire County Council,18-Dec-20,51301493792,-645.00,THE HILLINGS LIMITED,CARE ESTABLISHMENT,OP - Hunts Locality - Cost of Care,Hunts OP Team - Care,Residential Care
Cambridgeshire County Council,24-Dec-20,51301496745,-645.00,FOUR OAKS HEALTHCARE LIMITED,CARE ESTABLISHMENT,OP - City & South Locality - Cost of Care,Older People - City & South - Care,Homecare
Cambridgeshire County Council,24-Dec-20,51301496745,-645.00,FOUR OAKS HEALTHCARE LIMITED,CARE ESTABLISHMENT,OP - City & South Locality - Cost of Care,Older People - City & South - Care,Homecare
Cambridgeshire County Council,24-Dec-20,51301496745,-645.00,FOUR OAKS HEALTHCARE LIMITED,CARE ESTABLISHMENT,OP - City & South Locality - Cost of Care,Older People - City & South - Care,Homecare
Cambridgeshire County Council,07-Dec-20,51301482588,-644.29,Redacted Personal Data ,FOSTER PARENT,Fostering,FCP allowances,Adoption Allowances
Cambridgeshire County Council,11-Dec-20,51301486324,-643.29,CONQUEST CARE HOMES PETERBOROUGH,CARE ESTABLISHMENT,Physical Disablity - Cost of Care,Countywide PD Service - Care,Residential Care
Cambridgeshire County Council,18-Dec-20,51301489140,-640.00,LILY HOUSE,CARE ESTABLISHMENT,OP - East Cambs Locality - Cost of Care,East Cambs - O P Team - Care,Residential Care
Cambridgeshire County Council,18-Dec-20,51301489140,-640.00,LILY HOUSE,CARE ESTABLISHMENT,OP - East Cambs Locality - Cost of Care,East Cambs - O P Team - Care,Residential Care
Cambridgeshire County Council,18-Dec-20,51301489140,-640.00,LILY HOUSE,CARE ESTABLISHMENT,OP - East Cambs Locality - Cost of Care,East Cambs - O P Team - Care,Residential Care
Cambridgeshire County Council,18-Dec-20,51301489140,-640.00,LILY HOUSE,CARE ESTABLISHMENT,OP - East Cambs Locality - Cost of Care,East Cambs - O P Team - Care,Residential Care
Cambridgeshire County Council,18-Dec-20,51301489140,-640.00,LILY HOUSE,CARE ESTABLISHMENT,OP - East Cambs Locality - Cost of Care,East Cambs - O P Team - Care,Residential Care
Cambridgeshire County Council,18-Dec-20,51301489140,-640.00,LILY HOUSE,CARE ESTABLISHMENT,OP - East Cambs Locality - Cost of Care,East Cambs - O P Team - Care,Residential Care
Cambridgeshire County Council,18-Dec-20,51301489140,-640.00,LILY HOUSE,CARE ESTABLISHMENT,OP - East Cambs Locality - Cost of Care,East Cambs - O P Team - Care,Residential Care
Cambridgeshire County Council,18-Dec-20,51301489140,-640.00,LILY HOUSE,CARE ESTABLISHMENT,OP - East Cambs Locality - Cost of Care,East Cambs - O P Team - Care,Residential Care
Cambridgeshire County Council,18-Dec-20,51301489140,-640.00,LILY HOUSE,CARE ESTABLISHMENT,OP - East Cambs Locality - Cost of Care,East Cambs - O P Team - Care,Residential Care
Cambridgeshire County Council,18-Dec-20,51301489140,-640.00,LILY HOUSE,CARE ESTABLISHMENT,OP - East Cambs Locality - Cost of Care,East Cambs - O P Team - Care,Residential Care
Cambridgeshire County Council,18-Dec-20,51301489140,-640.00,LILY HOUSE,CARE ESTABLISHMENT,OP - East Cambs Locality - Cost of Care,East Cambs - O P Team - Care,Residential Care
